Local authority department which incurred the expenditure,Service Division,Cost Centre,Summary of the Purpose of Expenditure,Expense Type,Expense Code,Detailed Expense Type,Date of Transaction,Transaction Number,Beneficiary,Merchant Category Number,Merchant Category,Gross Amount,VAT,Net Amount
Children and Young Peoples Services,Head of Education and Skills,070169,Durham SSP,Supplies and Services,304999,Equipment and Materials,01-Aug-2022,000008365375206,Microsoft Microsoft 36,5816,Misc equipment tools and materials,7.99,1.33,6.66
Regeneration Economy and Growth,Communications Management,060270,Communications and Marketing,Supplies and Services,336005,Advertising E336,01-Aug-2022,000008365375528,FACEBK 9464NFP4B2,7311,Advertising other than for staff,191.84,0.00,191.84
Regeneration Economy and Growth,Business Durham CL0850,030689,Inward Investment and Aftercare,Supplies and Services,336005,Advertising E336,01-Aug-2022,000008372479266,Google ADS6853017821,7311,Advertising other than for staff,48.15,0.00,48.15
Children and Young Peoples Services,Head of Childrens Social Care,085368,Children Looked After Team 5,Supplies and Services,364301,Grants to Voluntary Organisations,01-Aug-2022,000008372479284,IKEA LTD SHOP ONLINE,5712,Hardship,164.00,0.00,164.00
Children and Young Peoples Services,Head of Education and Skills,071801,Selby Cottage Childcare Centre,Supplies and Services,304403,Equipment and Materials,01-Aug-2022,000008372479292,AMZNMktplace,5999,Other consumables,16.90,2.82,14.08
Children and Young Peoples Services,Head of Education and Skills,071801,Selby Cottage Childcare Centre,Supplies and Services,304403,Equipment and Materials,01-Aug-2022,000008372479296,AMZNMktplace,5999,Other consumables,21.98,3.66,18.32
Children and Young Peoples Services,Head of Education and Skills,071801,Selby Cottage Childcare Centre,Supplies and Services,304403,Equipment and Materials,01-Aug-2022,000008372479298,AMZNMktplace,5999,Other consumables,27.96,4.68,23.28
Children and Young Peoples Services,Head of Education and Skills,078561,DurhamEnable,Supplies and Services,304403,Equipment and Materials,01-Aug-2022,000008372479370,AMZNMktplace,5999,Other consumables,53.98,9.00,44.98
Regeneration Economy and Growth,Culture Sport and Tourism,011265,Empire Theatre (Operations),Supplies and Services,304252,Equipment and Materials,01-Aug-2022,000008372479386,AMZNMktplace,5999,Equipment-repairsserviceinsurance,41.96,7.00,34.96
Children and Young Peoples Services,Head of Childrens Social Care,085334,West Rainton Satelite Home,Supplies and Services,324117,Provisions E324,01-Aug-2022,000008372479418,B&M 681 - DURHAM,5399,Catering costs - provisions,8.59,0.00,8.59
Children and Young Peoples Services,Head of Childrens Social Care,085334,West Rainton Satelite Home,Supplies and Services,324117,Provisions E324,01-Aug-2022,000008372479420,TESCO STORES 2371,5411,Catering costs - provisions,141.08,0.00,141.08
Children and Young Peoples Services,Head of Childrens Social Care,085334,West Rainton Satelite Home,Supplies and Services,324117,Provisions E324,01-Aug-2022,000008372479424,TESCO STORES 6181,5411,Catering costs - provisions,29.00,0.00,29.00
Children and Young Peoples Services,Head of Childrens Social Care,085334,West Rainton Satelite Home,Supplies and Services,348037,Subsistence E348,01-Aug-2022,000008372479430,The Anglers Arms,5813,Subsistence,52.80,0.00,52.80
Regeneration Economy and Growth,Economic Development Level C,030776,LINKCD Flexible Fund,Supplies and Services,384999,Miscellaneous Expenses,01-Aug-2022,000008372479494,Naio Nails,5977,Other expenses,89.60,0.00,89.60
Children and Young Peoples Services,Head of Early Help Inclusion & Vulnerable Children.,071670,Willington Childrens Centre,Supplies and Services,304259,Equipment and Materials,01-Aug-2022,000008372479500,AMZNBusiness UA13O21R5,5999,Equipment-purchase and rental,169.99,28.34,141.65
Regeneration Economy and Growth,Corporate Property and Land,021242,Catering - County Hall,Supplies and Services,304403,Equipment and Materials,01-Aug-2022,000008372479546,AMZNMKTPLACE AMAZON.CO,5999,Other consumables,27.27,0.00,27.27
Children and Young Peoples Services,Head of Early Help Inclusion & Vulnerable Children.,074000,National Supporting Families Programme,Transfer Payments,525033,Other,01-Aug-2022,000008372479592,MAGUIRES,5713,Grants to individuals,234.00,0.00,234.00
Children and Young Peoples Services,Head of Childrens Social Care,085347,Solo Home The Manse,Supplies and Services,348037,Subsistence E348,01-Aug-2022,000008372479600,SQ YOUNGS FISHERIES,5812,Subsistence,22.00,0.00,22.00
Children and Young Peoples Services,Head of Childrens Social Care,085347,Solo Home The Manse,Supplies and Services,324117,Provisions E324,01-Aug-2022,000008372479602,TESCO STORES 2371,5411,Catering costs - provisions,167.90,0.00,167.90
Resources BK0010,Digital Services,065481,Technical Services 065481,Supplies and Services,372009,Subscriptions E372,01-Aug-2022,000008372479638,NOMINET UK,7392,Subscriptions 372009,120.00,20.00,100.00
Neighbourhoods and Climate Change,Environmental Services,026591,C&G - Hardwick Park,Supplies and Services,304259,Equipment and Materials,01-Aug-2022,000008372479706,Pestfix,5169,Equipment-purchase and rental,134.15,0.00,134.15
Neighbourhoods and Climate Change,Environmental Services,026591,C&G - Hardwick Park,Supplies and Services,332047,Printing Stationery and Gen Off Exps,01-Aug-2022,000008372479708,AMZNBusiness LE1YG8465,5999,Stationery,12.80,2.14,10.66
Children and Young Peoples Services,Head of Childrens Social Care,085333,Coxhoe Satelite Home,Supplies and Services,304999,Equipment and Materials,01-Aug-2022,000008372479740,WWW.YORKSHIREWILDLIFEP,7991,Misc equipment tools and materials,67.00,0.00,67.00
Children and Young Peoples Services,Head of Childrens Social Care,085333,Coxhoe Satelite Home,Supplies and Services,304999,Equipment and Materials,01-Aug-2022,000008372479742,HAVEN,7032,Misc equipment tools and materials,12.00,0.00,12.00
Children and Young Peoples Services,Head of Childrens Social Care,085333,Coxhoe Satelite Home,Supplies and Services,324117,Provisions E324,01-Aug-2022,000008372479744,SECURE SAFE LIMITED,5399,Catering costs - provisions,188.26,0.00,188.26
Children and Young Peoples Services,Head of Childrens Social Care,085333,Coxhoe Satelite Home,Supplies and Services,384237,Miscellaneous Expenses,01-Aug-2022,000008372479748,ALPAMARE NORTH BAY WAT,7999,Recreational exps outings parties,50.00,0.00,50.00
Children and Young Peoples Services,Head of Childrens Social Care,085333,Coxhoe Satelite Home,Supplies and Services,384237,Miscellaneous Expenses,01-Aug-2022,000008372479750,INFLATE SPACE NEWCASTL,7999,Recreational exps outings parties,29.00,0.00,29.00
Children and Young Peoples Services,Head of Childrens Social Care,085552,Services for Disabled Children,Supplies and Services,364301,Grants to Voluntary Organisations,01-Aug-2022,000008372479900,AMZNMKTPLACE AMAZON.CO,5999,Hardship,42.49,7.08,35.41
Children and Young Peoples Services,Head of Early Help Inclusion & Vulnerable Children.,088107,Wheatley Hill & N. Aycliffe Family Centre,Supplies and Services,304259,Equipment and Materials,01-Aug-2022,000008372479904,AMZ Konnec,5999,Equipment-purchase and rental,-17.82,-2.97,-14.85
Children and Young Peoples Services,Head of Childrens Social Care,085341,High Etherley Satelite Home,Supplies and Services,304403,Equipment and Materials,01-Aug-2022,000008372479968,AMZNMKTPLACE AMAZON.CO,5999,Other consumables,22.58,3.76,18.82
Regeneration Economy and Growth,Planning & Housing,031576,B& B - Temp Accom,Supplies and Services,364320,Grants to Voluntary Organisations,01-Aug-2022,000008372480004,TRAVELODGE,3615,Accommodation assistance,157.05,0.00,157.05
Regeneration Economy and Growth,Business Durham CL0850,030717,Business Services,Employees,040149,Recruitment Instruction and Training,01-Aug-2022,000008372480026,CENTREOFEXCELLENCE,8299,Training-all costs,29.00,0.00,29.00
Children and Young Peoples Services,Head of Childrens Social Care,085341,High Etherley Satelite Home,Supplies and Services,304403,Equipment and Materials,01-Aug-2022,000008372480088,AMZNMKTPLACE AMAZON.CO,5999,Other consumables,138.98,23.16,115.82
Children and Young Peoples Services,Head of Early Help Inclusion & Vulnerable Children.,085801,CDYJS - Support,Supplies and Services,324117,Provisions E324,01-Aug-2022,000008372480098,HERON FOODS CROOK,5411,Catering costs - provisions,15.13,0.00,15.13
Children and Young Peoples Services,Head of Early Help Inclusion & Vulnerable Children.,085801,CDYJS - Support,Supplies and Services,304403,Equipment and Materials,01-Aug-2022,000008372480100,TESCO ONLINE,5999,Other consumables,21.99,0.00,21.99
Children and Young Peoples Services,Head of Early Help Inclusion & Vulnerable Children.,085918,Price Training 75 Proudfoot Drive,Supplies and Services,304259,Equipment and Materials,01-Aug-2022,000008372480182,NEWITTS.COM,5941,Equipment-purchase and rental,944.75,0.00,944.75
Children and Young Peoples Services,Head of Early Help Inclusion & Vulnerable Children.,085961,Themed Week Activity,Supplies and Services,384302,Miscellaneous Expenses,01-Aug-2022,000008372480186,SMJ FALCONRY & CRAFTS,7399,Activity expenses,480.00,0.00,480.00
Children and Young Peoples Services,Head of Early Help Inclusion & Vulnerable Children.,085918,Price Training 75 Proudfoot Drive,Supplies and Services,304259,Equipment and Materials,01-Aug-2022,000008372480188,NEWITTS.COM,5941,Equipment-purchase and rental,-115.01,0.00,-115.01
Children and Young Peoples Services,Head of Education and Skills,071903,Early Years Sustainability,Employees,040149,Recruitment Instruction and Training,01-Aug-2022,000008372480212,PRE-SCHOOL LEARNING AL,8398,Training-all costs,226.00,0.00,226.00
Children and Young Peoples Services,Head of Childrens Social Care,085351,Framwellgate Moor CU,Supplies and Services,384237,Miscellaneous Expenses,01-Aug-2022,000008372480306,CLUEDINI DARLINGTON,7999,Recreational exps outings parties,79.99,0.00,79.99
Regeneration Economy and Growth,Economic Development Level C,030554,International Relations 030554,Supplies and Services,332047,Printing Stationery and Gen Off Exps,01-Aug-2022,000008372480362,MIL/SUPERSTICKERS-,5943,Stationery,11.99,0.00,11.99
Children and Young Peoples Services,Head of Early Help Inclusion & Vulnerable Children.,088107,Wheatley Hill & N. Aycliffe Family Centre,Supplies and Services,324117,Provisions E324,01-Aug-2022,000008372480388,ASDA GROCERIES ONLINE,5411,Catering costs - provisions,85.40,0.00,85.40
Children and Young Peoples Services,Head of Childrens Social Care,085358,Orchard House Sacriston Solo Home,Supplies and Services,304403,Equipment and Materials,01-Aug-2022,000008372480428,AMZNMktplace,5999,Other consumables,25.49,4.25,21.24
Children and Young Peoples Services,Head of Childrens Social Care,085358,Orchard House Sacriston Solo Home,Supplies and Services,304403,Equipment and Materials,01-Aug-2022,000008372480432,AMZNMktplace,5999,Other consumables,14.98,2.50,12.48
Children and Young Peoples Services,Head of Childrens Social Care,085332,Middlestone Moor CU,Supplies and Services,324117,Provisions E324,01-Aug-2022,000008372480474,ASDA SUPERSTORE 4987,5411,Catering costs - provisions,8.00,0.00,8.00
Children and Young Peoples Services,Head of Childrens Social Care,085334,West Rainton Satelite Home,Supplies and Services,304403,Equipment and Materials,01-Aug-2022,000008372480480,AMZNMktplace,5999,Other consumables,49.98,0.00,49.98
Regeneration Economy and Growth,Transport and Contracted Services,032170,Integrated Passenger Transport,Transport,215995,Running Costs of Vehicles,01-Aug-2022,000008372480486,SP MID-ULSTER ROTATI,5533,Vehicle running expenses,97.81,0.00,97.81
Resources BK0010,Digital Services,065487,ICT Telephony Recharges,Supplies and Services,304403,Equipment and Materials,01-Aug-2022,000008372480490,AMZNMktplace,5999,Other consumables,232.40,38.80,193.60
Regeneration Economy and Growth,Communications Management,060270,Communications and Marketing,Supplies and Services,336005,Advertising E336,01-Aug-2022,000008372480520,Google ADS8772529636,7311,Advertising other than for staff,305.62,0.00,305.62
Regeneration Economy and Growth,Communications Management,060270,Communications and Marketing,Supplies and Services,336005,Advertising E336,01-Aug-2022,000008372480524,LINKEDIN-809 6245514,7311,Advertising other than for staff,61.45,0.00,61.45
Resources BK0010,HR & Employee Services,066895,Advice & Guidance,Third Party Payments,430100,Rendered by Private Contractors,01-Aug-2022,000008372480526,INDEED TEL+35312545907,7399,Payments to sub-contractors,498.78,0.00,498.78
Children and Young Peoples Services,Head of Childrens Social Care,085341,High Etherley Satelite Home,Supplies and Services,324117,Provisions E324,01-Aug-2022,000008372480574,TESCO STORES 6329,5411,Catering costs - provisions,80.19,0.00,80.19
Children and Young Peoples Services,Head of Childrens Social Care,085551,Short Break Services-Park Hse Sher,Supplies and Services,324117,Provisions E324,01-Aug-2022,000008372480616,ICELAND FOODS,5411,Catering costs - provisions,-1.25,0.00,-1.25
Regeneration Economy and Growth,Planning & Housing,031581,Prevention Fund,Transport,235057,Public Transport,01-Aug-2022,000008372480728,Blueline Group 6458781,4121,Staff travelling,20.00,0.00,20.00
Regeneration Economy and Growth,Planning & Housing,031576,B& B - Temp Accom,Supplies and Services,364320,Grants to Voluntary Organisations,01-Aug-2022,000008372480730,TRAVELODGE,3615,Accommodation assistance,46.90,0.00,46.90
Regeneration Economy and Growth,Corporate Property and Land,010525,Catering - Green Lane,Supplies and Services,324117,Provisions E324,01-Aug-2022,000008372531110,JR HOLLAND FOODSERVICE,5499,Catering costs - provisions,56.38,0.00,56.38
Regeneration Economy and Growth,Culture Sport and Tourism,011265,Empire Theatre (Operations),Supplies and Services,324117,Provisions E324,01-Aug-2022,000008372531112,JR HOLLAND FOODSERVICE,5499,Catering costs - provisions,29.86,0.00,29.86
Regeneration Economy and Growth,Corporate Property and Land,011296,Catering - Dunes,Supplies and Services,324117,Provisions E324,01-Aug-2022,000008372531114,JR HOLLAND FOODSERVICE,5499,Catering costs - provisions,56.86,0.00,56.86
Regeneration Economy and Growth,Culture Sport and Tourism,054235,Bishop Auckland Town Hall Cafe,Supplies and Services,324117,Provisions E324,01-Aug-2022,000008372531116,JR HOLLAND FOODSERVICE,5499,Catering costs - provisions,469.14,0.00,469.14
Adult and Health Services,Head of Adults,055643,Hawthorn House LD Respite Unit,Supplies and Services,324117,Provisions E324,01-Aug-2022,000008372531118,JR HOLLAND FOODSERVICE,5499,Catering costs - provisions,22.62,0.00,22.62
Neighbourhoods and Climate Change,Environmental Services,011060,C&G - Hardwick Park Catering,Supplies and Services,324117,Provisions E324,01-Aug-2022,000008372531120,JR HOLLAND FOODSERVICE,5499,Catering costs - provisions,78.78,0.00,78.78
Regeneration Economy and Growth,Corporate Property and Land,021234,Catering - Locomotion,Supplies and Services,324117,Provisions E324,01-Aug-2022,000008372531122,JR HOLLAND FOODSERVICE,5499,Catering costs - provisions,58.27,0.00,58.27
Regeneration Economy and Growth,Culture Sport and Tourism,011263,Louisa Centre 011263,Supplies and Services,324117,Provisions E324,01-Aug-2022,000008372531124,JR HOLLAND FOODSERVICE,5499,Catering costs - provisions,65.59,0.00,65.59
Regeneration Economy and Growth,Corporate Property and Land,021242,Catering - County Hall,Supplies and Services,324117,Provisions E324,01-Aug-2022,000008372531126,JR HOLLAND FOODSERVICE,5499,Catering costs - provisions,99.01,0.00,99.01
Regeneration Economy and Growth,Corporate Property and Land,021242,Catering - County Hall,Supplies and Services,324117,Provisions E324,01-Aug-2022,000008372531128,JR HOLLAND FOODSERVICE,5499,Catering costs - provisions,29.64,0.00,29.64
Children and Young Peoples Services,Head of Childrens Social Care,085365,Children Looked After Team 2,Supplies and Services,364301,Grants to Voluntary Organisations,01-Aug-2022,000008376494178,ARGOS LTD,5310,Hardship,105.00,0.00,105.00
Children and Young Peoples Services,Head of Childrens Social Care,085332,Middlestone Moor CU,Supplies and Services,324117,Provisions E324,01-Aug-2022,000008376494206,ALDI 774-018,5411,Catering costs - provisions,59.33,0.00,59.33
Regeneration Economy and Growth,Planning & Housing,031634,LOCAL LETTINGS AGENCY,Supplies and Services,304245,Equipment and Materials,01-Aug-2022,000008376494212,ARGOS LTD,5310,Materials,70.00,0.00,70.00
Neighbourhoods and Climate Change,Environmental Services,031249,North Pennines - Nature for Climate,Supplies and Services,372009,Subscriptions E372,01-Aug-2022,000008376494218,CUMBRIA COUNTY COU,7375,Subscriptions 372009,150.00,0.00,150.00
Children and Young Peoples Services,Head of Childrens Social Care,085511,Emergency Duty Team,Employees,040149,Recruitment Instruction and Training,01-Aug-2022,000008376494270,PREMIER INN,3811,Training-all costs,89.50,0.00,89.50
Children and Young Peoples Services,Head of Childrens Social Care,085511,Emergency Duty Team,Supplies and Services,348037,Subsistence E348,01-Aug-2022,000008376494272,CROXDALE INN,5812,Subsistence,55.00,0.00,55.00
Regeneration Economy and Growth,Economic Development Level C,030772,CLLD South,Supplies and Services,304259,Equipment and Materials,01-Aug-2022,000008376494280,TOWN HALL,9399,Equipment-purchase and rental,4.80,0.00,4.80
Neighbourhoods and Climate Change,Environmental Services,010367,C&G - South Grounds Maintenance,Supplies and Services,304221,Equipment and Materials,01-Aug-2022,000008376494282,SCREWFIX DIR LTD,5211,Direct materials,118.56,19.76,98.80
Neighbourhoods and Climate Change,Environmental Services,010367,C&G - South Grounds Maintenance,Supplies and Services,304221,Equipment and Materials,01-Aug-2022,000008376494284,SCREWFIX DIR LTD,5211,Direct materials,89.88,14.98,74.90
Neighbourhoods and Climate Change,Environmental Services,010367,C&G - South Grounds Maintenance,Supplies and Services,304221,Equipment and Materials,01-Aug-2022,000008376494284 - 1,SCREWFIX DIR LTD,5211,Direct materials,0.03,,0.03
Neighbourhoods and Climate Change,Environmental Services,011060,C&G - Hardwick Park Catering,Supplies and Services,304259,Equipment and Materials,01-Aug-2022,000008376494294,WWW.NISBETS.COM,5964,Equipment-purchase and rental,55.18,0.00,55.18
Neighbourhoods and Climate Change,Environmental Services,026591,C&G - Hardwick Park,Supplies and Services,304337,Equipment and Materials,01-Aug-2022,000008376494296,WWW.MUTTSBUTTS.COM,5995,Consumables/items for resale,43.90,0.00,43.90
Children and Young Peoples Services,Head of Early Help Inclusion & Vulnerable Children.,085962,Aycliffe Secure - Durham,Supplies and Services,304259,Equipment and Materials,01-Aug-2022,000008376494298,JD SPORTS PLC,5941,Equipment-purchase and rental,-155.00,0.00,-155.00
Children and Young Peoples Services,Head of Childrens Social Care,085342,16 Hickstead Rise (previously 9 Cedar Ave),Supplies and Services,304259,Equipment and Materials,01-Aug-2022,000008376494394,JD SPORTS PLC,5941,Equipment-purchase and rental,50.10,0.00,50.10
Children and Young Peoples Services,Head of Childrens Social Care,085358,Orchard House Sacriston Solo Home,Supplies and Services,304259,Equipment and Materials,01-Aug-2022,000008376494458,J D SPORTS,5941,Equipment-purchase and rental,75.10,0.00,75.10
Children and Young Peoples Services,Head of Childrens Social Care,085332,Middlestone Moor CU,Supplies and Services,328041,Clothing uniforms and laundry E328,01-Aug-2022,000008376494470,ARGOS BISHOP AUCKL,5310,Clothing uniforms and laundry,13.00,0.00,13.00
Neighbourhoods and Climate Change,Environmental Services,010367,C&G - South Grounds Maintenance,Supplies and Services,304999,Equipment and Materials,01-Aug-2022,000008376494486,Snowballs,5251,Misc equipment tools and materials,62.40,0.00,62.40
Children and Young Peoples Services,Head of Childrens Social Care,085334,West Rainton Satelite Home,Supplies and Services,324117,Provisions E324,01-Aug-2022,000008381175452,ESSENTIALS,5499,Catering costs - provisions,13.56,0.00,13.56
Children and Young Peoples Services,Head of Childrens Social Care,085334,West Rainton Satelite Home,Supplies and Services,338099,Services,01-Aug-2022,000008381175456,HAGGERSTON CASTLE,7033,Other services,202.00,0.00,202.00
Children and Young Peoples Services,Head of Childrens Social Care,085333,Coxhoe Satelite Home,Supplies and Services,384237,Miscellaneous Expenses,01-Aug-2022,000008381175608,BLACKPOOL PLEASURE,7999,Recreational exps outings parties,70.00,0.00,70.00
Regeneration Economy and Growth,Corporate Property and Land,030691,Catering - Durham Dales Centre,Supplies and Services,324117,Provisions E324,01-Aug-2022,000008381256466,BATLEYS PERTH,5300,Catering costs - provisions,147.00,24.50,122.50
Regeneration Economy and Growth,Corporate Property and Land,030691,Catering - Durham Dales Centre,Supplies and Services,324117,Provisions E324,01-Aug-2022,000008381256466 - 1,BATLEYS PERTH,5300,Catering costs - provisions,94.09,,94.09
Regeneration Economy and Growth,Culture Sport and Tourism,054812,Gala Theatre - Catering etc,Supplies and Services,324117,Provisions E324,01-Aug-2022,000008381256500,BATLEYS PERTH,5300,Catering costs - provisions,90.42,15.07,75.35
Regeneration Economy and Growth,Culture Sport and Tourism,054812,Gala Theatre - Catering etc,Supplies and Services,324117,Provisions E324,01-Aug-2022,000008381256500 - 1,BATLEYS PERTH,5300,Catering costs - provisions,183.08,,183.08
Regeneration Economy and Growth,Culture Sport and Tourism,054399,Local Delivery-Libraries,Supplies and Services,304403,Equipment and Materials,02-Aug-2022,000008372479882,AMZNBusiness IQ81913G5,5999,Other consumables,8.30,0.00,8.30
Regeneration Economy and Growth,Business Durham CL0850,030689,Inward Investment and Aftercare,Supplies and Services,304403,Equipment and Materials,02-Aug-2022,000008376494172,ADOBE CREATIVE CLOUD,5734,Other consumables,51.98,0.00,51.98
Children and Young Peoples Services,Head of Childrens Social Care,085368,Children Looked After Team 5,Supplies and Services,364301,Grants to Voluntary Organisations,02-Aug-2022,000008376494180,IKEA LTD SHOP ONLINE,5712,Hardship,-69.00,0.00,-69.00
Children and Young Peoples Services,Head of Education and Skills,071801,Selby Cottage Childcare Centre,Supplies and Services,324117,Provisions E324,02-Aug-2022,000008376494182,ASDA GROCERIES ONLINE,5411,Catering costs - provisions,119.78,0.00,119.78
Children and Young Peoples Services,Head of Education and Skills,071801,Selby Cottage Childcare Centre,Supplies and Services,324117,Provisions E324,02-Aug-2022,000008376494184,ASDA GROCERIES ONLINE,5411,Catering costs - provisions,-12.29,0.00,-12.29
Children and Young Peoples Services,Head of Childrens Social Care,085501,Child Care Cases Legal Expenses,Supplies and Services,304403,Equipment and Materials,02-Aug-2022,000008376494194,MIDDLESBROUGH COUNCIL,9399,Other consumables,11.00,0.00,11.00
Children and Young Peoples Services,Head of Education and Skills,075035,DurhamDirections Re-engagement,Supplies and Services,364301,Grants to Voluntary Organisations,02-Aug-2022,000008376494196,SECURITY INDUSTRY AUTH,9399,Hardship,190.00,0.00,190.00
Children and Young Peoples Services,Head of Education and Skills,075035,DurhamDirections Re-engagement,Supplies and Services,304403,Equipment and Materials,02-Aug-2022,000008376494198,AMZ Summerlee UK,5999,Other consumables,-22.49,-3.75,-18.74
Regeneration Economy and Growth,Culture Sport and Tourism,011198,Culture & Sport Management 011198,Supplies and Services,304999,Equipment and Materials,02-Aug-2022,000008376494202,ARTS PROFESSIONAL,5815,Misc equipment tools and materials,285.00,0.00,285.00
Regeneration Economy and Growth,Culture Sport and Tourism,030712,VCD - Project Delivery,Supplies and Services,384199,Miscellaneous Expenses,02-Aug-2022,000008376494204,MAILCHIMP MISC,5968,Other hired and contracted services,289.70,0.00,289.70
Children and Young Peoples Services,Head of Childrens Social Care,085332,Middlestone Moor CU,Supplies and Services,324117,Provisions E324,02-Aug-2022,000008376494208,TESCO STORES 2371,5411,Catering costs - provisions,141.14,0.00,141.14
Adult and Health Services,Head of Adults,055302,Durham Pathways,Supplies and Services,324117,Provisions E324,02-Aug-2022,000008376494290,ASDA STORES LTD 4313,5411,Catering costs - provisions,7.40,0.00,7.40
Regeneration Economy and Growth,Economic Development Level C,030770,Durham Advance,Transport,235057,Public Transport,02-Aug-2022,000008376494300,WWW.GONORTHEAST.CO.UK,4111,Staff travelling,5.60,0.00,5.60
Neighbourhoods and Climate Change,Environmental Services,010301,C&G - North Grounds Maintenance,Supplies and Services,304999,Equipment and Materials,02-Aug-2022,000008376494318,BESCOL LIMITED,5251,Misc equipment tools and materials,36.72,0.00,36.72
Regeneration Economy and Growth,Economic Development Level C,030771,Durham Advance Flexible Fund,Transport,235057,Public Transport,02-Aug-2022,000008376494322,WWW.GONORTHEAST.CO.UK,4111,Staff travelling,80.00,0.00,80.00
Children and Young Peoples Services,Head of Early Help Inclusion & Vulnerable Children.,085954,Walworth,Transfer Payments,515002,Social Services Clients,02-Aug-2022,000008376494324,Footasylum Limited,5651,Pocket money,54.98,0.00,54.98
Children and Young Peoples Services,Head of Early Help Inclusion & Vulnerable Children.,085954,Walworth,Transfer Payments,515002,Social Services Clients,02-Aug-2022,000008376494326,Footasylum Limited,5651,Pocket money,48.94,0.00,48.94
Children and Young Peoples Services,Head of Early Help Inclusion & Vulnerable Children.,085956,Lumley,Supplies and Services,304259,Equipment and Materials,02-Aug-2022,000008376494328,SP CLOUD NINE,5732,Equipment-purchase and rental,139.00,0.00,139.00
Children and Young Peoples Services,Head of Early Help Inclusion & Vulnerable Children.,085956,Lumley,Supplies and Services,384302,Miscellaneous Expenses,02-Aug-2022,000008376494330,Amazon.co.uk 552UA6Q85,5969,Activity expenses,23.52,3.92,19.60
Children and Young Peoples Services,Head of Early Help Inclusion & Vulnerable Children.,085956,Lumley,Supplies and Services,384302,Miscellaneous Expenses,02-Aug-2022,000008376494330 - 1,Amazon.co.uk 552UA6Q85,5969,Activity expenses,0.04,,0.04
Children and Young Peoples Services,Head of Early Help Inclusion & Vulnerable Children.,085956,Lumley,Supplies and Services,384302,Miscellaneous Expenses,02-Aug-2022,000008376494332,AMZNMktplace,5999,Activity expenses,279.95,46.66,233.29
Children and Young Peoples Services,Head of Early Help Inclusion & Vulnerable Children.,085956,Lumley,Transfer Payments,515002,Social Services Clients,02-Aug-2022,000008376494334,AMZNMktplace,5999,Pocket money,14.99,2.50,12.49
Children and Young Peoples Services,Head of Early Help Inclusion & Vulnerable Children.,085956,Lumley,Supplies and Services,384302,Miscellaneous Expenses,02-Aug-2022,000008376494336,AMZNMktplace,5999,Activity expenses,24.99,4.17,20.82
Children and Young Peoples Services,Head of Early Help Inclusion & Vulnerable Children.,085956,Lumley,Transfer Payments,515002,Social Services Clients,02-Aug-2022,000008376494338,PRETTYLITTLETHING.COM,5691,Pocket money,5.00,0.00,5.00
Children and Young Peoples Services,Head of Early Help Inclusion & Vulnerable Children.,085956,Lumley,Supplies and Services,308011,Furniture,02-Aug-2022,000008376494340,ASDA GEORGE COM LEEDS,5411,Furniture repair and replacement,16.95,0.00,16.95
Children and Young Peoples Services,Head of Early Help Inclusion & Vulnerable Children.,085956,Lumley,Supplies and Services,308011,Furniture,02-Aug-2022,000008376494342,NEXT DIRECTORY,5651,Furniture repair and replacement,119.50,0.00,119.50
Children and Young Peoples Services,Head of Early Help Inclusion & Vulnerable Children.,085956,Lumley,Transfer Payments,515002,Social Services Clients,02-Aug-2022,000008376494344,AMZNMktplace,5999,Pocket money,8.99,1.50,7.49
Children and Young Peoples Services,Head of Early Help Inclusion & Vulnerable Children.,085956,Lumley,Supplies and Services,384302,Miscellaneous Expenses,02-Aug-2022,000008376494346,AMZNMktplace,5999,Activity expenses,37.99,6.33,31.66
Resources BK0010,HR & Employee Services,010984,Training and Development,Supplies and Services,312009,Newspapers books and periodicals E312,02-Aug-2022,000008376494364,PROFESSIONAL BOOKS,5192,Newspapers books and periodicals,82.68,0.00,82.68
Children and Young Peoples Services,Head of Childrens Social Care,085364,Children Looked After Team 1,Supplies and Services,340001,Postages E340,02-Aug-2022,000008376494370,POST OFFICE COUNTER,9402,Postages,6.61,0.00,6.61
Children and Young Peoples Services,Head of Childrens Social Care,085366,Children Looked After Team 3,Supplies and Services,384504,Miscellaneous Expenses,02-Aug-2022,000008376494372,STAGECOACH SERVICE,4131,Assistance to asylum seekers,30.65,0.00,30.65
Children and Young Peoples Services,Head of Childrens Social Care,085366,Children Looked After Team 3,Supplies and Services,338045,Services,02-Aug-2022,000008376494374,HM PASSPORT OFFICE,9399,Legal expenses 338045,49.00,0.00,49.00
Children and Young Peoples Services,Head of Childrens Social Care,085366,Children Looked After Team 3,Supplies and Services,338045,Services,02-Aug-2022,000008376494376,HM PASSPORT OFFICE,9399,Legal expenses 338045,75.50,0.00,75.50
Children and Young Peoples Services,Head of Childrens Social Care,085366,Children Looked After Team 3,Supplies and Services,338045,Services,02-Aug-2022,000008376494378,HM PASSPORT OFFICE,9399,Legal expenses 338045,75.50,0.00,75.50
Children and Young Peoples Services,Head of Childrens Social Care,085366,Children Looked After Team 3,Supplies and Services,338045,Services,02-Aug-2022,000008376494380,GEN REGISTER OFFICE,9399,Legal expenses 338045,14.00,0.00,14.00
Children and Young Peoples Services,Head of Childrens Social Care,085366,Children Looked After Team 3,Supplies and Services,338045,Services,02-Aug-2022,000008376494382,GEN REGISTER OFFICE,9399,Legal expenses 338045,14.00,0.00,14.00
Children and Young Peoples Services,Head of Early Help Inclusion & Vulnerable Children.,088115,Young Parents Programme 088115,Supplies and Services,384302,Miscellaneous Expenses,02-Aug-2022,000008376494384,TESCO STORES 6329,5411,Activity expenses,19.84,0.00,19.84
Children and Young Peoples Services,Head of Education and Skills,071802,Louisa Cent Nursery,Supplies and Services,304403,Equipment and Materials,02-Aug-2022,000008376494390,AMZNMktplace,5999,Other consumables,20.88,3.48,17.40
Children and Young Peoples Services,Head of Education and Skills,071802,Louisa Cent Nursery,Supplies and Services,304403,Equipment and Materials,02-Aug-2022,000008376494390 - 1,AMZNMktplace,5999,Other consumables,0.06,,0.06
Regeneration Economy and Growth,Economic Development Level C,030776,LINKCD Flexible Fund,Supplies and Services,324117,Provisions E324,02-Aug-2022,000008376494392,TESCO STORES 2371,5411,Catering costs - provisions,8.90,0.00,8.90
Children and Young Peoples Services,Head of Childrens Social Care,085347,Solo Home The Manse,Supplies and Services,324117,Provisions E324,02-Aug-2022,000008376494396,TESCO STORES 2371,5411,Catering costs - provisions,17.25,0.00,17.25
Children and Young Peoples Services,Head of Early Help Inclusion & Vulnerable Children.,088103,Stanley & Moorside Family Centre,Supplies and Services,364301,Grants to Voluntary Organisations,02-Aug-2022,000008376494406,ASDA GEORGE COM LEEDS,5411,Hardship,269.45,0.00,269.45
Children and Young Peoples Services,Head of Childrens Social Care,085342,16 Hickstead Rise (previously 9 Cedar Ave),Supplies and Services,324117,Provisions E324,02-Aug-2022,000008376494410,TESCO STORES 2916,5411,Catering costs - provisions,7.00,0.00,7.00
Children and Young Peoples Services,Head of Childrens Social Care,085342,16 Hickstead Rise (previously 9 Cedar Ave),Transport,215995,Running Costs of Vehicles,02-Aug-2022,000008376494412,TESCO PAY AT PUMP 4088,5542,Vehicle running expenses,60.83,0.00,60.83
Children and Young Peoples Services,Central Charges (CYPS),070100,Corporate Director CYPS,Supplies and Services,352001,Conference Expenses,02-Aug-2022,000008376494416,WWW.ADASS.ORG.UK,8699,Conferencesseminars fees etc,594.00,0.00,594.00
Children and Young Peoples Services,Head of Childrens Social Care,085369,Care Leavers Team 1,Supplies and Services,364354,Grants to Voluntary Organisations,02-Aug-2022,000008376494418,MAGUIRE TA LTD,5713,Supervised Spend - Setting Up Home Allowance,138.49,0.00,138.49
Regeneration Economy and Growth,Culture Sport and Tourism,011204,Festival and Events,Supplies and Services,304403,Equipment and Materials,02-Aug-2022,000008376494420,AMZNMKTPLACE AMAZON.CO,5999,Other consumables,11.99,2.00,9.99
Children and Young Peoples Services,Head of Childrens Social Care,085358,Orchard House Sacriston Solo Home,Supplies and Services,324117,Provisions E324,02-Aug-2022,000008376494460,ASDA GROCERIES ONLINE,5411,Catering costs - provisions,199.65,0.00,199.65
Children and Young Peoples Services,Head of Childrens Social Care,085358,Orchard House Sacriston Solo Home,Supplies and Services,324117,Provisions E324,02-Aug-2022,000008376494462,TESCO STORES 6334,5411,Catering costs - provisions,39.35,0.00,39.35
Children and Young Peoples Services,Head of Childrens Social Care,085332,Middlestone Moor CU,Supplies and Services,304403,Equipment and Materials,02-Aug-2022,000008376494472,AMZNMKTPLACE AMAZON.CO,5999,Other consumables,28.79,0.00,28.79
Regeneration Economy and Growth,Corporate Property and Land,069810,Health and Safety 069810,Supplies and Services,304403,Equipment and Materials,02-Aug-2022,000008376494474,AMZNBusiness VC9GA00J5,5999,Other consumables,29.99,5.00,24.99
Children and Young Peoples Services,Head of Childrens Social Care,085341,High Etherley Satelite Home,Supplies and Services,324117,Provisions E324,02-Aug-2022,000008376494480,TESCO STORES 6329,5411,Catering costs - provisions,12.15,0.00,12.15
Adult and Health Services,Head of Adults,055309,Peterlee Pathways,Supplies and Services,304259,Equipment and Materials,02-Aug-2022,000008376494492,CURRYS ONLINE,5732,Equipment-purchase and rental,354.97,0.00,354.97
Regeneration Economy and Growth,Planning & Housing,031576,B& B - Temp Accom,Supplies and Services,364320,Grants to Voluntary Organisations,02-Aug-2022,000008376494494,TRAVELODGE,3615,Accommodation assistance,62.20,0.00,62.20
Regeneration Economy and Growth,Planning & Housing,031576,B& B - Temp Accom,Supplies and Services,364320,Grants to Voluntary Organisations,02-Aug-2022,000008376494496,TRAVELODGE,3615,Accommodation assistance,82.60,0.00,82.60
Regeneration Economy and Growth,Culture Sport and Tourism,011265,Empire Theatre (Operations),Supplies and Services,324117,Provisions E324,02-Aug-2022,000008376539332,JR HOLLAND FOODSERVICE,5499,Catering costs - provisions,27.50,0.00,27.50
Regeneration Economy and Growth,Corporate Property and Land,021234,Catering - Locomotion,Supplies and Services,324117,Provisions E324,02-Aug-2022,000008376539338,JR HOLLAND FOODSERVICE,5499,Catering costs - provisions,30.00,0.00,30.00
Regeneration Economy and Growth,Corporate Property and Land,021234,Catering - Locomotion,Supplies and Services,324117,Provisions E324,02-Aug-2022,000008376539342,JR HOLLAND FOODSERVICE,5499,Catering costs - provisions,5.40,0.00,5.40
Regeneration Economy and Growth,Culture Sport and Tourism,011263,Louisa Centre 011263,Supplies and Services,324117,Provisions E324,02-Aug-2022,000008376539346,JR HOLLAND FOODSERVICE,5499,Catering costs - provisions,12.84,0.00,12.84
Regeneration Economy and Growth,Culture Sport and Tourism,011263,Louisa Centre 011263,Supplies and Services,324117,Provisions E324,02-Aug-2022,000008376539348,JR HOLLAND FOODSERVICE,5499,Catering costs - provisions,70.05,0.00,70.05
Regeneration Economy and Growth,Culture Sport and Tourism,054812,Gala Theatre - Catering etc,Supplies and Services,324117,Provisions E324,02-Aug-2022,000008376539352,JR HOLLAND FOODSERVICE,5499,Catering costs - provisions,86.87,0.00,86.87
Regeneration Economy and Growth,Corporate Property and Land,021242,Catering - County Hall,Supplies and Services,324117,Provisions E324,02-Aug-2022,000008376539358,JR HOLLAND FOODSERVICE,5499,Catering costs - provisions,34.93,0.00,34.93
Regeneration Economy and Growth,Business Durham CL0850,030689,Inward Investment and Aftercare,Supplies and Services,342222,Computers and Communications,02-Aug-2022,000008381175388,FASTHOSTS,4816,Comp hardware purch-network servers,63.00,0.00,63.00
Regeneration Economy and Growth,Business Durham CL0850,030689,Inward Investment and Aftercare,Supplies and Services,342222,Computers and Communications,02-Aug-2022,000008381175392,FASTHOSTS,4816,Comp hardware purch-network servers,75.06,0.00,75.06
Children and Young Peoples Services,Head of Childrens Social Care,085347,Solo Home The Manse,Supplies and Services,304403,Equipment and Materials,02-Aug-2022,000008381175406,AMZNMKTPLACE AMAZON.CO,5999,Other consumables,158.18,0.00,158.18
Neighbourhoods and Climate Change,Environmental Services,010367,C&G - South Grounds Maintenance,Supplies and Services,304221,Equipment and Materials,02-Aug-2022,000008381175588,B & Q 1332,5200,Direct materials,70.91,11.82,59.09
Children and Young Peoples Services,Head of Early Help Inclusion & Vulnerable Children.,085954,Walworth,Transfer Payments,515002,Social Services Clients,02-Aug-2022,000008381175656,JD SPORTS INTERNET,5941,Pocket money,23.99,0.00,23.99
Children and Young Peoples Services,Head of Early Help Inclusion & Vulnerable Children.,085956,Lumley,Transfer Payments,515002,Social Services Clients,02-Aug-2022,000008381175660,JD SPORTS INTERNET,5941,Pocket money,78.99,0.00,78.99
Children and Young Peoples Services,Head of Early Help Inclusion & Vulnerable Children.,085956,Lumley,Supplies and Services,384302,Miscellaneous Expenses,02-Aug-2022,000008381175662,WWW.GAME.CO.UK,5945,Activity expenses,16.17,0.00,16.17
Children and Young Peoples Services,Head of Early Help Inclusion & Vulnerable Children.,085956,Lumley,Supplies and Services,384302,Miscellaneous Expenses,02-Aug-2022,000008381175670,AMZNMKTPLACE AMAZON.CO,5999,Activity expenses,5.99,1.00,4.99
Adult and Health Services,Head of Adults,055643,Hawthorn House LD Respite Unit,Supplies and Services,324117,Provisions E324,02-Aug-2022,000008381175806,SAINSBURYS S/MKTS,5411,Catering costs - provisions,10.74,0.00,10.74
Regeneration Economy and Growth,Culture Sport and Tourism,011204,Festival and Events,Supplies and Services,304403,Equipment and Materials,02-Aug-2022,000008381175904,AMZNMKTPLACE AMAZON.CO,5999,Other consumables,7.59,1.27,6.32
Children and Young Peoples Services,Head of Early Help Inclusion & Vulnerable Children.,088107,Wheatley Hill & N. Aycliffe Family Centre,Supplies and Services,324117,Provisions E324,02-Aug-2022,000008381175960,Wm Morrisons Store Pic,5411,Catering costs - provisions,80.27,0.00,80.27
Children and Young Peoples Services,Head of Childrens Social Care,085611,Families First Stanley,Supplies and Services,304403,Equipment and Materials,02-Aug-2022,000008381175986,AMZNMKTPLACE AMAZON.CO,5999,Other consumables,18.99,3.17,15.82
Regeneration Economy and Growth,Corporate Property and Land,010525,Catering - Green Lane,Supplies and Services,324117,Provisions E324,02-Aug-2022,000008381256454,BATLEYS PERTH,5300,Catering costs - provisions,189.30,31.55,157.75
Regeneration Economy and Growth,Corporate Property and Land,010525,Catering - Green Lane,Supplies and Services,324117,Provisions E324,02-Aug-2022,000008381256454 - 1,BATLEYS PERTH,5300,Catering costs - provisions,78.30,,78.30
Regeneration Economy and Growth,Corporate Property and Land,021234,Catering - Locomotion,Supplies and Services,324117,Provisions E324,02-Aug-2022,000008381256494,BATLEYS PERTH,5300,Catering costs - provisions,209.40,34.90,174.50
Regeneration Economy and Growth,Corporate Property and Land,021234,Catering - Locomotion,Supplies and Services,324117,Provisions E324,02-Aug-2022,000008381256494 - 1,BATLEYS PERTH,5300,Catering costs - provisions,62.41,,62.41
Children and Young Peoples Services,Head of Childrens Social Care,085334,West Rainton Satelite Home,Supplies and Services,324117,Provisions E324,02-Aug-2022,000008386263124,ESSENTIALS,5499,Catering costs - provisions,4.69,0.00,4.69
Children and Young Peoples Services,Head of Childrens Social Care,085334,West Rainton Satelite Home,Supplies and Services,324117,Provisions E324,02-Aug-2022,000008386263126,ESSENTIALS,5499,Catering costs - provisions,3.49,0.00,3.49
Children and Young Peoples Services,Head of Childrens Social Care,085334,West Rainton Satelite Home,Supplies and Services,324117,Provisions E324,02-Aug-2022,000008386263128,ESSENTIALS,5499,Catering costs - provisions,4.84,0.00,4.84
Children and Young Peoples Services,Head of Childrens Social Care,085334,West Rainton Satelite Home,Supplies and Services,324117,Provisions E324,02-Aug-2022,000008386263130,ESSENTIALS,5499,Catering costs - provisions,6.48,0.00,6.48
Children and Young Peoples Services,Head of Childrens Social Care,085334,West Rainton Satelite Home,Supplies and Services,324117,Provisions E324,02-Aug-2022,000008386263132,ESSENTIALS,5499,Catering costs - provisions,6.58,0.00,6.58
Children and Young Peoples Services,Head of Childrens Social Care,085334,West Rainton Satelite Home,Supplies and Services,338099,Services,02-Aug-2022,000008386263134,HAGGERSTON CASTLE,7033,Other services,8.17,0.00,8.17
Children and Young Peoples Services,Head of Childrens Social Care,085334,West Rainton Satelite Home,Supplies and Services,338099,Services,02-Aug-2022,000008386263136,HAGGERSTON CASTLE,7033,Other services,39.99,0.00,39.99
Children and Young Peoples Services,Head of Early Help Inclusion & Vulnerable Children.,085956,Lumley,Supplies and Services,384302,Miscellaneous Expenses,03-Aug-2022,000008376494348,AMZNMktplace,5999,Activity expenses,3.99,0.67,3.32
Children and Young Peoples Services,Head of Childrens Social Care,085501,Child Care Cases Legal Expenses,Supplies and Services,304403,Equipment and Materials,03-Aug-2022,000008381175402,STOCKTON BOROUGH COUNC,9399,Other consumables,11.00,0.00,11.00
Children and Young Peoples Services,Head of Childrens Social Care,085347,Solo Home The Manse,Supplies and Services,304403,Equipment and Materials,03-Aug-2022,000008381175410,AMZNMktplace,5999,Other consumables,64.43,0.00,64.43
Children and Young Peoples Services,Head of Education and Skills,075035,DurhamDirections Re-engagement,Supplies and Services,364301,Grants to Voluntary Organisations,03-Aug-2022,000008381175418,AMZNMktplace,5999,Hardship,29.70,4.95,24.75
Children and Young Peoples Services,Head of Education and Skills,075029,Poverty Action Group,Supplies and Services,304403,Equipment and Materials,03-Aug-2022,000008381175422,AMZNBusiness PD1IM9HK5,5999,Other consumables,16.54,2.76,13.78
Children and Young Peoples Services,Head of Childrens Social Care,085332,Middlestone Moor CU,Supplies and Services,324117,Provisions E324,03-Aug-2022,000008381175432,HOME BARGAINS SPENNYMO,5251,Catering costs - provisions,1.98,0.00,1.98
Children and Young Peoples Services,Head of Childrens Social Care,085332,Middlestone Moor CU,Supplies and Services,324117,Provisions E324,03-Aug-2022,000008381175436,ASDA SUPERSTORE 4987,5411,Catering costs - provisions,24.60,0.00,24.60
Children and Young Peoples Services,Head of Childrens Social Care,085332,Middlestone Moor CU,Supplies and Services,304999,Equipment and Materials,03-Aug-2022,000008381175438,ASDA SUPERSTORE 4987,5411,Misc equipment tools and materials,2.50,0.00,2.50
Regeneration Economy and Growth,Economic Development Level C,030776,LINKCD Flexible Fund,Supplies and Services,348037,Subsistence E348,03-Aug-2022,000008381175492,CHESTER LE STREET,5814,Subsistence,6.10,1.02,5.08
Children and Young Peoples Services,Head of Childrens Social Care,085624,Families First Crook and Barnard Castle,Supplies and Services,352001,Conference Expenses,03-Aug-2022,000008381175508,PAYPAL C ADAMSON,8398,Conferencesseminars fees etc,30.00,0.00,30.00
Neighbourhoods and Climate Change,Environmental Services,010367,C&G - South Grounds Maintenance,Supplies and Services,304221,Equipment and Materials,03-Aug-2022,000008381175536,SPECIALIST TIMBER AND,5211,Direct materials,54.38,0.00,54.38
Regeneration Economy and Growth,Corporate Property and Land,021242,Catering - County Hall,Supplies and Services,304259,Equipment and Materials,03-Aug-2022,000008381175542,AMZN Digital DF0LS1B55,5735,Equipment-purchase and rental,0.99,0.00,0.99
Children and Young Peoples Services,Head of Early Help Inclusion & Vulnerable Children.,085962,Aycliffe Secure - Durham,Supplies and Services,304403,Equipment and Materials,03-Aug-2022,000008381175612,AMZNMktplace,5999,Other consumables,9.98,1.66,8.32
Children and Young Peoples Services,Head of Early Help Inclusion & Vulnerable Children.,085962,Aycliffe Secure - Durham,Supplies and Services,304403,Equipment and Materials,03-Aug-2022,000008381175616,AMZNMktplace,5999,Other consumables,12.90,2.15,10.75
Regeneration Economy and Growth,Economic Development Level C,030771,Durham Advance Flexible Fund,Supplies and Services,304403,Equipment and Materials,03-Aug-2022,000008381175650,AMZNMktplace,5999,Other consumables,48.98,8.16,40.82
Children and Young Peoples Services,Head of Early Help Inclusion & Vulnerable Children.,085954,Walworth,Transfer Payments,515002,Social Services Clients,03-Aug-2022,000008381175664,Nike GBP,5655,Pocket money,109.92,18.32,91.60
Children and Young Peoples Services,Head of Early Help Inclusion & Vulnerable Children.,085954,Walworth,Transfer Payments,515002,Social Services Clients,03-Aug-2022,000008381175664 - 1,Nike GBP,5655,Pocket money,0.03,,0.03
Children and Young Peoples Services,Head of Early Help Inclusion & Vulnerable Children.,085956,Lumley,Supplies and Services,384302,Miscellaneous Expenses,03-Aug-2022,000008381175668,AMZNMKTPLACE AMAZON.CO,5999,Activity expenses,10.60,1.77,8.83
Children and Young Peoples Services,Head of Early Help Inclusion & Vulnerable Children.,085962,Aycliffe Secure - Durham,Transfer Payments,515002,Social Services Clients,03-Aug-2022,000008381175674,SP RETRO ROK SHOP LT,5399,Pocket money,39.90,0.00,39.90
Children and Young Peoples Services,Head of Early Help Inclusion & Vulnerable Children.,085956,Lumley,Transfer Payments,515002,Social Services Clients,03-Aug-2022,000008381175676,SP GYMKING,5655,Pocket money,41.99,7.00,34.99
Children and Young Peoples Services,Head of Early Help Inclusion & Vulnerable Children.,085956,Lumley,Transfer Payments,515002,Social Services Clients,03-Aug-2022,000008381175680,AMZNMktplace,5999,Pocket money,14.98,0.00,14.98
Children and Young Peoples Services,Head of Early Help Inclusion & Vulnerable Children.,085956,Lumley,Supplies and Services,384302,Miscellaneous Expenses,03-Aug-2022,000008381175682,AMZNMktplace,5999,Activity expenses,12.99,2.17,10.82
Children and Young Peoples Services,Head of Early Help Inclusion & Vulnerable Children.,085962,Aycliffe Secure - Durham,Supplies and Services,324117,Provisions E324,03-Aug-2022,000008381175686,TESCO STORES 6329,5411,Catering costs - provisions,113.94,0.00,113.94
Children and Young Peoples Services,Head of Early Help Inclusion & Vulnerable Children.,085954,Walworth,Transfer Payments,515002,Social Services Clients,03-Aug-2022,000008381175690,AMZNMktplace,5999,Pocket money,39.99,6.67,33.32
Regeneration Economy and Growth,Culture Sport and Tourism,054399,Local Delivery-Libraries,Supplies and Services,304403,Equipment and Materials,03-Aug-2022,000008381175714,AMZNBusiness N643P0OC5,5999,Other consumables,8.99,0.00,8.99
Resources BK0010,HR & Employee Services,010984,Training and Development,Employees,040149,Recruitment Instruction and Training,03-Aug-2022,000008381175718,PAYPAL NPORS LTD,8699,Training-all costs,96.00,0.00,96.00
Resources BK0010,HR & Employee Services,010984,Training and Development,Employees,040149,Recruitment Instruction and Training,03-Aug-2022,000008381175722,WWW.CSCS.UK.COM,8699,Training-all costs,72.00,0.00,72.00
Neighbourhoods and Climate Change,Environmental Services,031238,North Pennines - Tees Swale,Supplies and Services,304999,Equipment and Materials,03-Aug-2022,000008381175724,SP YORKSHIRE TRADING,5331,Misc equipment tools and materials,59.97,0.00,59.97
Neighbourhoods and Climate Change,Environmental Services,031238,North Pennines - Tees Swale,Supplies and Services,304999,Equipment and Materials,03-Aug-2022,000008381175728,BOOTWASH,5399,Misc equipment tools and materials,139.50,0.00,139.50
Children and Young Peoples Services,Head of Early Help Inclusion & Vulnerable Children.,088107,Wheatley Hill & N. Aycliffe Family Centre,Supplies and Services,304259,Equipment and Materials,03-Aug-2022,000008381175732,AMZNMktplace,5999,Equipment-purchase and rental,13.92,2.32,11.60
Children and Young Peoples Services,Head of Early Help Inclusion & Vulnerable Children.,088107,Wheatley Hill & N. Aycliffe Family Centre,Supplies and Services,304259,Equipment and Materials,03-Aug-2022,000008381175732 - 1,AMZNMktplace,5999,Equipment-purchase and rental,0.04,,0.04
Children and Young Peoples Services,Head of Early Help Inclusion & Vulnerable Children.,088107,Wheatley Hill & N. Aycliffe Family Centre,Supplies and Services,304259,Equipment and Materials,03-Aug-2022,000008381175736,AMZNMktplace,5999,Equipment-purchase and rental,17.98,3.00,14.98
Adult and Health Services,Head of Adults,052760,OP Management,Supplies and Services,304403,Equipment and Materials,03-Aug-2022,000008381175766,GEN REGISTER OFFICE,9399,Other consumables,11.00,0.00,11.00
Dedicated Schools Grant BG0015,DSG Schools Block,418516,Belmont Community School 004185 - Marketing,Supplies and Services,304403,Equipment and Materials,03-Aug-2022,000008381175778,AMZNMktplace,5999,Other consumables,61.94,10.34,51.60
Children and Young Peoples Services,Head of Childrens Social Care,085364,Children Looked After Team 1,Supplies and Services,364301,Grants to Voluntary Organisations,03-Aug-2022,000008381175786,RAWCLIFFES STOCKTON,5137,Hardship,43.93,0.00,43.93
Children and Young Peoples Services,Head of Childrens Social Care,085368,Children Looked After Team 5,Supplies and Services,364340,Grants to Voluntary Organisations,03-Aug-2022,000008381175790,STAGECOACH SERVICE,4131,Contact expenses,26.57,0.00,26.57
Adult and Health Services,Head of Adults,055643,Hawthorn House LD Respite Unit,Supplies and Services,324117,Provisions E324,03-Aug-2022,000008381175810,ASDA STORES LTD 4313,5411,Catering costs - provisions,6.77,0.00,6.77
Regeneration Economy and Growth,Corporate Property and Land,021600,Cleaning - General,Premises,145015,Cleaning and Domestic Supplies,03-Aug-2022,000008381175822,CURRYS ONLINE,5732,Cleaning and domestic equipment,"1,175.00",195.83,979.17
Children and Young Peoples Services,Head of Childrens Social Care,085341,High Etherley Satelite Home,Supplies and Services,304403,Equipment and Materials,03-Aug-2022,000008381175840,AMZNMKTPLACE AMAZON.CO,5999,Other consumables,3.92,0.65,3.27
Children and Young Peoples Services,Head of Childrens Social Care,085363,Childrens Permanence Team,Supplies and Services,338045,Services,03-Aug-2022,000008381175856,MIDDLESBROUGH COUNCIL,9399,Legal expenses 338045,11.00,0.00,11.00
Regeneration Economy and Growth,Economic Development Level C,030771,Durham Advance Flexible Fund,Supplies and Services,348037,Subsistence E348,03-Aug-2022,000008381175880,CHESTER LE STREET,5814,Subsistence,8.40,0.00,8.40
Children and Young Peoples Services,Head of Early Help Inclusion & Vulnerable Children.,085918,Price Training 75 Proudfoot Drive,Supplies and Services,304259,Equipment and Materials,03-Aug-2022,000008381175884,WWW.POWERHOUSEDIRECT.C,5199,Equipment-purchase and rental,-599.88,0.00,-599.88
Children and Young Peoples Services,Head of Childrens Social Care,085364,Children Looked After Team 1,Supplies and Services,364320,Grants to Voluntary Organisations,03-Aug-2022,000008381175888,Hotel at Booking.com,7011,Accommodation assistance,523.08,0.00,523.08
Children and Young Peoples Services,Head of Childrens Social Care,085368,Children Looked After Team 5,Transport,235073,Public Transport,03-Aug-2022,000008381175892,Trainline.COM,4112,Travel-clients/students/children,36.37,0.00,36.37
Regeneration Economy and Growth,Planning & Housing,031704,Care Connect - CCTV Countywide,Supplies and Services,384956,Miscellaneous Expenses,03-Aug-2022,000008381175898,SECURITY INDUSTRY AUTH,9399,Licences,190.00,0.00,190.00
Regeneration Economy and Growth,Planning & Housing,031704,Care Connect - CCTV Countywide,Supplies and Services,384956,Miscellaneous Expenses,03-Aug-2022,000008381175902,SECURITY INDUSTRY AUTH,9399,Licences,190.00,0.00,190.00
Neighbourhoods and Climate Change,Environmental Services,010367,C&G - South Grounds Maintenance,Supplies and Services,304403,Equipment and Materials,03-Aug-2022,000008381175924,MAXWELLS D I Y,5231,Other consumables,14.40,0.00,14.40
Children and Young Peoples Services,Head of Childrens Social Care,085351,Framwellgate Moor CU,Supplies and Services,328041,Clothing uniforms and laundry E328,03-Aug-2022,000008381175940,Footasylum Limited,5651,Clothing uniforms and laundry,105.99,0.00,105.99
Regeneration Economy and Growth,Culture Sport and Tourism,054233,Bishop Auckland Town Hall Library,Supplies and Services,324117,Provisions E324,03-Aug-2022,000008381175970,ASDA STORES,5411,Catering costs - provisions,10.80,0.00,10.80
Adult and Health Services,Head of Adults,052714,Development and Learning AHS 052714,Supplies and Services,342033,Computers and Communications,03-Aug-2022,000008381175976,MIRO.COM,7372,Computer hardware,157.66,0.00,157.66
Adult and Health Services,Head of Adults,052891,Adult Care Transformation,Supplies and Services,304403,Equipment and Materials,03-Aug-2022,000008381175988,AMZNBusiness E80X31N95,5999,Other consumables,12.84,0.00,12.84
Regeneration Economy and Growth,Communications Management,060270,Communications and Marketing,Supplies and Services,336005,Advertising E336,03-Aug-2022,000008381175994,FACEBK DMTUDEK4B2,7311,Advertising other than for staff,500.00,0.00,500.00
Children and Young Peoples Services,Head of Education and Skills,070168,School Games Organiser,Supplies and Services,304403,Equipment and Materials,03-Aug-2022,000008381176046,AMZNMKTPLACE AMAZON.CO,5999,Other consumables,-146.03,0.00,-146.03
Children and Young Peoples Services,Head of Early Help Inclusion & Vulnerable Children.,088101,Bullion Lane & Brandon Family Centre,Supplies and Services,304403,Equipment and Materials,03-Aug-2022,000008381176062,AMZNMKTPLACE AMAZON.CO,5999,Other consumables,49.99,8.33,41.66
Children and Young Peoples Services,Head of Early Help Inclusion & Vulnerable Children.,088101,Bullion Lane & Brandon Family Centre,Supplies and Services,304403,Equipment and Materials,03-Aug-2022,000008381176066,AMZNMktplace,5999,Other consumables,21.00,3.50,17.50
Adult and Health Services,Head of Adults,055309,Peterlee Pathways,Supplies and Services,304999,Equipment and Materials,03-Aug-2022,000008381176078,HOME BARGAINS PETERLEE,5251,Misc equipment tools and materials,5.98,0.00,5.98
Regeneration Economy and Growth,Planning & Housing,031576,B& B - Temp Accom,Supplies and Services,364320,Grants to Voluntary Organisations,03-Aug-2022,000008381176082,TRAVELODGE,3615,Accommodation assistance,81.58,0.00,81.58
Regeneration Economy and Growth,Planning & Housing,031576,B& B - Temp Accom,Supplies and Services,364320,Grants to Voluntary Organisations,03-Aug-2022,000008381176086,TRAVELODGE,3615,Accommodation assistance,81.58,0.00,81.58
Regeneration Economy and Growth,Planning & Housing,031576,B& B - Temp Accom,Supplies and Services,364320,Grants to Voluntary Organisations,03-Aug-2022,000008381176090,HOTEL 52 STANLEY,7011,Accommodation assistance,161.80,0.00,161.80
Children and Young Peoples Services,Head of Early Help Inclusion & Vulnerable Children.,088107,Wheatley Hill & N. Aycliffe Family Centre,Supplies and Services,304403,Equipment and Materials,03-Aug-2022,000008381176094,AMZNMktplace,5999,Other consumables,46.68,0.00,46.68
Regeneration Economy and Growth,Corporate Property and Land,010525,Catering - Green Lane,Supplies and Services,324117,Provisions E324,03-Aug-2022,000008381256456,JR HOLLAND FOODSERVICE,5499,Catering costs - provisions,7.50,0.00,7.50
Regeneration Economy and Growth,Corporate Property and Land,010525,Catering - Green Lane,Supplies and Services,324117,Provisions E324,03-Aug-2022,000008381256458,JR HOLLAND FOODSERVICE,5499,Catering costs - provisions,32.35,0.00,32.35
Regeneration Economy and Growth,Corporate Property and Land,011296,Catering - Dunes,Supplies and Services,324117,Provisions E324,03-Aug-2022,000008381256460,JR HOLLAND FOODSERVICE,5499,Catering costs - provisions,61.18,0.00,61.18
Regeneration Economy and Growth,Corporate Property and Land,030691,Catering - Durham Dales Centre,Supplies and Services,324117,Provisions E324,03-Aug-2022,000008381256468,JR HOLLAND FOODSERVICE,5499,Catering costs - provisions,209.14,0.00,209.14
Regeneration Economy and Growth,Corporate Property and Land,030691,Catering - Durham Dales Centre,Supplies and Services,324117,Provisions E324,03-Aug-2022,000008381256470,JR HOLLAND FOODSERVICE,5499,Catering costs - provisions,15.10,0.00,15.10
Adult and Health Services,Head of Adults,055643,Hawthorn House LD Respite Unit,Supplies and Services,324117,Provisions E324,03-Aug-2022,000008381256476,JR HOLLAND FOODSERVICE,5499,Catering costs - provisions,13.29,0.00,13.29
Regeneration Economy and Growth,Corporate Property and Land,021234,Catering - Locomotion,Supplies and Services,324117,Provisions E324,03-Aug-2022,000008381256496,JR HOLLAND FOODSERVICE,5499,Catering costs - provisions,6.20,0.00,6.20
Regeneration Economy and Growth,Corporate Property and Land,021234,Catering - Locomotion,Supplies and Services,324117,Provisions E324,03-Aug-2022,000008381256498,JR HOLLAND FOODSERVICE,5499,Catering costs - provisions,17.81,0.00,17.81
Regeneration Economy and Growth,Culture Sport and Tourism,054812,Gala Theatre - Catering etc,Supplies and Services,324117,Provisions E324,03-Aug-2022,000008381256502,JR HOLLAND FOODSERVICE,5499,Catering costs - provisions,21.98,0.00,21.98
Regeneration Economy and Growth,Corporate Property and Land,021242,Catering - County Hall,Supplies and Services,324117,Provisions E324,03-Aug-2022,000008381256504,JR HOLLAND FOODSERVICE,5499,Catering costs - provisions,6.30,0.00,6.30
Regeneration Economy and Growth,Corporate Property and Land,021324,Catering - Meadowfield,Supplies and Services,324117,Provisions E324,03-Aug-2022,000008381256506,JR HOLLAND FOODSERVICE,5499,Catering costs - provisions,64.62,0.00,64.62
Children and Young Peoples Services,Head of Childrens Social Care,085341,High Etherley Satelite Home,Supplies and Services,348037,Subsistence E348,03-Aug-2022,000008386263112,GREGGS PLC,5812,Subsistence,4.60,0.00,4.60
Regeneration Economy and Growth,Culture Sport and Tourism,030705,Visit County Durham 030705,Supplies and Services,304259,Equipment and Materials,03-Aug-2022,000008386263116,FASTHOSTS,4816,Equipment-purchase and rental,7.54,1.26,6.28
Regeneration Economy and Growth,Planning & Housing,031634,LOCAL LETTINGS AGENCY,Supplies and Services,304245,Equipment and Materials,03-Aug-2022,000008386263140,ARGOS LTD,5310,Materials,50.00,0.00,50.00
Neighbourhoods and Climate Change,Environmental Services,010367,C&G - South Grounds Maintenance,Supplies and Services,304221,Equipment and Materials,03-Aug-2022,000008386263158,WWW.SCREWFIX.COM,5211,Direct materials,9.80,1.63,8.17
Children and Young Peoples Services,Head of Childrens Social Care,085358,Orchard House Sacriston Solo Home,Supplies and Services,304259,Equipment and Materials,03-Aug-2022,000008386263194,AO RETAIL LIMITED,5722,Equipment-purchase and rental,409.00,0.00,409.00
Neighbourhoods and Climate Change,Environmental Services,011060,C&G - Hardwick Park Catering,Supplies and Services,304259,Equipment and Materials,03-Aug-2022,000008386263214,WWW.NISBETS.COM,5964,Equipment-purchase and rental,98.37,0.00,98.37
Children and Young Peoples Services,Head of Early Help Inclusion & Vulnerable Children.,085962,Aycliffe Secure - Durham,Supplies and Services,304403,Equipment and Materials,03-Aug-2022,000008386263216,CEX LTD,5065,Other consumables,191.80,0.00,191.80
Children and Young Peoples Services,Head of Early Help Inclusion & Vulnerable Children.,085962,Aycliffe Secure - Durham,Transfer Payments,515002,Social Services Clients,03-Aug-2022,000008386263230,JD SPORTS INTERNET,5941,Pocket money,68.99,0.00,68.99
Children and Young Peoples Services,Head of Early Help Inclusion & Vulnerable Children.,085956,Lumley,Transfer Payments,515002,Social Services Clients,03-Aug-2022,000008386263236,AMZNMKTPLACE AMAZON.CO,5999,Pocket money,8.99,1.50,7.49
Children and Young Peoples Services,Head of Childrens Social Care,085334,West Rainton Satelite Home,Supplies and Services,344033,Telephones,03-Aug-2022,000008386263244,O2 UK PAY & GO,4814,Telephones general-all costs,10.00,0.00,10.00
Neighbourhoods and Climate Change,Environmental Services,031202,North Pennines - Peatscapes,Transport,235057,Public Transport,03-Aug-2022,000008386263336,Weardale Motor Service,4111,Staff travelling,71.00,0.00,71.00
Children and Young Peoples Services,Head of Early Help Inclusion & Vulnerable Children.,088103,Stanley & Moorside Family Centre,Supplies and Services,384302,Miscellaneous Expenses,03-Aug-2022,000008386263344,WWW.THEWORKS.CO.UK,5310,Activity expenses,259.00,0.00,259.00
Children and Young Peoples Services,Head of Childrens Social Care,085363,Childrens Permanence Team,Supplies and Services,338045,Services,03-Aug-2022,000008386263346,Durham County CNCL,9399,Legal expenses 338045,44.00,0.00,44.00
Regeneration Economy and Growth,Business Durham CL0850,030690,Durham Dales Centre - Tourist Information Centre,Supplies and Services,304221,Equipment and Materials,03-Aug-2022,000008386263362,A AND K HOSIERY LTD,5099,Direct materials,-3.36,0.00,-3.36
Children and Young Peoples Services,Head of Education and Skills,071802,Louisa Cent Nursery,Supplies and Services,324117,Provisions E324,03-Aug-2022,000008386263372,ALDI STORES,5411,Catering costs - provisions,63.03,0.00,63.03
Children and Young Peoples Services,Head of Early Help Inclusion & Vulnerable Children.,088107,Wheatley Hill & N. Aycliffe Family Centre,Supplies and Services,324117,Provisions E324,03-Aug-2022,000008386263398,Wm Morrisons Store Pic,5411,Catering costs - provisions,106.98,0.00,106.98
Regeneration Economy and Growth,Culture Sport and Tourism,054233,Bishop Auckland Town Hall Library,Supplies and Services,324117,Provisions E324,03-Aug-2022,000008386263404,WM MORRISONS STORE,5411,Catering costs - provisions,36.00,0.00,36.00
Children and Young Peoples Services,Head of Childrens Social Care,085332,Middlestone Moor CU,Supplies and Services,344033,Telephones,03-Aug-2022,000008386263408,THREE,4814,Telephones general-all costs,10.00,0.00,10.00
Children and Young Peoples Services,Head of Childrens Social Care,085332,Middlestone Moor CU,Supplies and Services,304403,Equipment and Materials,03-Aug-2022,000008386263412,AMZNMKTPLACE AMAZON.CO,5999,Other consumables,15.94,0.00,15.94
Regeneration Economy and Growth,Business Durham CL0850,030694,Plexus 2,Supplies and Services,352001,Conference Expenses,03-Aug-2022,000008386263430,TVLICENSING.CO.UK,7392,Conferencesseminars fees etc,159.00,0.00,159.00
Regeneration Economy and Growth,Business Durham CL0850,030694,Plexus 2,Supplies and Services,352001,Conference Expenses,03-Aug-2022,000008386263432,TVLICENSING.CO.UK,7392,Conferencesseminars fees etc,159.00,0.00,159.00
Regeneration Economy and Growth,Corporate Property and Land,030691,Catering - Durham Dales Centre,Supplies and Services,324117,Provisions E324,03-Aug-2022,000008386263438,WM MORRISONS STORE,5411,Catering costs - provisions,24.00,0.00,24.00
Regeneration Economy and Growth,Corporate Property and Land,011296,Catering - Dunes,Supplies and Services,384999,Miscellaneous Expenses,03-Aug-2022,000008386304186,G M PACKAGING UK LIMIT,5046,Other expenses,243.50,0.00,243.50
Regeneration Economy and Growth,Corporate Property and Land,021234,Catering - Locomotion,Supplies and Services,384999,Miscellaneous Expenses,03-Aug-2022,000008386304206,G M PACKAGING UK LIMIT,5046,Other expenses,79.30,0.00,79.30
Regeneration Economy and Growth,Culture Sport and Tourism,054812,Gala Theatre - Catering etc,Supplies and Services,384999,Miscellaneous Expenses,03-Aug-2022,000008386304216,G M PACKAGING UK LIMIT,5046,Other expenses,248.42,0.00,248.42
Regeneration Economy and Growth,Corporate Property and Land,021242,Catering - County Hall,Supplies and Services,384999,Miscellaneous Expenses,03-Aug-2022,000008386304220,G M PACKAGING UK LIMIT,5046,Other expenses,695.09,0.00,695.09
Children and Young Peoples Services,Head of Education and Skills,075035,DurhamDirections Re-engagement,Supplies and Services,364301,Grants to Voluntary Organisations,03-Aug-2022,000008392180570,MATALAN.CO.UK,5691,Hardship,84.00,0.00,84.00
Children and Young Peoples Services,Head of Childrens Social Care,085334,West Rainton Satelite Home,Supplies and Services,338099,Services,03-Aug-2022,000008392181104,HAGGERSTON CASTLE,7033,Other services,10.07,0.00,10.07
Children and Young Peoples Services,Head of Childrens Social Care,085334,West Rainton Satelite Home,Supplies and Services,338099,Services,03-Aug-2022,000008392181306,HAGGERSTON CASTLE,7033,Other services,45.54,0.00,45.54
Resources BK0010,Digital Services,065481,Technical Services 065481,Supplies and Services,304403,Equipment and Materials,03-Aug-2022,000008392181664,RS COMPONENTS,5065,Other consumables,398.32,0.00,398.32
Adult and Health Services,Head of Adults,052714,Development and Learning AHS 052714,Supplies and Services,342033,Computers and Communications,04-Aug-2022,000008381175982,MIRO.COM,7372,Computer hardware,4.34,0.00,4.34
Children and Young Peoples Services,Head of Childrens Social Care,085611,Families First Stanley,Transport,235073,Public Transport,04-Aug-2022,000008386263100,WWW.GONORTHEAST.CO.UK,4111,Travel-clients/students/children,4.20,0.00,4.20
Children and Young Peoples Services,Head of Education and Skills,071801,Selby Cottage Childcare Centre,Supplies and Services,324117,Provisions E324,04-Aug-2022,000008386263102,JR HOLLAND FOODSERVICE,5499,Catering costs - provisions,237.61,0.00,237.61
Children and Young Peoples Services,Head of Childrens Social Care,085347,Solo Home The Manse,Supplies and Services,348037,Subsistence E348,04-Aug-2022,000008386263114,The Italian Farmhouse,5812,Subsistence,-71.00,0.00,-71.00
Children and Young Peoples Services,Head of Childrens Social Care,085342,16 Hickstead Rise (previously 9 Cedar Ave),Supplies and Services,324117,Provisions E324,04-Aug-2022,000008386263122,TESCO STORES 2916,5411,Catering costs - provisions,110.30,0.00,110.30
Adult and Health Services,Head of Adults,055302,Durham Pathways,Supplies and Services,324117,Provisions E324,04-Aug-2022,000008386263138,ASDA SUPERSTORE,5411,Catering costs - provisions,4.08,0.00,4.08
Children and Young Peoples Services,Head of Childrens Social Care,085341,High Etherley Satelite Home,Employees,040149,Recruitment Instruction and Training,04-Aug-2022,000008386263142,BUTTERWICK BISHOP AUCK,8398,Training-all costs,7.99,0.00,7.99
Children and Young Peoples Services,Head of Childrens Social Care,085341,High Etherley Satelite Home,Employees,040149,Recruitment Instruction and Training,04-Aug-2022,000008386263144,BRITISH HEART FOUNDATI,8398,Training-all costs,6.03,0.00,6.03
Children and Young Peoples Services,Head of Childrens Social Care,085341,High Etherley Satelite Home,Employees,040149,Recruitment Instruction and Training,04-Aug-2022,000008386263146,SCOPE,8398,Training-all costs,10.90,0.00,10.90
Children and Young Peoples Services,Head of Childrens Social Care,085341,High Etherley Satelite Home,Employees,040149,Recruitment Instruction and Training,04-Aug-2022,000008386263148,SENSE CHARITY SHOP BIS,8398,Training-all costs,15.70,0.00,15.70
Children and Young Peoples Services,Head of Childrens Social Care,085341,High Etherley Satelite Home,Supplies and Services,324117,Provisions E324,04-Aug-2022,000008386263150,STARBUCKS BISHOP AUCKL,5499,Catering costs - provisions,22.68,0.00,22.68
Neighbourhoods and Climate Change,Environmental Services,031249,North Pennines - Nature for Climate,Transport,235057,Public Transport,04-Aug-2022,000008386263152,Weardale Motor Service,4111,Staff travelling,80.07,0.00,80.07
Children and Young Peoples Services,Head of Childrens Social Care,085367,Children Looked After Team 4,Supplies and Services,364340,Grants to Voluntary Organisations,04-Aug-2022,000008386263162,WWW.ADVENTUREVALLEY.CO,7999,Contact expenses,42.35,0.00,42.35
Children and Young Peoples Services,Head of Childrens Social Care,085364,Children Looked After Team 1,Supplies and Services,364340,Grants to Voluntary Organisations,04-Aug-2022,000008386263164,InfiniteAir,7996,Contact expenses,65.90,0.00,65.90
Children and Young Peoples Services,Head of Childrens Social Care,085364,Children Looked After Team 1,Supplies and Services,364340,Grants to Voluntary Organisations,04-Aug-2022,000008386263166,INFLATE SPACE NEWCASTL,7999,Contact expenses,28.00,0.00,28.00
Regeneration Economy and Growth,Corporate Property and Land,021242,Catering - County Hall,Supplies and Services,304403,Equipment and Materials,04-Aug-2022,000008386263186,AMZNBusiness 3K22P0MQ5,5999,Other consumables,18.00,3.00,15.00
Regeneration Economy and Growth,Corporate Property and Land,021242,Catering - County Hall,Supplies and Services,304403,Equipment and Materials,04-Aug-2022,000008386263188,AMZNMktplace,5999,Other consumables,53.70,8.95,44.75
Children and Young Peoples Services,Head of Childrens Social Care,085358,Orchard House Sacriston Solo Home,Supplies and Services,344033,Telephones,04-Aug-2022,000008386263196,giffgaff,4814,Telephones general-all costs,10.00,0.00,10.00
Children and Young Peoples Services,Head of Childrens Social Care,085331,New Lea Childrens Home,Supplies and Services,304403,Equipment and Materials,04-Aug-2022,000008386263198,SP ALLWEARJEWELLERY,5734,Other consumables,75.94,0.00,75.94
Adult and Health Services,Head of Adults,055302,Durham Pathways,Supplies and Services,304403,Equipment and Materials,04-Aug-2022,000008386263202,AMZNBusiness S514O0OK5,5999,Other consumables,5.95,0.99,4.96
Adult and Health Services,Head of Adults,055302,Durham Pathways,Supplies and Services,304403,Equipment and Materials,04-Aug-2022,000008386263204,AMZNMktplace,5999,Other consumables,52.80,8.82,43.98
Adult and Health Services,Head of Adults,055302,Durham Pathways,Supplies and Services,304403,Equipment and Materials,04-Aug-2022,000008386263206,AMZNMktplace,5999,Other consumables,29.84,4.98,24.86
Regeneration Economy and Growth,Culture Sport and Tourism,054813,Gala Theatre - Technical,Supplies and Services,304259,Equipment and Materials,04-Aug-2022,000008386263208,Microsoft Microsoft 36,5816,Equipment-purchase and rental,55.99,0.00,55.99
Neighbourhoods and Climate Change,Environmental Services,010301,C&G - North Grounds Maintenance,Supplies and Services,304999,Equipment and Materials,04-Aug-2022,000008386263222,GRALANDS WOODWORK SUPP,5251,Misc equipment tools and materials,24.25,0.00,24.25
Neighbourhoods and Climate Change,Environmental Services,010301,C&G - North Grounds Maintenance,Supplies and Services,304221,Equipment and Materials,04-Aug-2022,000008386263224,AZTEC CHEMICALS LTD,5169,Direct materials,436.50,72.75,363.75
Neighbourhoods and Climate Change,Environmental Services,010301,C&G - North Grounds Maintenance,Supplies and Services,304221,Equipment and Materials,04-Aug-2022,000008386263226,AZTEC CHEMICALS LTD,5169,Direct materials,376.92,62.82,314.10
Neighbourhoods and Climate Change,Environmental Services,010301,C&G - North Grounds Maintenance,Supplies and Services,304221,Equipment and Materials,04-Aug-2022,000008386263228,AZTEC CHEMICALS LTD,5169,Direct materials,384.91,64.15,320.76
Children and Young Peoples Services,Head of Early Help Inclusion & Vulnerable Children.,085956,Lumley,Transfer Payments,515002,Social Services Clients,04-Aug-2022,000008386263232,Nike GBP,5655,Pocket money,99.95,0.00,99.95
Children and Young Peoples Services,Head of Early Help Inclusion & Vulnerable Children.,085956,Lumley,Supplies and Services,384302,Miscellaneous Expenses,04-Aug-2022,000008386263234,AMZNMktplace,5999,Activity expenses,20.00,3.33,16.67
Children and Young Peoples Services,Head of Early Help Inclusion & Vulnerable Children.,085955,Auckland,Supplies and Services,324117,Provisions E324,04-Aug-2022,000008386263240,TESCO STORES 6329,5411,Catering costs - provisions,80.39,0.00,80.39
Resources BK0010,HR & Employee Services,010984,Training and Development,Employees,040149,Recruitment Instruction and Training,04-Aug-2022,000008386263254,PAYPAL NPORS LTD,8699,Training-all costs,48.00,0.00,48.00
Neighbourhoods and Climate Change,Environmental Services,031238,North Pennines - Tees Swale,Supplies and Services,304999,Equipment and Materials,04-Aug-2022,000008386263256,AMZNMktplace,5999,Misc equipment tools and materials,15.98,2.66,13.32
Neighbourhoods and Climate Change,Environmental Services,031238,North Pennines - Tees Swale,Supplies and Services,304403,Equipment and Materials,04-Aug-2022,000008386263258,AMZNMktplace,5999,Other consumables,58.82,9.80,49.02
Children and Young Peoples Services,Head of Early Help Inclusion & Vulnerable Children.,088107,Wheatley Hill & N. Aycliffe Family Centre,Supplies and Services,304259,Equipment and Materials,04-Aug-2022,000008386263260,AMZNMktplace,5999,Equipment-purchase and rental,45.98,7.66,38.32
Children and Young Peoples Services,Head of Early Help Inclusion & Vulnerable Children.,088107,Wheatley Hill & N. Aycliffe Family Centre,Supplies and Services,304259,Equipment and Materials,04-Aug-2022,000008386263262,AMZNMktplace,5999,Equipment-purchase and rental,22.99,3.83,19.16
Children and Young Peoples Services,Head of Childrens Social Care,085364,Children Looked After Team 1,Supplies and Services,364301,Grants to Voluntary Organisations,04-Aug-2022,000008386263282,AMZNMktplace,5999,Hardship,33.98,5.67,28.31
Children and Young Peoples Services,Head of Early Help Inclusion & Vulnerable Children.,088108,Spennymoor & Shildon Intensive Family Support Team,Supplies and Services,384302,Miscellaneous Expenses,04-Aug-2022,000008386263284,GARNETTS LTD,4131,Activity expenses,57.00,0.00,57.00
Children and Young Peoples Services,Head of Childrens Social Care,085368,Children Looked After Team 5,Supplies and Services,364340,Grants to Voluntary Organisations,04-Aug-2022,000008386263286,National Express Limit,4131,Contact expenses,25.00,0.00,25.00
Children and Young Peoples Services,Head of Childrens Social Care,085626,Families First Shildon,Supplies and Services,338045,Services,04-Aug-2022,000008386263288,GEN REGISTER OFFICE,9399,Legal expenses 338045,14.00,0.00,14.00
Children and Young Peoples Services,Head of Childrens Social Care,085623,Families First Bishop Auckland,Supplies and Services,304259,Equipment and Materials,04-Aug-2022,000008386263290,NAS SCOTLAND PEOPLE,9399,Equipment-purchase and rental,14.62,0.00,14.62
Neighbourhoods and Climate Change,Environmental Services,019100,Fleet - Strategic Fleet,Supplies and Services,304259,Equipment and Materials,04-Aug-2022,000008386263292,JAUPT,9399,Equipment-purchase and rental,252.00,0.00,252.00
Adult and Health Services,Head of Adults,055643,Hawthorn House LD Respite Unit,Supplies and Services,304403,Equipment and Materials,04-Aug-2022,000008386263296,AMZNMKTPLACE AMAZON.CO,5999,Other consumables,32.64,5.44,27.20
Adult and Health Services,Head of Adults,055643,Hawthorn House LD Respite Unit,Supplies and Services,304403,Equipment and Materials,04-Aug-2022,000008386263296 - 1,AMZNMKTPLACE AMAZON.CO,5999,Other consumables,0.04,,0.04
Regeneration Economy and Growth,Economic Development Level C,030776,LINKCD Flexible Fund,Supplies and Services,324117,Provisions E324,04-Aug-2022,000008386263302,TESCO STORES 2371,5411,Catering costs - provisions,4.65,0.00,4.65
Regeneration Economy and Growth,Economic Development Level C,030776,LINKCD Flexible Fund,Supplies and Services,324117,Provisions E324,04-Aug-2022,000008386263304,TESCO STORES 2371,5411,Catering costs - provisions,6.10,0.00,6.10
Children and Young Peoples Services,Head of Childrens Social Care,085347,Solo Home The Manse,Supplies and Services,348037,Subsistence E348,04-Aug-2022,000008386263310,Bills Fish & Chip Rest,5814,Subsistence,14.90,0.00,14.90
Children and Young Peoples Services,Head of Childrens Social Care,085347,Solo Home The Manse,Supplies and Services,324117,Provisions E324,04-Aug-2022,000008386263312,WILKO RETAIL LIMITED,5399,Catering costs - provisions,65.35,0.00,65.35
Children and Young Peoples Services,Head of Childrens Social Care,085334,West Rainton Satelite Home,Supplies and Services,324117,Provisions E324,04-Aug-2022,000008386263338,ICELAND,5411,Catering costs - provisions,12.00,0.00,12.00
Children and Young Peoples Services,Head of Childrens Social Care,085334,West Rainton Satelite Home,Supplies and Services,324117,Provisions E324,04-Aug-2022,000008386263340,TESCO STORES 2371,5411,Catering costs - provisions,132.98,0.00,132.98
Children and Young Peoples Services,Head of Childrens Social Care,085334,West Rainton Satelite Home,Supplies and Services,324117,Provisions E324,04-Aug-2022,000008386263342,TESCO STORES 6181,5411,Catering costs - provisions,23.79,0.00,23.79
Children and Young Peoples Services,Head of Early Help Inclusion & Vulnerable Children.,085957,Secure Management,Supplies and Services,304259,Equipment and Materials,04-Aug-2022,000008386263354,Amazon.co.uk 992W23KV5,5969,Equipment-purchase and rental,22.98,3.83,19.15
Children and Young Peoples Services,Head of Early Help Inclusion & Vulnerable Children.,085957,Secure Management,Premises,108099,Service Repairs and Maintenance,04-Aug-2022,000008386263356,T A PLASTIC SUPPLI,5085,General repairs 108099,17.30,0.00,17.30
Children and Young Peoples Services,Head of Early Help Inclusion & Vulnerable Children.,085957,Secure Management,Premises,108099,Service Repairs and Maintenance,04-Aug-2022,000008386263358,T A PLASTIC SUPPLI,5085,General repairs 108099,62.00,0.00,62.00
Children and Young Peoples Services,Head of Early Help Inclusion & Vulnerable Children.,085957,Secure Management,Premises,108099,Service Repairs and Maintenance,04-Aug-2022,000008386263360,AMZNMKTPLACE AMAZON.CO,5999,General repairs 108099,17.22,2.88,14.34
Regeneration Economy and Growth,Planning & Housing,031701,Care Connect All Localities,Supplies and Services,304259,Equipment and Materials,04-Aug-2022,000008386263364,AMZNMktplace,5999,Equipment-purchase and rental,48.30,8.05,40.25
Regeneration Economy and Growth,Planning & Housing,031701,Care Connect All Localities,Supplies and Services,304259,Equipment and Materials,04-Aug-2022,000008386263364 - 1,AMZNMktplace,5999,Equipment-purchase and rental,0.05,,0.05
Regeneration Economy and Growth,Culture Sport and Tourism,011204,Festival and Events,Supplies and Services,324117,Provisions E324,04-Aug-2022,000008386263368,ASDA STORES,5411,Catering costs - provisions,17.60,0.00,17.60
Children and Young Peoples Services,Head of Childrens Social Care,085537,Full Circle,Supplies and Services,324117,Provisions E324,04-Aug-2022,000008386263396,ASDA STORES,5411,Catering costs - provisions,15.79,0.00,15.79
Children and Young Peoples Services,Head of Childrens Social Care,085332,Middlestone Moor CU,Supplies and Services,304403,Equipment and Materials,04-Aug-2022,000008386263410,AMZNMKTPLACE AMAZON.CO,5999,Other consumables,7.99,0.00,7.99
Children and Young Peoples Services,Head of Childrens Social Care,085332,Middlestone Moor CU,Supplies and Services,304403,Equipment and Materials,04-Aug-2022,000008386263414,AMZNMKTPLACE AMAZON.CO,5999,Other consumables,2.94,0.00,2.94
Resources BK0010,Digital Services,065330,Operations Field Support,Supplies and Services,304403,Equipment and Materials,04-Aug-2022,000008386263416,AMZNMKTPLACE AMAZON.CO,5999,Other consumables,29.88,4.98,24.90
Resources BK0010,Digital Services,065330,Operations Field Support,Supplies and Services,304403,Equipment and Materials,04-Aug-2022,000008386263416 - 1,AMZNMKTPLACE AMAZON.CO,5999,Other consumables,0.06,,0.06
Regeneration Economy and Growth,Communications Management,060270,Communications and Marketing,Supplies and Services,336005,Advertising E336,04-Aug-2022,000008386263418,FACEBK GLV4RFP4B2,7311,Advertising other than for staff,500.00,0.00,500.00
Regeneration Economy and Growth,Planning & Housing,031634,LOCAL LETTINGS AGENCY,Supplies and Services,324117,Provisions E324,04-Aug-2022,000008386263422,MARTIN MCCOLL,5499,Catering costs - provisions,20.00,0.00,20.00
Adult and Health Services,Head of Adults,055310,Positive Journeys (Tudhoe),Supplies and Services,324117,Provisions E324,04-Aug-2022,000008386263436,ASDA SUPERSTORE 4987,5411,Catering costs - provisions,10.49,0.00,10.49
Regeneration Economy and Growth,Planning & Housing,031576,B& B - Temp Accom,Supplies and Services,364320,Grants to Voluntary Organisations,04-Aug-2022,000008386263440,TRAVELODGE,3615,Accommodation assistance,71.38,0.00,71.38
Regeneration Economy and Growth,Corporate Property and Land,010525,Catering - Green Lane,Supplies and Services,324117,Provisions E324,04-Aug-2022,000008386304184,HOPWELLS LTD,5811,Catering costs - provisions,91.98,0.00,91.98
Regeneration Economy and Growth,Corporate Property and Land,011296,Catering - Dunes,Supplies and Services,324117,Provisions E324,04-Aug-2022,000008386304188,HOPWELLS LTD,5811,Catering costs - provisions,67.86,11.31,56.55
Regeneration Economy and Growth,Corporate Property and Land,011296,Catering - Dunes,Supplies and Services,324117,Provisions E324,04-Aug-2022,000008386304188 - 1,HOPWELLS LTD,5811,Catering costs - provisions,296.02,,296.02
Regeneration Economy and Growth,Corporate Property and Land,011296,Catering - Dunes,Supplies and Services,324117,Provisions E324,04-Aug-2022,000008386304190,HOPWELLS LTD,5811,Catering costs - provisions,43.02,7.17,35.85
Regeneration Economy and Growth,Corporate Property and Land,011296,Catering - Dunes,Supplies and Services,324117,Provisions E324,04-Aug-2022,000008386304190 - 1,HOPWELLS LTD,5811,Catering costs - provisions,75.55,,75.55
Regeneration Economy and Growth,Corporate Property and Land,030691,Catering - Durham Dales Centre,Supplies and Services,324117,Provisions E324,04-Aug-2022,000008386304192,HOPWELLS LTD,5811,Catering costs - provisions,99.30,0.00,99.30
Regeneration Economy and Growth,Corporate Property and Land,030691,Catering - Durham Dales Centre,Supplies and Services,324117,Provisions E324,04-Aug-2022,000008386304194,HOPWELLS LTD,5811,Catering costs - provisions,276.42,0.00,276.42
Regeneration Economy and Growth,Culture Sport and Tourism,054235,Bishop Auckland Town Hall Cafe,Supplies and Services,324117,Provisions E324,04-Aug-2022,000008386304196,HOPWELLS LTD,5811,Catering costs - provisions,293.66,0.00,293.66
Regeneration Economy and Growth,Culture Sport and Tourism,054235,Bishop Auckland Town Hall Cafe,Supplies and Services,324117,Provisions E324,04-Aug-2022,000008386304198,JR HOLLAND FOODSERVICE,5499,Catering costs - provisions,459.79,0.00,459.79
Adult and Health Services,Head of Adults,055643,Hawthorn House LD Respite Unit,Supplies and Services,324117,Provisions E324,04-Aug-2022,000008386304200,HOPWELLS LTD,5811,Catering costs - provisions,2.46,0.41,2.05
Adult and Health Services,Head of Adults,055643,Hawthorn House LD Respite Unit,Supplies and Services,324117,Provisions E324,04-Aug-2022,000008386304200 - 1,HOPWELLS LTD,5811,Catering costs - provisions,79.66,,79.66
Neighbourhoods and Climate Change,Environmental Services,011060,C&G - Hardwick Park Catering,Supplies and Services,324117,Provisions E324,04-Aug-2022,000008386304202,HOPWELLS LTD,5811,Catering costs - provisions,779.16,129.86,649.30
Neighbourhoods and Climate Change,Environmental Services,011060,C&G - Hardwick Park Catering,Supplies and Services,324117,Provisions E324,04-Aug-2022,000008386304202 - 1,HOPWELLS LTD,5811,Catering costs - provisions,185.41,,185.41
Neighbourhoods and Climate Change,Environmental Services,011060,C&G - Hardwick Park Catering,Supplies and Services,324117,Provisions E324,04-Aug-2022,000008386304204,JR HOLLAND FOODSERVICE,5499,Catering costs - provisions,106.12,0.00,106.12
Regeneration Economy and Growth,Corporate Property and Land,021234,Catering - Locomotion,Supplies and Services,324117,Provisions E324,04-Aug-2022,000008386304208,HOPWELLS LTD,5811,Catering costs - provisions,102.06,17.01,85.05
Regeneration Economy and Growth,Corporate Property and Land,021234,Catering - Locomotion,Supplies and Services,324117,Provisions E324,04-Aug-2022,000008386304208 - 1,HOPWELLS LTD,5811,Catering costs - provisions,18.73,,18.73
Regeneration Economy and Growth,Corporate Property and Land,021234,Catering - Locomotion,Supplies and Services,324117,Provisions E324,04-Aug-2022,000008386304210,HOPWELLS LTD,5811,Catering costs - provisions,132.96,22.16,110.80
Regeneration Economy and Growth,Corporate Property and Land,021234,Catering - Locomotion,Supplies and Services,324117,Provisions E324,04-Aug-2022,000008386304210 - 1,HOPWELLS LTD,5811,Catering costs - provisions,132.48,,132.48
Regeneration Economy and Growth,Corporate Property and Land,021235,Catering - Wharton Park,Supplies and Services,324117,Provisions E324,04-Aug-2022,000008386304212,HOPWELLS LTD,5811,Catering costs - provisions,222.84,37.14,185.70
Regeneration Economy and Growth,Corporate Property and Land,021235,Catering - Wharton Park,Supplies and Services,324117,Provisions E324,04-Aug-2022,000008386304212 - 1,HOPWELLS LTD,5811,Catering costs - provisions,128.14,,128.14
Regeneration Economy and Growth,Corporate Property and Land,021235,Catering - Wharton Park,Supplies and Services,324117,Provisions E324,04-Aug-2022,000008386304214,JR HOLLAND FOODSERVICE,5499,Catering costs - provisions,32.13,0.00,32.13
Regeneration Economy and Growth,Culture Sport and Tourism,054812,Gala Theatre - Catering etc,Supplies and Services,324117,Provisions E324,04-Aug-2022,000008386304218,HOPWELLS LTD,5811,Catering costs - provisions,69.87,0.00,69.87
Regeneration Economy and Growth,Corporate Property and Land,021242,Catering - County Hall,Supplies and Services,324117,Provisions E324,04-Aug-2022,000008386304222,HOPWELLS LTD,5811,Catering costs - provisions,210.27,0.00,210.27
Regeneration Economy and Growth,Corporate Property and Land,021242,Catering - County Hall,Supplies and Services,324117,Provisions E324,04-Aug-2022,000008386304224,JR HOLLAND FOODSERVICE,5499,Catering costs - provisions,112.04,0.00,112.04
Regeneration Economy and Growth,Business Durham CL0850,030689,Inward Investment and Aftercare,Supplies and Services,342222,Computers and Communications,04-Aug-2022,000008392180492,FASTHOSTS,4816,Comp hardware purch-network servers,7.54,0.00,7.54
Children and Young Peoples Services,Head of Education and Skills,075033,DurhamWorks 3,Supplies and Services,364301,Grants to Voluntary Organisations,04-Aug-2022,000008392180566,WWW.DURHAM.GOV.UK,9399,Hardship,11.00,0.00,11.00
Children and Young Peoples Services,Head of Education and Skills,075035,DurhamDirections Re-engagement,Supplies and Services,364301,Grants to Voluntary Organisations,04-Aug-2022,000008392180572,MATALAN.CO.UK,5691,Hardship,40.00,0.00,40.00
Children and Young Peoples Services,Head of Childrens Social Care,085341,High Etherley Satelite Home,Supplies and Services,324117,Provisions E324,04-Aug-2022,000008392180680,SAINSBURYS S/MKTS,5411,Catering costs - provisions,21.12,0.00,21.12
Children and Young Peoples Services,Head of Childrens Social Care,085341,High Etherley Satelite Home,Supplies and Services,324117,Provisions E324,04-Aug-2022,000008392180684,SAINSBURYS S/MKTS,5411,Catering costs - provisions,65.60,0.00,65.60
Children and Young Peoples Services,Head of Childrens Social Care,085341,High Etherley Satelite Home,Employees,040149,Recruitment Instruction and Training,04-Aug-2022,000008392180690,THE SALVATION ARMY,8398,Training-all costs,28.48,0.00,28.48
Children and Young Peoples Services,Head of Childrens Social Care,085624,Families First Crook and Barnard Castle,Supplies and Services,364301,Grants to Voluntary Organisations,04-Aug-2022,000008392180734,ARGOS LTD,5310,Hardship,185.00,0.00,185.00
Children and Young Peoples Services,Head of Childrens Social Care,085624,Families First Crook and Barnard Castle,Supplies and Services,364301,Grants to Voluntary Organisations,04-Aug-2022,000008392180742,ARGOS LTD,5310,Hardship,386.95,0.00,386.95
Adult and Health Services,Head of Adults,055302,Durham Pathways,Supplies and Services,324117,Provisions E324,04-Aug-2022,000008392180916,SAINSBURYS S/MKTS,5411,Catering costs - provisions,7.00,0.00,7.00
Neighbourhoods and Climate Change,Environmental Services,026591,C&G - Hardwick Park,Supplies and Services,304337,Equipment and Materials,04-Aug-2022,000008392180942,WWW.SCREWFIX.COM,5211,Consumables/items for resale,6.59,0.00,6.59
Children and Young Peoples Services,Head of Childrens Social Care,085333,Coxhoe Satelite Home,Supplies and Services,304999,Equipment and Materials,04-Aug-2022,000008392180982,KIDSPASS.CO.UK,7929,Misc equipment tools and materials,135.50,0.00,135.50
Children and Young Peoples Services,Head of Childrens Social Care,085334,West Rainton Satelite Home,Supplies and Services,338099,Services,04-Aug-2022,000008392181108,HAGGERSTON CASTLE,7033,Other services,10.07,0.00,10.07
Adult and Health Services,Head of Adults,055643,Hawthorn House LD Respite Unit,Supplies and Services,324117,Provisions E324,04-Aug-2022,000008392181174,CO-OP GROUP 010465,5411,Catering costs - provisions,13.25,0.00,13.25
Children and Young Peoples Services,Head of Childrens Social Care,085347,Solo Home The Manse,Supplies and Services,348037,Subsistence E348,04-Aug-2022,000008392181190,MCDONALDS,5814,Subsistence,5.36,0.00,5.36
Children and Young Peoples Services,Head of Childrens Social Care,085347,Solo Home The Manse,Transport,235057,Public Transport,04-Aug-2022,000008392181196,NORTH TYNESIDE COUNCIL,7523,Staff travelling,1.20,0.00,1.20
Children and Young Peoples Services,Head of Childrens Social Care,085341,High Etherley Satelite Home,Supplies and Services,304403,Equipment and Materials,04-Aug-2022,000008392181242,AMZNMKTPLACE AMAZON.CO,5999,Other consumables,7.99,1.33,6.66
Regeneration Economy and Growth,Economic Development Level C,030771,Durham Advance Flexible Fund,Supplies and Services,324117,Provisions E324,04-Aug-2022,000008392181374,SAINSBURY`S S/MKT,5411,Catering costs - provisions,3.00,0.00,3.00
Dedicated Schools Grant BG0015,DSG High Needs Block,079040,HNB Management and support,Supplies and Services,304403,Equipment and Materials,04-Aug-2022,000008392181394,AMZNMKTPLACE AMAZON.CO,5999,Other consumables,18.27,0.00,18.27
Regeneration Economy and Growth,Planning & Housing,031701,Care Connect All Localities,Supplies and Services,304259,Equipment and Materials,04-Aug-2022,000008392181404,AMZNBUSINESS AS76L96S5,5999,Equipment-purchase and rental,11.58,1.93,9.65
Regeneration Economy and Growth,Culture Sport and Tourism,011204,Festival and Events,Supplies and Services,348037,Subsistence E348,04-Aug-2022,000008392181410,GREGGS,5812,Subsistence,45.63,0.00,45.63
Neighbourhoods and Climate Change,Environmental Services,010367,C&G - South Grounds Maintenance,Supplies and Services,304221,Equipment and Materials,04-Aug-2022,000008392181434,SCREWFIX DIR LTD,5211,Direct materials,23.07,0.00,23.07
Neighbourhoods and Climate Change,Community Protection,011035,Consumer Protection 011035,Supplies and Services,338048,Services,04-Aug-2022,000008392181712,HMCTS DURHAM012,9222,Court costs 338048,226.00,0.00,226.00
Regeneration Economy and Growth,Corporate Property and Land,011296,Catering - Dunes,Supplies and Services,324117,Provisions E324,04-Aug-2022,000008392278818,BATLEYS PERTH,5300,Catering costs - provisions,237.18,39.53,197.65
Regeneration Economy and Growth,Corporate Property and Land,011296,Catering - Dunes,Supplies and Services,324117,Provisions E324,04-Aug-2022,000008392278818 - 1,BATLEYS PERTH,5300,Catering costs - provisions,16.80,,16.80
Neighbourhoods and Climate Change,Environmental Services,011060,C&G - Hardwick Park Catering,Supplies and Services,324117,Provisions E324,04-Aug-2022,000008392278860,BATLEYS PERTH,5300,Catering costs - provisions,474.66,79.11,395.55
Neighbourhoods and Climate Change,Environmental Services,011060,C&G - Hardwick Park Catering,Supplies and Services,324117,Provisions E324,04-Aug-2022,000008392278860 - 1,BATLEYS PERTH,5300,Catering costs - provisions,327.28,,327.28
Neighbourhoods and Climate Change,Environmental Services,011060,C&G - Hardwick Park Catering,Supplies and Services,324117,Provisions E324,04-Aug-2022,000008392278884,BATLEYS PERTH,5300,Catering costs - provisions,318.60,53.10,265.50
Neighbourhoods and Climate Change,Environmental Services,011060,C&G - Hardwick Park Catering,Supplies and Services,324117,Provisions E324,04-Aug-2022,000008392278884 - 1,BATLEYS PERTH,5300,Catering costs - provisions,39.97,,39.97
Regeneration Economy and Growth,Corporate Property and Land,021235,Catering - Wharton Park,Supplies and Services,324117,Provisions E324,04-Aug-2022,000008392278902,BATLEYS PERTH,5300,Catering costs - provisions,139.62,23.27,116.35
Regeneration Economy and Growth,Corporate Property and Land,021235,Catering - Wharton Park,Supplies and Services,324117,Provisions E324,04-Aug-2022,000008392278902 - 1,BATLEYS PERTH,5300,Catering costs - provisions,14.56,,14.56
Regeneration Economy and Growth,Corporate Property and Land,021242,Catering - County Hall,Supplies and Services,324117,Provisions E324,04-Aug-2022,000008392278904,BATLEYS PERTH,5300,Catering costs - provisions,144.48,24.08,120.40
Regeneration Economy and Growth,Corporate Property and Land,021242,Catering - County Hall,Supplies and Services,324117,Provisions E324,04-Aug-2022,000008392278904 - 1,BATLEYS PERTH,5300,Catering costs - provisions,249.22,,249.22
Regeneration Economy and Growth,Corporate Property and Land,021242,Catering - County Hall,Supplies and Services,384999,Miscellaneous Expenses,05-Aug-2022,000008386263190,Amazon.co.uk SY5VB4J65,5969,Other expenses,48.22,0.00,48.22
Regeneration Economy and Growth,Culture Sport and Tourism,054813,Gala Theatre - Technical,Supplies and Services,304259,Equipment and Materials,05-Aug-2022,000008386263210,AMZNMktplace,5999,Equipment-purchase and rental,179.82,29.97,149.85
Regeneration Economy and Growth,Culture Sport and Tourism,054813,Gala Theatre - Technical,Supplies and Services,304259,Equipment and Materials,05-Aug-2022,000008386263210 - 1,AMZNMktplace,5999,Equipment-purchase and rental,0.03,,0.03
Children and Young Peoples Services,Head of Early Help Inclusion & Vulnerable Children.,085962,Aycliffe Secure - Durham,Supplies and Services,304403,Equipment and Materials,05-Aug-2022,000008386263218,AMZNMktplace,5999,Other consumables,29.99,5.00,24.99
Children and Young Peoples Services,Head of Early Help Inclusion & Vulnerable Children.,085962,Aycliffe Secure - Durham,Transfer Payments,515002,Social Services Clients,05-Aug-2022,000008386263238,Nike GBP,5655,Pocket money,164.95,27.49,137.46
Children and Young Peoples Services,Head of Early Help Inclusion & Vulnerable Children.,085956,Lumley,Supplies and Services,384302,Miscellaneous Expenses,05-Aug-2022,000008386263242,AMZNMktplace,5999,Activity expenses,6.39,1.07,5.32
Adult and Health Services,Head of Adults,055643,Hawthorn House LD Respite Unit,Supplies and Services,304403,Equipment and Materials,05-Aug-2022,000008386263298,AMZNMktplace,5999,Other consumables,19.98,3.33,16.65
Children and Young Peoples Services,Head of Childrens Social Care,085331,New Lea Childrens Home,Supplies and Services,304403,Equipment and Materials,05-Aug-2022,000008386263308,AMZNMktplace,5999,Other consumables,40.76,0.00,40.76
Children and Young Peoples Services,Head of Childrens Social Care,085341,High Etherley Satelite Home,Supplies and Services,304403,Equipment and Materials,05-Aug-2022,000008386263330,AMZNBusiness 053V35AL5,5999,Other consumables,6.34,1.06,5.28
Regeneration Economy and Growth,Planning & Housing,031701,Care Connect All Localities,Supplies and Services,304259,Equipment and Materials,05-Aug-2022,000008386263366,AMZNMktplace,5999,Equipment-purchase and rental,10.99,1.83,9.16
Children and Young Peoples Services,Head of Early Help Inclusion & Vulnerable Children.,085962,Aycliffe Secure - Durham,Supplies and Services,304403,Equipment and Materials,05-Aug-2022,000008386263400,AMZNMktplace,5999,Other consumables,29.99,5.00,24.99
Children and Young Peoples Services,Head of Childrens Social Care,085611,Families First Stanley,Supplies and Services,364340,Grants to Voluntary Organisations,05-Aug-2022,000008392180500,WWW.GONORTHEAST.CO.UK,4111,Contact expenses,34.00,0.00,34.00
Children and Young Peoples Services,Head of Childrens Social Care,085633,Families First Chester-Le-Street,Supplies and Services,364340,Grants to Voluntary Organisations,05-Aug-2022,000008392180506,WWW.GONORTHEAST.CO.UK,4111,Contact expenses,26.50,0.00,26.50
Children and Young Peoples Services,Head of Education and Skills,071801,Selby Cottage Childcare Centre,Supplies and Services,340001,Postages E340,05-Aug-2022,000008392180518,POST OFFICE COUNTER,9402,Postages,1.05,0.00,1.05
Children and Young Peoples Services,Head of Education and Skills,071801,Selby Cottage Childcare Centre,Supplies and Services,324117,Provisions E324,05-Aug-2022,000008392180530,TESCO STORES 2278,5411,Catering costs - provisions,33.25,0.00,33.25
Regeneration Economy and Growth,Planning & Housing,031500,Housing Solutions - Core,Supplies and Services,352001,Conference Expenses,05-Aug-2022,000008392180546,HOTEL EXPRESS LTD,7011,Conferencesseminars fees etc,235.00,0.00,235.00
Children and Young Peoples Services,Head of Education and Skills,075035,DurhamDirections Re-engagement,Supplies and Services,364301,Grants to Voluntary Organisations,05-Aug-2022,000008392180568,WWW.GONORTHEAST.CO.UK,4111,Hardship,97.50,0.00,97.50
Neighbourhoods and Climate Change,Environmental Services,010383,C&G - South Street Cleansing,Supplies and Services,304221,Equipment and Materials,05-Aug-2022,000008392180584,WWW.SCREWFIX.COM,5211,Direct materials,47.99,0.00,47.99
Regeneration Economy and Growth,Culture Sport and Tourism,054851,Community Arts,Supplies and Services,384302,Miscellaneous Expenses,05-Aug-2022,000008392180594,AMZNBusiness Z564A0R35,5999,Activity expenses,8.66,1.44,7.22
Children and Young Peoples Services,Head of Childrens Social Care,085342,16 Hickstead Rise (previously 9 Cedar Ave),Supplies and Services,324117,Provisions E324,05-Aug-2022,000008392180604,STARBUCKS THINFORD,5499,Catering costs - provisions,9.85,0.00,9.85
Children and Young Peoples Services,Head of Childrens Social Care,085342,16 Hickstead Rise (previously 9 Cedar Ave),Supplies and Services,328041,Clothing uniforms and laundry E328,05-Aug-2022,000008392180606,POUNDLAND LTD 1554,5310,Clothing uniforms and laundry,14.00,0.00,14.00
Children and Young Peoples Services,Head of Childrens Social Care,085332,Middlestone Moor CU,Supplies and Services,324117,Provisions E324,05-Aug-2022,000008392180614,TESCO STORES 2371,5411,Catering costs - provisions,90.61,0.00,90.61
Children and Young Peoples Services,Head of Childrens Social Care,085332,Middlestone Moor CU,Supplies and Services,324117,Provisions E324,05-Aug-2022,000008392180756,WILKO RETAIL LIMITED,5399,Catering costs - provisions,5.80,0.00,5.80
Children and Young Peoples Services,Head of Childrens Social Care,085332,Middlestone Moor CU,Supplies and Services,324117,Provisions E324,05-Aug-2022,000008392180758,WILKO RETAIL LIMITED,5399,Catering costs - provisions,1.50,0.00,1.50
Children and Young Peoples Services,Head of Childrens Social Care,085332,Middlestone Moor CU,Supplies and Services,384999,Miscellaneous Expenses,05-Aug-2022,000008392180760,ROXY BEAUTY LTD,7230,Other expenses,40.00,0.00,40.00
Children and Young Peoples Services,Head of Childrens Social Care,085332,Middlestone Moor CU,Supplies and Services,384999,Miscellaneous Expenses,05-Aug-2022,000008392180766,ROXY BEAUTY LTD,7230,Other expenses,10.00,0.00,10.00
Children and Young Peoples Services,Head of Childrens Social Care,085332,Middlestone Moor CU,Supplies and Services,304259,Equipment and Materials,05-Aug-2022,000008392180768,J D SPORTS PLC,5941,Equipment-purchase and rental,39.10,0.00,39.10
Children and Young Peoples Services,Head of Childrens Social Care,085332,Middlestone Moor CU,Supplies and Services,328041,Clothing uniforms and laundry E328,05-Aug-2022,000008392180770,PRIMARK 670 GATESHEAD,5651,Clothing uniforms and laundry,64.00,0.00,64.00
Regeneration Economy and Growth,Corporate Property and Land,021242,Catering - County Hall,Supplies and Services,304403,Equipment and Materials,05-Aug-2022,000008392180802,AMZNMktplace,5999,Other consumables,37.45,6.25,31.20
Regeneration Economy and Growth,Corporate Property and Land,021242,Catering - County Hall,Supplies and Services,304403,Equipment and Materials,05-Aug-2022,000008392180804,AMZNMktplace,5999,Other consumables,60.16,0.00,60.16
Adult and Health Services,Head of Adults,055302,Durham Pathways,Supplies and Services,304403,Equipment and Materials,05-Aug-2022,000008392180918,TIMPSON LTD,5999,Other consumables,9.00,0.00,9.00
Neighbourhoods and Climate Change,Environmental Services,026591,C&G - Hardwick Park,Supplies and Services,304337,Equipment and Materials,05-Aug-2022,000008392180946,UKSM_AngelWholesale,5999,Consumables/items for resale,176.27,0.00,176.27
Regeneration Economy and Growth,Economic Development Level C,030770,Durham Advance,Transport,235057,Public Transport,05-Aug-2022,000008392181002,WWW.GONORTHEAST.CO.UK,4111,Staff travelling,5.60,0.00,5.60
Regeneration Economy and Growth,Economic Development Level C,030771,Durham Advance Flexible Fund,Supplies and Services,348037,Subsistence E348,05-Aug-2022,000008392181018,COSTA COFFEE NEWTON AY,5812,Subsistence,5.30,0.00,5.30
Regeneration Economy and Growth,Economic Development Level C,030771,Durham Advance Flexible Fund,Supplies and Services,348037,Subsistence E348,05-Aug-2022,000008392181022,Cafe HQ,5812,Subsistence,5.65,0.00,5.65
Children and Young Peoples Services,Head of Early Help Inclusion & Vulnerable Children.,085965,Barnard,Supplies and Services,324117,Provisions E324,05-Aug-2022,000008392181084,TESCO STORES 6329,5411,Catering costs - provisions,139.14,0.00,139.14
Children and Young Peoples Services,Head of Childrens Social Care,085622,Families First Ferryhill,Supplies and Services,338045,Services,05-Aug-2022,000008392181120,SUNDERLAND CC,9399,Legal expenses 338045,11.00,0.00,11.00
Children and Young Peoples Services,Head of Childrens Social Care,085364,Children Looked After Team 1,Supplies and Services,340001,Postages E340,05-Aug-2022,000008392181154,POST OFFICE COUNTER,9402,Postages,2.45,0.00,2.45
Neighbourhoods and Climate Change,Environmental Services,010367,C&G - South Grounds Maintenance,Supplies and Services,304999,Equipment and Materials,05-Aug-2022,000008392181162,R DEFTY,5251,Misc equipment tools and materials,26.90,0.00,26.90
Adult and Health Services,Head of Adults,055643,Hawthorn House LD Respite Unit,Supplies and Services,304403,Equipment and Materials,05-Aug-2022,000008392181176,AMZNMktplace,5999,Other consumables,10.24,1.72,8.52
Children and Young Peoples Services,Head of Childrens Social Care,085347,Solo Home The Manse,Supplies and Services,348037,Subsistence E348,05-Aug-2022,000008392181194,DOWNEYS OF SEAHAM LTD,5812,Subsistence,14.10,0.00,14.10
Children and Young Peoples Services,Head of Childrens Social Care,085347,Solo Home The Manse,Supplies and Services,304403,Equipment and Materials,05-Aug-2022,000008392181198,TIMPSON LTD,5999,Other consumables,12.00,0.00,12.00
Children and Young Peoples Services,Head of Childrens Social Care,085347,Solo Home The Manse,Supplies and Services,324117,Provisions E324,05-Aug-2022,000008392181200,TESCO STORES 2371,5411,Catering costs - provisions,67.60,0.00,67.60
Children and Young Peoples Services,Head of Childrens Social Care,085347,Solo Home The Manse,Supplies and Services,324117,Provisions E324,05-Aug-2022,000008392181202,TESCO STORES 2371,5411,Catering costs - provisions,1.50,0.00,1.50
Children and Young Peoples Services,Head of Childrens Social Care,085341,High Etherley Satelite Home,Supplies and Services,304259,Equipment and Materials,05-Aug-2022,000008392181238,Back Market UK Ltd,5732,Equipment-purchase and rental,364.38,0.00,364.38
Children and Young Peoples Services,Head of Early Help Inclusion & Vulnerable Children.,085801,CDYJS - Support,Supplies and Services,304403,Equipment and Materials,05-Aug-2022,000008392181278,AMZNMKTPLACE AMAZON.CO,5999,Other consumables,29.40,4.90,24.50
Children and Young Peoples Services,Head of Early Help Inclusion & Vulnerable Children.,088102,Consett & Stanley Intensive Family Support Team,Supplies and Services,364301,Grants to Voluntary Organisations,05-Aug-2022,000008392181338,ASDA GEORGE COM LEEDS,5411,Hardship,492.55,0.00,492.55
Children and Young Peoples Services,Head of Early Help Inclusion & Vulnerable Children.,088103,Stanley & Moorside Family Centre,Supplies and Services,384302,Miscellaneous Expenses,05-Aug-2022,000008392181344,ASDA GROCERIES ONLINE,5411,Activity expenses,80.56,0.00,80.56
Children and Young Peoples Services,Head of Early Help Inclusion & Vulnerable Children.,085961,Themed Week Activity,Supplies and Services,384302,Miscellaneous Expenses,05-Aug-2022,000008392181378,SMYTHS TOYS,5399,Activity expenses,29.98,0.00,29.98
Dedicated Schools Grant BG0015,DSG High Needs Block,079040,HNB Management and support,Supplies and Services,304403,Equipment and Materials,05-Aug-2022,000008392181386,AMZNMKTPLACE AMAZON.CO,5999,Other consumables,3.94,0.00,3.94
Dedicated Schools Grant BG0015,DSG High Needs Block,079040,HNB Management and support,Supplies and Services,304403,Equipment and Materials,05-Aug-2022,000008392181392,AMZNMKTPLACE AMAZON.CO,5999,Other consumables,8.79,0.00,8.79
Dedicated Schools Grant BG0015,DSG High Needs Block,079040,HNB Management and support,Supplies and Services,304403,Equipment and Materials,05-Aug-2022,000008392181396,AMZNMKTPLACE AMAZON.CO,5999,Other consumables,6.99,0.00,6.99
Regeneration Economy and Growth,Culture Sport and Tourism,011204,Festival and Events,Supplies and Services,348037,Subsistence E348,05-Aug-2022,000008392181412,DOWNEYS OF SEAHAM LTD,5812,Subsistence,68.40,0.00,68.40
Regeneration Economy and Growth,Culture Sport and Tourism,011204,Festival and Events,Supplies and Services,324117,Provisions E324,05-Aug-2022,000008392181414,SAINSBURY`S S/MKT,5411,Catering costs - provisions,83.22,0.00,83.22
Neighbourhoods and Climate Change,Environmental Services,010301,C&G - North Grounds Maintenance,Supplies and Services,304999,Equipment and Materials,05-Aug-2022,000008392181444,W HOLDENS SON,780,Misc equipment tools and materials,182.00,0.00,182.00
Children and Young Peoples Services,Head of Education and Skills,071802,Louisa Cent Nursery,Supplies and Services,324117,Provisions E324,05-Aug-2022,000008392181478,ASDA GROCERIES ONLINE,5411,Catering costs - provisions,74.80,0.00,74.80
Children and Young Peoples Services,Head of Education and Skills,071802,Louisa Cent Nursery,Supplies and Services,324117,Provisions E324,05-Aug-2022,000008392181482,ASDA GROCERIES ONLINE,5411,Catering costs - provisions,-0.70,0.00,-0.70
Children and Young Peoples Services,Head of Childrens Social Care,085358,Orchard House Sacriston Solo Home,Supplies and Services,324117,Provisions E324,05-Aug-2022,000008392181564,ASDA GROCERIES ONLINE,5411,Catering costs - provisions,139.18,0.00,139.18
Children and Young Peoples Services,Head of Childrens Social Care,085358,Orchard House Sacriston Solo Home,Supplies and Services,324117,Provisions E324,05-Aug-2022,000008392181570,ASDA GROCERIES ONLINE,5411,Catering costs - provisions,-1.25,0.00,-1.25
Children and Young Peoples Services,Head of Childrens Social Care,085332,Middlestone Moor CU,Supplies and Services,304403,Equipment and Materials,05-Aug-2022,000008392181612,AMZNMKTPLACE AMAZON.CO,5999,Other consumables,14.29,0.00,14.29
Children and Young Peoples Services,Head of Childrens Social Care,085332,Middlestone Moor CU,Supplies and Services,304403,Equipment and Materials,05-Aug-2022,000008392181616,AMZNMKTPLACE AMAZON.CO,5999,Other consumables,8.02,0.00,8.02
Children and Young Peoples Services,Head of Childrens Social Care,085332,Middlestone Moor CU,Supplies and Services,304403,Equipment and Materials,05-Aug-2022,000008392181620,AMZNMKTPLACE AMAZON.CO,5999,Other consumables,6.99,0.00,6.99
Children and Young Peoples Services,Head of Childrens Social Care,085332,Middlestone Moor CU,Supplies and Services,304403,Equipment and Materials,05-Aug-2022,000008392181628,AMZNMKTPLACE AMAZON.CO,5999,Other consumables,7.99,0.00,7.99
Children and Young Peoples Services,Head of Childrens Social Care,085332,Middlestone Moor CU,Supplies and Services,304403,Equipment and Materials,05-Aug-2022,000008392181632,AMZNMKTPLACE AMAZON.CO,5999,Other consumables,32.98,0.00,32.98
Children and Young Peoples Services,Head of Childrens Social Care,085332,Middlestone Moor CU,Supplies and Services,304403,Equipment and Materials,05-Aug-2022,000008392181636,AMZNMKTPLACE AMAZON.CO,5999,Other consumables,7.33,0.00,7.33
Children and Young Peoples Services,Head of Childrens Social Care,085334,West Rainton Satelite Home,Supplies and Services,304403,Equipment and Materials,05-Aug-2022,000008392181642,MAX SPIELMANN LTD,5999,Other consumables,3.00,0.00,3.00
Children and Young Peoples Services,Head of Childrens Social Care,085334,West Rainton Satelite Home,Supplies and Services,324117,Provisions E324,05-Aug-2022,000008392181644,STARBUCKS THINFORD,5499,Catering costs - provisions,13.65,0.00,13.65
Children and Young Peoples Services,Head of Childrens Social Care,085334,West Rainton Satelite Home,Supplies and Services,348037,Subsistence E348,05-Aug-2022,000008392181650,MCDONALDS 1555,5814,Subsistence,17.76,0.00,17.76
Resources BK0010,Digital Services,011103,Digital Solutions,Supplies and Services,304403,Equipment and Materials,05-Aug-2022,000008392181666,DRI MSP360TM,5734,Other consumables,23.80,0.00,23.80
Resources BK0010,Digital Services,065321,Operations - Digital & Customer Services,Supplies and Services,340001,Postages E340,05-Aug-2022,000008392181668,PARCELFORCE WL,4215,Postages,11.15,0.00,11.15
Adult and Health Services,Commissioning inc Supporting People,052101,Strat.Comm. Manager LD / MH / SMetc 052101,Supplies and Services,340001,Postages E340,05-Aug-2022,000008392181670,PARCELFORCE WL,4215,Postages,24.49,0.00,24.49
Adult and Health Services,Head of Adults,052229,Countywide AMHP Team,Supplies and Services,338048,Services,05-Aug-2022,000008392181672,HMCTS GRIMSBY&SCUNTHOR,9222,Court costs 338048,81.00,0.00,81.00
Neighbourhoods and Climate Change,Environmental Services,031071,E&D - Sustainability and Climate Change,Supplies and Services,304403,Equipment and Materials,05-Aug-2022,000008392181674,RS COMPONENTS,5065,Other consumables,35.14,0.00,35.14
Adult and Health Services,Head of Adults,055310,Positive Journeys (Tudhoe),Supplies and Services,324117,Provisions E324,05-Aug-2022,000008392181706,ALDI 774-018,5411,Catering costs - provisions,1.45,0.00,1.45
Regeneration Economy and Growth,Economic Development Level C,030771,Durham Advance Flexible Fund,Supplies and Services,304259,Equipment and Materials,05-Aug-2022,000008392181718,DISCLOSURE AND BARRING,9399,Equipment-purchase and rental,18.00,0.00,18.00
Regeneration Economy and Growth,Planning & Housing,031634,LOCAL LETTINGS AGENCY,Premises,120037,Energy Costs,05-Aug-2022,000008392181728,CO-OP GROUP 310015,5411,Other fuels,101.00,0.00,101.00
Regeneration Economy and Growth,Planning & Housing,031576,B& B - Temp Accom,Supplies and Services,364320,Grants to Voluntary Organisations,05-Aug-2022,000008392181812,TRAVELODGE,3615,Accommodation assistance,191.72,0.00,191.72
Regeneration Economy and Growth,Planning & Housing,031576,B& B - Temp Accom,Supplies and Services,364320,Grants to Voluntary Organisations,05-Aug-2022,000008392181814,TRAVELODGE,3615,Accommodation assistance,191.72,0.00,191.72
Children and Young Peoples Services,Head of Childrens Social Care,085650,Pre Birth Team,Supplies and Services,304403,Equipment and Materials,05-Aug-2022,000008392181830,AMZNMktplace,5999,Other consumables,44.91,0.00,44.91
Children and Young Peoples Services,Head of Childrens Social Care,085650,Pre Birth Team,Supplies and Services,304403,Equipment and Materials,05-Aug-2022,000008392181834,AMZNMktplace,5999,Other consumables,22.55,0.00,22.55
Regeneration Economy and Growth,Corporate Property and Land,011296,Catering - Dunes,Supplies and Services,324117,Provisions E324,05-Aug-2022,000008392278812,JR HOLLAND FOODSERVICE,5499,Catering costs - provisions,59.47,0.00,59.47
Regeneration Economy and Growth,Corporate Property and Land,030691,Catering - Durham Dales Centre,Supplies and Services,324117,Provisions E324,05-Aug-2022,000008392278828,JR HOLLAND FOODSERVICE,5499,Catering costs - provisions,18.50,0.00,18.50
Regeneration Economy and Growth,Corporate Property and Land,030691,Catering - Durham Dales Centre,Supplies and Services,324117,Provisions E324,05-Aug-2022,000008392278832,JR HOLLAND FOODSERVICE,5499,Catering costs - provisions,121.18,0.00,121.18
Adult and Health Services,Head of Adults,055643,Hawthorn House LD Respite Unit,Supplies and Services,324117,Provisions E324,05-Aug-2022,000008392278844,JR HOLLAND FOODSERVICE,5499,Catering costs - provisions,24.84,0.00,24.84
Adult and Health Services,Head of Adults,055643,Hawthorn House LD Respite Unit,Supplies and Services,324117,Provisions E324,05-Aug-2022,000008392278850,JR HOLLAND FOODSERVICE,5499,Catering costs - provisions,24.95,0.00,24.95
Neighbourhoods and Climate Change,Environmental Services,011060,C&G - Hardwick Park Catering,Supplies and Services,324117,Provisions E324,05-Aug-2022,000008392278856,JR HOLLAND FOODSERVICE,5499,Catering costs - provisions,40.72,0.00,40.72
Regeneration Economy and Growth,Corporate Property and Land,021234,Catering - Locomotion,Supplies and Services,324117,Provisions E324,05-Aug-2022,000008392278896,JR HOLLAND FOODSERVICE,5499,Catering costs - provisions,46.55,0.00,46.55
Regeneration Economy and Growth,Corporate Property and Land,021235,Catering - Wharton Park,Supplies and Services,384999,Miscellaneous Expenses,05-Aug-2022,000008392278898,G M PACKAGING UK LIMIT,5046,Other expenses,96.68,0.00,96.68
Adult and Health Services,Head of Adults,055643,Hawthorn House LD Respite Unit,Supplies and Services,324117,Provisions E324,05-Aug-2022,000008399215302,BATLEYS PERTH,5300,Catering costs - provisions,31.26,5.21,26.05
Adult and Health Services,Head of Adults,055643,Hawthorn House LD Respite Unit,Supplies and Services,324117,Provisions E324,05-Aug-2022,000008399215302 - 1,BATLEYS PERTH,5300,Catering costs - provisions,142.74,,142.74
Regeneration Economy and Growth,Corporate Property and Land,021234,Catering - Locomotion,Supplies and Services,324117,Provisions E324,05-Aug-2022,000008399215310,BATLEYS PERTH,5300,Catering costs - provisions,504.48,84.08,420.40
Regeneration Economy and Growth,Corporate Property and Land,021234,Catering - Locomotion,Supplies and Services,324117,Provisions E324,05-Aug-2022,000008399215310 - 1,BATLEYS PERTH,5300,Catering costs - provisions,23.35,,23.35
Regeneration Economy and Growth,Corporate Property and Land,021234,Catering - Locomotion,Supplies and Services,324117,Provisions E324,05-Aug-2022,000008399215312,BATLEYS PERTH,5300,Catering costs - provisions,8.82,0.00,8.82
Regeneration Economy and Growth,Business Durham CL0850,030689,Inward Investment and Aftercare,Supplies and Services,342033,Computers and Communications,06-Aug-2022,000008392180496,STK Shutterstock,7333,Computer hardware,19.00,0.00,19.00
Children and Young Peoples Services,Head of Childrens Social Care,085342,16 Hickstead Rise (previously 9 Cedar Ave),Supplies and Services,348037,Subsistence E348,06-Aug-2022,000008392180622,KFC-HARTLEPOOL,5814,Subsistence,14.87,0.00,14.87
Children and Young Peoples Services,Head of Childrens Social Care,085342,16 Hickstead Rise (previously 9 Cedar Ave),Supplies and Services,348037,Subsistence E348,06-Aug-2022,000008392180624,STARBUCKS COFFEE,5814,Subsistence,9.05,0.00,9.05
Children and Young Peoples Services,Head of Childrens Social Care,085334,West Rainton Satelite Home,Supplies and Services,384999,Miscellaneous Expenses,06-Aug-2022,000008392180636,The Body Shop,5977,Other expenses,7.20,0.00,7.20
Children and Young Peoples Services,Head of Childrens Social Care,085334,West Rainton Satelite Home,Supplies and Services,348037,Subsistence E348,06-Aug-2022,000008392180638,SUBWAY 50183 Metrocent,5814,Subsistence,11.58,0.00,11.58
Children and Young Peoples Services,Head of Childrens Social Care,085334,West Rainton Satelite Home,Supplies and Services,332047,Printing Stationery and Gen Off Exps,06-Aug-2022,000008392180640,ODEON UPT,7832,Stationery,10.28,0.00,10.28
Children and Young Peoples Services,Head of Childrens Social Care,085334,West Rainton Satelite Home,Supplies and Services,348037,Subsistence E348,06-Aug-2022,000008392180646,GREGGS PLC,5812,Subsistence,1.75,0.00,1.75
Children and Young Peoples Services,Head of Childrens Social Care,085334,West Rainton Satelite Home,Supplies and Services,304259,Equipment and Materials,06-Aug-2022,000008392180648,J D SPORTS PLC,5941,Equipment-purchase and rental,15.10,0.00,15.10
Children and Young Peoples Services,Head of Childrens Social Care,085334,West Rainton Satelite Home,Supplies and Services,328041,Clothing uniforms and laundry E328,06-Aug-2022,000008392180654,PRIMARK 670 GATESHEAD,5651,Clothing uniforms and laundry,32.50,0.00,32.50
Children and Young Peoples Services,Head of Childrens Social Care,085334,West Rainton Satelite Home,Supplies and Services,328041,Clothing uniforms and laundry E328,06-Aug-2022,000008392180660,PRIMARK 670 GATESHEAD,5651,Clothing uniforms and laundry,7.00,0.00,7.00
Children and Young Peoples Services,Head of Childrens Social Care,085334,West Rainton Satelite Home,Supplies and Services,332047,Printing Stationery and Gen Off Exps,06-Aug-2022,000008392180666,ODEON CINEMAS,7832,Stationery,26.00,0.00,26.00
Regeneration Economy and Growth,Corporate Property and Land,021242,Catering - County Hall,Supplies and Services,304259,Equipment and Materials,06-Aug-2022,000008392180808,AMZN Digital ZT7OW5N05,5735,Equipment-purchase and rental,4.99,0.00,4.99
Regeneration Economy and Growth,Corporate Property and Land,021242,Catering - County Hall,Supplies and Services,304259,Equipment and Materials,06-Aug-2022,000008392180812,AMZN Digital 8I9UU44E5,5735,Equipment-purchase and rental,0.99,0.00,0.99
Children and Young Peoples Services,Head of Childrens Social Care,085511,Emergency Duty Team,Supplies and Services,324117,Provisions E324,06-Aug-2022,000008392180824,TESCO STORES 4358,5411,Catering costs - provisions,39.00,0.00,39.00
Children and Young Peoples Services,Head of Childrens Social Care,085347,Solo Home The Manse,Supplies and Services,312009,Newspapers books and periodicals E312,06-Aug-2022,000008392180884,WH SMITH,5994,Newspapers books and periodicals,3.14,0.00,3.14
Neighbourhoods and Climate Change,Environmental Services,010367,C&G - South Grounds Maintenance,Supplies and Services,304221,Equipment and Materials,06-Aug-2022,000008392180892,B & Q 1203,5200,Direct materials,52.09,8.68,43.41
Children and Young Peoples Services,Head of Childrens Social Care,085331,New Lea Childrens Home,Supplies and Services,324117,Provisions E324,06-Aug-2022,000008392180908,ASDA SUPERSTORE,5411,Catering costs - provisions,23.65,0.00,23.65
Children and Young Peoples Services,Head of Childrens Social Care,085331,New Lea Childrens Home,Supplies and Services,324117,Provisions E324,06-Aug-2022,000008392180910,ASDA SUPERSTORE,5411,Catering costs - provisions,42.19,0.00,42.19
Children and Young Peoples Services,Head of Childrens Social Care,085331,New Lea Childrens Home,Supplies and Services,338099,Services,06-Aug-2022,000008392180914,PARKDEAN RESORTS H,7033,Other services,398.00,0.00,398.00
Neighbourhoods and Climate Change,Environmental Services,026591,C&G - Hardwick Park,Supplies and Services,304337,Equipment and Materials,06-Aug-2022,000008392180950,WWW.KEYCRAFTUK.COM,5945,Consumables/items for resale,395.40,0.00,395.40
Children and Young Peoples Services,Head of Childrens Social Care,085333,Coxhoe Satelite Home,Supplies and Services,348037,Subsistence E348,06-Aug-2022,000008392180986,43041115 COSTA COFFEE,5814,Subsistence,11.65,0.00,11.65
Children and Young Peoples Services,Head of Childrens Social Care,085333,Coxhoe Satelite Home,Supplies and Services,328041,Clothing uniforms and laundry E328,06-Aug-2022,000008392180994,THE WORKS,5310,Clothing uniforms and laundry,6.20,0.00,6.20
Children and Young Peoples Services,Head of Childrens Social Care,085333,Coxhoe Satelite Home,Supplies and Services,348037,Subsistence E348,06-Aug-2022,000008392180998,GREGGS,5812,Subsistence,8.75,0.00,8.75
Children and Young Peoples Services,Head of Early Help Inclusion & Vulnerable Children.,085956,Lumley,Supplies and Services,324117,Provisions E324,06-Aug-2022,000008392181088,TESCO STORES 6329,5411,Catering costs - provisions,118.60,0.00,118.60
Children and Young Peoples Services,Head of Early Help Inclusion & Vulnerable Children.,085956,Lumley,Supplies and Services,384302,Miscellaneous Expenses,06-Aug-2022,000008392181090,AMZNMKTPLACE AMAZON.CO,5999,Activity expenses,-24.00,-4.00,-20.00
Children and Young Peoples Services,Head of Early Help Inclusion & Vulnerable Children.,085956,Lumley,Supplies and Services,384302,Miscellaneous Expenses,06-Aug-2022,000008392181090 - 1,AMZNMKTPLACE AMAZON.CO,5999,Activity expenses,0.08,,0.08
Adult and Health Services,Head of Adults,055643,Hawthorn House LD Respite Unit,Supplies and Services,324117,Provisions E324,06-Aug-2022,000008392181180,SAINSBURYS S/MKTS,5411,Catering costs - provisions,31.55,0.00,31.55
Children and Young Peoples Services,Head of Childrens Social Care,085341,High Etherley Satelite Home,Supplies and Services,348037,Subsistence E348,06-Aug-2022,000008392181244,KFC THINFORD DURHAM PR,5814,Subsistence,55.37,0.00,55.37
Children and Young Peoples Services,Head of Childrens Social Care,085341,High Etherley Satelite Home,Supplies and Services,348037,Subsistence E348,06-Aug-2022,000008392181246,ZTL WONDERFUL WHIPPY L,5812,Subsistence,7.90,0.00,7.90
Children and Young Peoples Services,Head of Childrens Social Care,085331,New Lea Childrens Home,Supplies and Services,324117,Provisions E324,06-Aug-2022,000008392181324,TESCO STORES 6329,5411,Catering costs - provisions,0.99,0.00,0.99
Children and Young Peoples Services,Head of Childrens Social Care,085331,New Lea Childrens Home,Supplies and Services,324117,Provisions E324,06-Aug-2022,000008392181326,WM MORRISONS STORE,5411,Catering costs - provisions,0.98,0.00,0.98
Regeneration Economy and Growth,Culture Sport and Tourism,011204,Festival and Events,Supplies and Services,304999,Equipment and Materials,06-Aug-2022,000008392181418,HOME BARGAINS,5251,Misc equipment tools and materials,44.91,0.00,44.91
Regeneration Economy and Growth,Culture Sport and Tourism,011204,Festival and Events,Supplies and Services,324117,Provisions E324,06-Aug-2022,000008392181422,ASDA STORES,5411,Catering costs - provisions,38.25,0.00,38.25
Regeneration Economy and Growth,Culture Sport and Tourism,011204,Festival and Events,Supplies and Services,324117,Provisions E324,06-Aug-2022,000008392181428,ASDA STORES,5411,Catering costs - provisions,17.15,0.00,17.15
Neighbourhoods and Climate Change,Environmental Services,031118,E&D - Seascape,Supplies and Services,348037,Subsistence E348,06-Aug-2022,000008392181452,Clean Bean Restaurant,5812,Subsistence,5.70,0.00,5.70
Children and Young Peoples Services,Head of Education and Skills,071802,Louisa Cent Nursery,Supplies and Services,328041,Clothing uniforms and laundry E328,06-Aug-2022,000008392181486,POUNDLAND LTD 1597,5310,Clothing uniforms and laundry,2.00,0.00,2.00
Regeneration Economy and Growth,Culture Sport and Tourism,054812,Gala Theatre - Catering etc,Supplies and Services,324117,Provisions E324,06-Aug-2022,000008392181550,TESCO STORES,5411,Catering costs - provisions,4.25,0.00,4.25
Regeneration Economy and Growth,Culture Sport and Tourism,054233,Bishop Auckland Town Hall Library,Supplies and Services,324117,Provisions E324,06-Aug-2022,000008392181558,HERON FOODS,5411,Catering costs - provisions,1.58,0.00,1.58
Regeneration Economy and Growth,Corporate Property and Land,030691,Catering - Durham Dales Centre,Supplies and Services,324117,Provisions E324,06-Aug-2022,000008392181784,SCOTMID CO-OP STANHOPE,5411,Catering costs - provisions,14.10,0.00,14.10
Regeneration Economy and Growth,Culture Sport and Tourism,011265,Empire Theatre (Operations),Supplies and Services,384302,Miscellaneous Expenses,07-Aug-2022,000008392180598,AMZNMktplace,5999,Activity expenses,118.07,19.68,98.39
Children and Young Peoples Services,Head of Childrens Social Care,085342,16 Hickstead Rise (previously 9 Cedar Ave),Supplies and Services,324117,Provisions E324,07-Aug-2022,000008392180608,TESCO STORES 2371,5411,Catering costs - provisions,55.44,0.00,55.44
Children and Young Peoples Services,Head of Education and Skills,078100,Curric and Professional Development 078100,Supplies and Services,342033,Computers and Communications,07-Aug-2022,000008392180630,STK Shutterstock,7333,Computer hardware,22.80,0.00,22.80
Children and Young Peoples Services,Head of Childrens Social Care,085332,Middlestone Moor CU,Supplies and Services,324117,Provisions E324,07-Aug-2022,000008392180776,ASDA SUPERSTORE 4987,5411,Catering costs - provisions,20.43,0.00,20.43
Children and Young Peoples Services,Head of Childrens Social Care,085358,Orchard House Sacriston Solo Home,Supplies and Services,372009,Subscriptions E372,07-Aug-2022,000008392180900,NETFLIX.COM,4899,Subscriptions 372009,15.99,0.00,15.99
Regeneration Economy and Growth,Culture Sport and Tourism,054813,Gala Theatre - Technical,Supplies and Services,304259,Equipment and Materials,07-Aug-2022,000008392180926,AMZNMktplace,5999,Equipment-purchase and rental,139.99,23.33,116.66
Neighbourhoods and Climate Change,Environmental Services,026591,C&G - Hardwick Park,Supplies and Services,304337,Equipment and Materials,07-Aug-2022,000008392180952,WWW.PETSATHOME.COM,5995,Consumables/items for resale,64.24,0.00,64.24
Neighbourhoods and Climate Change,Environmental Services,026591,C&G - Hardwick Park,Supplies and Services,304337,Equipment and Materials,07-Aug-2022,000008392180956,WWW.KEYCRAFTUK.COM,5945,Consumables/items for resale,422.31,0.00,422.31
Children and Young Peoples Services,Head of Early Help Inclusion & Vulnerable Children.,085954,Walworth,Supplies and Services,324117,Provisions E324,07-Aug-2022,000008392181094,TESCO STORES 6329,5411,Catering costs - provisions,147.96,0.00,147.96
Regeneration Economy and Growth,Culture Sport and Tourism,054399,Local Delivery-Libraries,Supplies and Services,304403,Equipment and Materials,07-Aug-2022,000008392181116,AMZNBusiness B39NJ0I75,5999,Other consumables,10.96,0.00,10.96
Regeneration Economy and Growth,Culture Sport and Tourism,054399,Local Delivery-Libraries,Supplies and Services,304403,Equipment and Materials,07-Aug-2022,000008392181118,AMZNBusiness 0563X8EW5,5999,Other consumables,21.92,0.00,21.92
Neighbourhoods and Climate Change,Environmental Services,010449,R&R - East Refuse Collection,Supplies and Services,304403,Equipment and Materials,07-Aug-2022,000008392181168,AMZNMktplace,5999,Other consumables,23.19,0.00,23.19
Children and Young Peoples Services,Head of Childrens Social Care,085347,Solo Home The Manse,Supplies and Services,348037,Subsistence E348,07-Aug-2022,000008392181208,La spada,5812,Subsistence,37.55,0.00,37.55
Children and Young Peoples Services,Head of Childrens Social Care,085347,Solo Home The Manse,Supplies and Services,324117,Provisions E324,07-Aug-2022,000008392181210,TESCO STORES 2371,5411,Catering costs - provisions,18.10,0.00,18.10
Children and Young Peoples Services,Head of Childrens Social Care,085331,New Lea Childrens Home,Supplies and Services,372009,Subscriptions E372,07-Aug-2022,000008392181320,Netflix,4899,Subscriptions 372009,15.99,0.00,15.99
Children and Young Peoples Services,Head of Early Help Inclusion & Vulnerable Children.,088102,Consett & Stanley Intensive Family Support Team,Supplies and Services,384302,Miscellaneous Expenses,07-Aug-2022,000008392181346,AMZNMktplace,5999,Activity expenses,25.92,4.32,21.60
Children and Young Peoples Services,Head of Early Help Inclusion & Vulnerable Children.,088102,Consett & Stanley Intensive Family Support Team,Supplies and Services,384302,Miscellaneous Expenses,07-Aug-2022,000008392181346 - 1,AMZNMktplace,5999,Activity expenses,0.04,,0.04
Children and Young Peoples Services,Head of Childrens Social Care,085342,16 Hickstead Rise (previously 9 Cedar Ave),Supplies and Services,304403,Equipment and Materials,07-Aug-2022,000008392181364,AMZNMktplace,5999,Other consumables,24.23,0.00,24.23
Children and Young Peoples Services,Head of Childrens Social Care,085342,16 Hickstead Rise (previously 9 Cedar Ave),Supplies and Services,324117,Provisions E324,07-Aug-2022,000008392181368,STARBUCKS BISHOP AUCKL,5499,Catering costs - provisions,15.80,0.00,15.80
Regeneration Economy and Growth,Culture Sport and Tourism,011204,Festival and Events,Supplies and Services,324117,Provisions E324,07-Aug-2022,000008392181432,ASDA STORES,5411,Catering costs - provisions,1.45,0.00,1.45
Neighbourhoods and Climate Change,Environmental Services,031118,E&D - Seascape,Supplies and Services,348037,Subsistence E348,07-Aug-2022,000008392181456,Clean Bean Restaurant,5812,Subsistence,8.90,0.00,8.90
Neighbourhoods and Climate Change,Environmental Services,031118,E&D - Seascape,Supplies and Services,348037,Subsistence E348,07-Aug-2022,000008392181462,Lickety Split Creamery,5812,Subsistence,10.00,0.00,10.00
Children and Young Peoples Services,Head of Childrens Social Care,085334,West Rainton Satelite Home,Supplies and Services,324117,Provisions E324,07-Aug-2022,000008392181654,ASDA SUPERSTORE,5411,Catering costs - provisions,259.02,0.00,259.02
Children and Young Peoples Services,Head of Childrens Social Care,085334,West Rainton Satelite Home,Supplies and Services,324117,Provisions E324,07-Aug-2022,000008392181658,ASDA SUPERSTORE,5411,Catering costs - provisions,69.34,0.00,69.34
Children and Young Peoples Services,Head of Childrens Social Care,085334,West Rainton Satelite Home,Supplies and Services,324117,Provisions E324,07-Aug-2022,000008392181660,TESCO STORES 2371,5411,Catering costs - provisions,25.20,0.00,25.20
Resources BK0010,Digital Services,065481,Technical Services 065481,Supplies and Services,304403,Equipment and Materials,07-Aug-2022,000008392181680,AMZNMKTPLACE AMAZON.CO,5999,Other consumables,13.92,2.32,11.60
Resources BK0010,Digital Services,065481,Technical Services 065481,Supplies and Services,304403,Equipment and Materials,07-Aug-2022,000008392181680 - 1,AMZNMKTPLACE AMAZON.CO,5999,Other consumables,0.04,,0.04
Regeneration Economy and Growth,Communications Management,060270,Communications and Marketing,Supplies and Services,336005,Advertising E336,07-Aug-2022,000008392181684,LinkedIn 8117100434,7311,Advertising other than for staff,43.54,0.00,43.54
Regeneration Economy and Growth,Communications Management,060270,Communications and Marketing,Supplies and Services,336005,Advertising E336,07-Aug-2022,000008392181690,FACEBK T2SFPEB4B2,7311,Advertising other than for staff,500.00,0.00,500.00
Resources BK0010,Digital Services,065432,Web Development Group,Supplies and Services,342033,Computers and Communications,07-Aug-2022,000008392181692,WPMU DEV INCSUBFEE.COM,7372,Computer hardware,15.83,0.00,15.83
Regeneration Economy and Growth,Business Durham CL0850,030689,Inward Investment and Aftercare,Supplies and Services,342222,Computers and Communications,07-Aug-2022,000008399170332,FASTHOSTS,4816,Comp hardware purch-network servers,6.34,0.00,6.34
Regeneration Economy and Growth,Culture Sport and Tourism,030705,Visit County Durham 030705,Supplies and Services,304259,Equipment and Materials,07-Aug-2022,000008399170360,FASTHOSTS,4816,Equipment-purchase and rental,6.34,1.06,5.28
Children and Young Peoples Services,Head of Childrens Social Care,085342,16 Hickstead Rise (previously 9 Cedar Ave),Supplies and Services,308011,Furniture,07-Aug-2022,000008399170368,The Range,5719,Furniture repair and replacement,79.64,0.00,79.64
Children and Young Peoples Services,Head of Childrens Social Care,085342,16 Hickstead Rise (previously 9 Cedar Ave),Supplies and Services,348037,Subsistence E348,07-Aug-2022,000008399170372,MCDONALDS,5814,Subsistence,28.76,0.00,28.76
Children and Young Peoples Services,Head of Childrens Social Care,085511,Emergency Duty Team,Employees,040149,Recruitment Instruction and Training,07-Aug-2022,000008399170436,PREMIER INN,3811,Training-all costs,93.84,0.00,93.84
Children and Young Peoples Services,Head of Childrens Social Care,085342,16 Hickstead Rise (previously 9 Cedar Ave),Supplies and Services,348037,Subsistence E348,07-Aug-2022,000008399170622,MCDONALDS,5814,Subsistence,2.89,0.00,2.89
Children and Young Peoples Services,Head of Childrens Social Care,085332,Middlestone Moor CU,Supplies and Services,348037,Subsistence E348,07-Aug-2022,000008399170722,MCDONALDS,5812,Subsistence,6.76,0.00,6.76
Children and Young Peoples Services,Head of Childrens Social Care,085334,West Rainton Satelite Home,Supplies and Services,328041,Clothing uniforms and laundry E328,07-Aug-2022,000008399170724,THE WORKS,5310,Clothing uniforms and laundry,4.00,0.00,4.00
Resources BK0010,Digital Services,011103,Digital Solutions,Supplies and Services,304403,Equipment and Materials,08-Aug-2022,000008392181682,DRI MSP360TM,5734,Other consumables,0.65,0.00,0.65
Resources BK0010,Digital Services,065432,Web Development Group,Supplies and Services,342033,Computers and Communications,08-Aug-2022,000008392181698,WPMU DEV INCSUBFEE.COM,7372,Computer hardware,0.44,0.00,0.44
Children and Young Peoples Services,Head of Education and Skills,071801,Selby Cottage Childcare Centre,Supplies and Services,304999,Equipment and Materials,08-Aug-2022,000008399170340,Amazon Prime TY7CS5AE5,5968,Misc equipment tools and materials,7.99,0.00,7.99
Children and Young Peoples Services,Head of Education and Skills,071801,Selby Cottage Childcare Centre,Supplies and Services,324117,Provisions E324,08-Aug-2022,000008399170342,ONE STOP 3026,5411,Catering costs - provisions,5.80,0.00,5.80
Children and Young Peoples Services,Head of Childrens Social Care,085501,Child Care Cases Legal Expenses,Supplies and Services,304403,Equipment and Materials,08-Aug-2022,000008399170354,STOCKTON BOROUGH COUNC,9399,Other consumables,11.00,0.00,11.00
Children and Young Peoples Services,Head of Childrens Social Care,085501,Child Care Cases Legal Expenses,Supplies and Services,304403,Equipment and Materials,08-Aug-2022,000008399170356,SUNDERLAND CC,9399,Other consumables,11.00,0.00,11.00
Neighbourhoods and Climate Change,Environmental Services,010383,C&G - South Street Cleansing,Supplies and Services,304999,Equipment and Materials,08-Aug-2022,000008399170358,NEW ROW FARM NURSERIES,780,Misc equipment tools and materials,221.90,0.00,221.90
Regeneration Economy and Growth,Culture Sport and Tourism,030712,VCD - Project Delivery,Supplies and Services,384199,Miscellaneous Expenses,08-Aug-2022,000008399170362,FACEBK DAEPVFXQH2,7311,Other hired and contracted services,90.00,0.00,90.00
Regeneration Economy and Growth,Culture Sport and Tourism,030712,VCD - Project Delivery,Supplies and Services,384199,Miscellaneous Expenses,08-Aug-2022,000008399170364,PAYPAL WEBALON,5817,Other hired and contracted services,6.51,0.00,6.51
Children and Young Peoples Services,Head of Childrens Social Care,085341,High Etherley Satelite Home,Supplies and Services,324117,Provisions E324,08-Aug-2022,000008399170374,ASDA SUPERSTORE 4987,5411,Catering costs - provisions,14.85,0.00,14.85
Children and Young Peoples Services,Head of Childrens Social Care,085341,High Etherley Satelite Home,Supplies and Services,324117,Provisions E324,08-Aug-2022,000008399170376,ASDA SUPERSTORE 4987,5411,Catering costs - provisions,2.10,0.00,2.10
Children and Young Peoples Services,Head of Childrens Social Care,085341,High Etherley Satelite Home,Supplies and Services,348037,Subsistence E348,08-Aug-2022,000008399170378,SUBWAY 45256 Auckland,5814,Subsistence,15.59,0.00,15.59
Children and Young Peoples Services,Head of Childrens Social Care,085341,High Etherley Satelite Home,Supplies and Services,304999,Equipment and Materials,08-Aug-2022,000008399170384,BOOTS 6023,5912,Misc equipment tools and materials,11.98,0.00,11.98
Children and Young Peoples Services,Head of Early Help Inclusion & Vulnerable Children.,088105,W/Close and Willington Family Centre,Supplies and Services,324117,Provisions E324,08-Aug-2022,000008399170416,ASDA GROCERIES ONLINE,5411,Catering costs - provisions,39.91,0.00,39.91
Children and Young Peoples Services,Head of Childrens Social Care,085347,Solo Home The Manse,Supplies and Services,304403,Equipment and Materials,08-Aug-2022,000008399170442,AMZNMktplace,5999,Other consumables,120.12,0.00,120.12
Neighbourhoods and Climate Change,Environmental Services,010367,C&G - South Grounds Maintenance,Supplies and Services,304999,Equipment and Materials,08-Aug-2022,000008399170446,Harelaw sawmill delive,5251,Misc equipment tools and materials,61.04,10.17,50.87
Adult and Health Services,Head of Adults,055302,Durham Pathways,Supplies and Services,324117,Provisions E324,08-Aug-2022,000008399170450,WILKO RETAIL LIMITED,5399,Catering costs - provisions,6.00,0.00,6.00
Adult and Health Services,Head of Adults,055302,Durham Pathways,Supplies and Services,324117,Provisions E324,08-Aug-2022,000008399170452,HERON FOODS,5411,Catering costs - provisions,11.01,0.00,11.01
Adult and Health Services,Head of Adults,055302,Durham Pathways,Supplies and Services,324117,Provisions E324,08-Aug-2022,000008399170456,ASDA SUPERSTORE 4987,5411,Catering costs - provisions,140.00,0.00,140.00
Adult and Health Services,Head of Adults,055302,Durham Pathways,Supplies and Services,324117,Provisions E324,08-Aug-2022,000008399170458,TESCO STORES 2916,5411,Catering costs - provisions,5.15,0.00,5.15
Adult and Health Services,Head of Adults,055302,Durham Pathways,Supplies and Services,304403,Equipment and Materials,08-Aug-2022,000008399170460,AMZNBusiness 7U81Z8GY5,5999,Other consumables,21.72,3.64,18.08
Regeneration Economy and Growth,Culture Sport and Tourism,054813,Gala Theatre - Technical,Supplies and Services,304259,Equipment and Materials,08-Aug-2022,000008399170464,Trading Depot,5251,Equipment-purchase and rental,23.50,0.00,23.50
Regeneration Economy and Growth,Culture Sport and Tourism,054813,Gala Theatre - Technical,Supplies and Services,304259,Equipment and Materials,08-Aug-2022,000008399170466,AMZNMktplace,5999,Equipment-purchase and rental,33.00,5.50,27.50
Children and Young Peoples Services,Head of Early Help Inclusion & Vulnerable Children.,085962,Aycliffe Secure - Durham,Supplies and Services,324117,Provisions E324,08-Aug-2022,000008399170468,TESCO STORES 2916,5411,Catering costs - provisions,11.20,0.00,11.20
Children and Young Peoples Services,Head of Early Help Inclusion & Vulnerable Children.,085956,Lumley,Transfer Payments,515002,Social Services Clients,08-Aug-2022,000008399170490,SHEIN.COM,5399,Pocket money,-9.49,0.00,-9.49
Children and Young Peoples Services,Head of Early Help Inclusion & Vulnerable Children.,088109,Dean Bank and Tudhoe Family Centre,Supplies and Services,384302,Miscellaneous Expenses,08-Aug-2022,000008399170526,AMZNMKTPLACE AMAZON.CO,5999,Activity expenses,49.80,8.30,41.50
Children and Young Peoples Services,Head of Early Help Inclusion & Vulnerable Children.,088109,Dean Bank and Tudhoe Family Centre,Supplies and Services,384302,Miscellaneous Expenses,08-Aug-2022,000008399170526 - 1,AMZNMKTPLACE AMAZON.CO,5999,Activity expenses,0.10,,0.10
Neighbourhoods and Climate Change,Environmental Services,010367,C&G - South Grounds Maintenance,Supplies and Services,304999,Equipment and Materials,08-Aug-2022,000008399170530,Snowballs,5251,Misc equipment tools and materials,397.80,0.00,397.80
Children and Young Peoples Services,Head of Education and Skills,071802,Louisa Cent Nursery,Supplies and Services,324117,Provisions E324,08-Aug-2022,000008399170554,ASDA SUPERSTORE,5411,Catering costs - provisions,47.05,0.00,47.05
Regeneration Economy and Growth,Economic Development Level C,030771,Durham Advance Flexible Fund,Transport,235057,Public Transport,08-Aug-2022,000008399170556,WWW.GONORTHEAST.CO.UK,4111,Staff travelling,21.50,0.00,21.50
Children and Young Peoples Services,Head of Childrens Social Care,085342,16 Hickstead Rise (previously 9 Cedar Ave),Supplies and Services,324117,Provisions E324,08-Aug-2022,000008399170562,HERON FOODS,5411,Catering costs - provisions,45.91,0.00,45.91
Children and Young Peoples Services,Head of Childrens Social Care,085342,16 Hickstead Rise (previously 9 Cedar Ave),Supplies and Services,304999,Equipment and Materials,08-Aug-2022,000008399170566,"BOOTS/5009,NEWTON",5912,Misc equipment tools and materials,4.50,0.00,4.50
Children and Young Peoples Services,Head of Childrens Social Care,085342,16 Hickstead Rise (previously 9 Cedar Ave),Supplies and Services,304403,Equipment and Materials,08-Aug-2022,000008399170570,CARD FACTORY,5947,Other consumables,6.95,0.00,6.95
Children and Young Peoples Services,Head of Childrens Social Care,085334,West Rainton Satelite Home,Supplies and Services,384237,Miscellaneous Expenses,08-Aug-2022,000008399170604,ALPAMARE NORTH BAY WAT,7999,Recreational exps outings parties,42.00,0.00,42.00
Resources BK0010,Digital Services,065335,School Services - Implementations,Supplies and Services,304639,Equipment and Materials,08-Aug-2022,000008399170616,LAPTOP-LCD-SCREEN,5732,Technicians-supplies,58.14,0.00,58.14
Resources BK0010,Digital Services,065335,School Services - Implementations,Supplies and Services,304303,Equipment and Materials,08-Aug-2022,000008399170618,CABLES DIRECT LTD,8999,Network for resale,175.20,0.00,175.20
Children and Young Peoples Services,Head of Childrens Social Care,085347,Solo Home The Manse,Supplies and Services,304999,Equipment and Materials,08-Aug-2022,000008399170628,WWW.PLANET-LEISURE.CO.,7933,Misc equipment tools and materials,43.80,0.00,43.80
Children and Young Peoples Services,Head of Childrens Social Care,085347,Solo Home The Manse,Supplies and Services,304259,Equipment and Materials,08-Aug-2022,000008399170630,CAR PARK,9399,Equipment-purchase and rental,2.50,0.00,2.50
Children and Young Peoples Services,Head of Childrens Social Care,085347,Solo Home The Manse,Supplies and Services,348037,Subsistence E348,08-Aug-2022,000008399170632,SumUp Hamstery fore,5812,Subsistence,6.00,0.00,6.00
Children and Young Peoples Services,Head of Childrens Social Care,085347,Solo Home The Manse,Supplies and Services,324117,Provisions E324,08-Aug-2022,000008399170634,TESCO STORES 2371,5411,Catering costs - provisions,122.18,0.00,122.18
Neighbourhoods and Climate Change,Environmental Services,010367,C&G - South Grounds Maintenance,Supplies and Services,304999,Equipment and Materials,08-Aug-2022,000008399170644,BESCOL LIMITED,5251,Misc equipment tools and materials,442.80,0.00,442.80
Children and Young Peoples Services,Head of Early Help Inclusion & Vulnerable Children.,085801,CDYJS - Support,Supplies and Services,324117,Provisions E324,08-Aug-2022,000008399170656,TESCO GIFT CARD,5411,Catering costs - provisions,150.00,0.00,150.00
Regeneration Economy and Growth,Economic Development Level C,030544,Rural Employability - Client Engagement,Employees,040149,Recruitment Instruction and Training,08-Aug-2022,000008399170658,REGIONAL TRAINING PART,8249,Training-all costs,415.00,0.00,415.00
Children and Young Peoples Services,Head of Childrens Social Care,085351,Framwellgate Moor CU,Supplies and Services,352001,Conference Expenses,08-Aug-2022,000008399170664,Hotel at Booking.com,7011,Conferencesseminars fees etc,342.00,0.00,342.00
Children and Young Peoples Services,Head of Childrens Social Care,085351,Framwellgate Moor CU,Supplies and Services,384999,Miscellaneous Expenses,08-Aug-2022,000008399170668,Blackpool Dungeon,7922,Other expenses,16.00,0.00,16.00
Children and Young Peoples Services,Head of Childrens Social Care,085351,Framwellgate Moor CU,Supplies and Services,384999,Miscellaneous Expenses,08-Aug-2022,000008399170670,Sea Life Blackpool,7922,Other expenses,18.50,0.00,18.50
Children and Young Peoples Services,Head of Childrens Social Care,085351,Framwellgate Moor CU,Supplies and Services,304999,Equipment and Materials,08-Aug-2022,000008399170674,Madame Tussauds,7991,Misc equipment tools and materials,17.50,0.00,17.50
Children and Young Peoples Services,Head of Childrens Social Care,085614,Families First Durham West,Supplies and Services,364340,Grants to Voluntary Organisations,08-Aug-2022,000008399170684,WWW.GONORTHEAST.CO.UK,4111,Contact expenses,34.00,0.00,34.00
Children and Young Peoples Services,Head of Childrens Social Care,085614,Families First Durham West,Supplies and Services,364340,Grants to Voluntary Organisations,08-Aug-2022,000008399170686,WWW.GONORTHEAST.CO.UK,4111,Contact expenses,34.00,0.00,34.00
Regeneration Economy and Growth,Culture Sport and Tourism,054812,Gala Theatre - Catering etc,Supplies and Services,324117,Provisions E324,08-Aug-2022,000008399170702,TESCO STORES,5411,Catering costs - provisions,2.50,0.00,2.50
Neighbourhoods and Climate Change,Environmental Services,031200,North Pennines Core,Supplies and Services,348037,Subsistence E348,08-Aug-2022,000008399170710,THE GREY BULL,5813,Subsistence,3.80,0.00,3.80
Regeneration Economy and Growth,Culture Sport and Tourism,054233,Bishop Auckland Town Hall Library,Supplies and Services,324117,Provisions E324,08-Aug-2022,000008399170712,HERON FOODS,5411,Catering costs - provisions,8.36,0.00,8.36
Children and Young Peoples Services,Head of Childrens Social Care,085358,Orchard House Sacriston Solo Home,Supplies and Services,324117,Provisions E324,08-Aug-2022,000008399170716,ASDA GROCERIES ONLINE,5411,Catering costs - provisions,102.33,0.00,102.33
Children and Young Peoples Services,Head of Childrens Social Care,085358,Orchard House Sacriston Solo Home,Supplies and Services,324117,Provisions E324,08-Aug-2022,000008399170718,ASDA GROCERIES ONLINE,5411,Catering costs - provisions,-2.79,0.00,-2.79
Regeneration Economy and Growth,Planning & Housing,030999,Head of Planning & Housing,Supplies and Services,304403,Equipment and Materials,08-Aug-2022,000008399170728,AMZNMktplace,5999,Other consumables,6.98,1.16,5.82
Resources BK0010,Legal & Democratic Services,067910,Democratic Representation 067910,Supplies and Services,304403,Equipment and Materials,08-Aug-2022,000008399170730,AMZNMktplace,5999,Other consumables,3.98,0.66,3.32
Resources BK0010,Resources Management CK0450,069000,Resources Management 069000,Supplies and Services,304259,Equipment and Materials,08-Aug-2022,000008399170736,APPLE.COM/BILL,5735,Equipment-purchase and rental,0.79,0.00,0.79
Regeneration Economy and Growth,Planning & Housing,031634,LOCAL LETTINGS AGENCY,Premises,120037,Energy Costs,08-Aug-2022,000008399170754,EDF ENERGY-IVR,4900,Other fuels,26.08,0.00,26.08
Regeneration Economy and Growth,Planning & Housing,031576,B& B - Temp Accom,Supplies and Services,364320,Grants to Voluntary Organisations,08-Aug-2022,000008399170802,TRAVELODGE,3615,Accommodation assistance,82.60,0.00,82.60
Regeneration Economy and Growth,Planning & Housing,031576,B& B - Temp Accom,Supplies and Services,364320,Grants to Voluntary Organisations,08-Aug-2022,000008399170804,TRAVELODGE,3615,Accommodation assistance,63.22,0.00,63.22
Regeneration Economy and Growth,Planning & Housing,031576,B& B - Temp Accom,Supplies and Services,364320,Grants to Voluntary Organisations,08-Aug-2022,000008399170806,H52STANLEY,7011,Accommodation assistance,135.00,0.00,135.00
Children and Young Peoples Services,Head of Early Help Inclusion & Vulnerable Children.,088107,Wheatley Hill & N. Aycliffe Family Centre,Supplies and Services,304403,Equipment and Materials,08-Aug-2022,000008399170812,AMZNMktplace,5999,Other consumables,50.95,0.00,50.95
Children and Young Peoples Services,Head of Early Help Inclusion & Vulnerable Children.,088110,Easington & Peterlee Intensive Family Support Team,Supplies and Services,304403,Equipment and Materials,08-Aug-2022,000008399170816,AMZNMKTPLACE AMAZON.CO,5999,Other consumables,13.00,0.00,13.00
Regeneration Economy and Growth,Corporate Property and Land,010525,Catering - Green Lane,Supplies and Services,324117,Provisions E324,08-Aug-2022,000008399215292,JR HOLLAND FOODSERVICE,5499,Catering costs - provisions,47.80,0.00,47.80
Regeneration Economy and Growth,Corporate Property and Land,010525,Catering - Green Lane,Supplies and Services,324117,Provisions E324,08-Aug-2022,000008399215294,JR HOLLAND FOODSERVICE,5499,Catering costs - provisions,1.51,0.00,1.51
Regeneration Economy and Growth,Corporate Property and Land,011296,Catering - Dunes,Supplies and Services,324117,Provisions E324,08-Aug-2022,000008399215296,JR HOLLAND FOODSERVICE,5499,Catering costs - provisions,104.29,0.00,104.29
Regeneration Economy and Growth,Corporate Property and Land,030691,Catering - Durham Dales Centre,Supplies and Services,324117,Provisions E324,08-Aug-2022,000008399215298,JR HOLLAND FOODSERVICE,5499,Catering costs - provisions,37.80,0.00,37.80
Regeneration Economy and Growth,Culture Sport and Tourism,054235,Bishop Auckland Town Hall Cafe,Supplies and Services,324117,Provisions E324,08-Aug-2022,000008399215300,JR HOLLAND FOODSERVICE,5499,Catering costs - provisions,452.75,0.00,452.75
Adult and Health Services,Head of Adults,055643,Hawthorn House LD Respite Unit,Supplies and Services,324117,Provisions E324,08-Aug-2022,000008399215304,JR HOLLAND FOODSERVICE,5499,Catering costs - provisions,22.62,0.00,22.62
Adult and Health Services,Head of Adults,055643,Hawthorn House LD Respite Unit,Supplies and Services,324117,Provisions E324,08-Aug-2022,000008399215306,JR HOLLAND FOODSERVICE,5499,Catering costs - provisions,25.20,0.00,25.20
Neighbourhoods and Climate Change,Environmental Services,011060,C&G - Hardwick Park Catering,Supplies and Services,324117,Provisions E324,08-Aug-2022,000008399215308,JR HOLLAND FOODSERVICE,5499,Catering costs - provisions,61.91,0.00,61.91
Regeneration Economy and Growth,Corporate Property and Land,021234,Catering - Locomotion,Supplies and Services,324117,Provisions E324,08-Aug-2022,000008399215314,JR HOLLAND FOODSERVICE,5499,Catering costs - provisions,60.61,0.00,60.61
Regeneration Economy and Growth,Culture Sport and Tourism,011263,Louisa Centre 011263,Supplies and Services,324117,Provisions E324,08-Aug-2022,000008399215316,JR HOLLAND FOODSERVICE,5499,Catering costs - provisions,32.30,0.00,32.30
Regeneration Economy and Growth,Corporate Property and Land,021242,Catering - County Hall,Supplies and Services,324117,Provisions E324,08-Aug-2022,000008399215318,JR HOLLAND FOODSERVICE,5499,Catering costs - provisions,96.99,0.00,96.99
Regeneration Economy and Growth,Corporate Property and Land,021242,Catering - County Hall,Supplies and Services,324117,Provisions E324,08-Aug-2022,000008399215320,JR HOLLAND FOODSERVICE,5499,Catering costs - provisions,23.60,0.00,23.60
Neighbourhoods and Climate Change,Environmental Services,010367,C&G - South Grounds Maintenance,Supplies and Services,304221,Equipment and Materials,08-Aug-2022,000008402941214,SCREWFIX DIR LTD,5211,Direct materials,9.99,0.00,9.99
Children and Young Peoples Services,Head of Early Help Inclusion & Vulnerable Children.,088109,Dean Bank and Tudhoe Family Centre,Supplies and Services,384302,Miscellaneous Expenses,08-Aug-2022,000008402941262,AMZNMKTPLACE AMAZON.CO,5999,Activity expenses,48.00,8.00,40.00
Children and Young Peoples Services,Head of Early Help Inclusion & Vulnerable Children.,088109,Dean Bank and Tudhoe Family Centre,Supplies and Services,384302,Miscellaneous Expenses,08-Aug-2022,000008402941266,AMZNMKTPLACE AMAZON.CO,5999,Activity expenses,17.97,0.00,17.97
Children and Young Peoples Services,Head of Early Help Inclusion & Vulnerable Children.,088109,Dean Bank and Tudhoe Family Centre,Supplies and Services,384302,Miscellaneous Expenses,08-Aug-2022,000008402941268,AMZNMKTPLACE AMAZON.CO,5999,Activity expenses,101.83,0.00,101.83
Adult and Health Services,Head of Adults,055643,Hawthorn House LD Respite Unit,Supplies and Services,324117,Provisions E324,08-Aug-2022,000008402941302,CO-OP GROUP 010465,5411,Catering costs - provisions,13.10,0.00,13.10
Children and Young Peoples Services,Head of Childrens Social Care,085342,16 Hickstead Rise (previously 9 Cedar Ave),Supplies and Services,348037,Subsistence E348,08-Aug-2022,000008402941322,GRETNA GREEN HOTEL,5813,Subsistence,16.68,0.00,16.68
Children and Young Peoples Services,Head of Education and Skills,078550,Discretionary Learning Support,Supplies and Services,304259,Equipment and Materials,08-Aug-2022,000008402941354,SMARTY CO UK,4814,Equipment-purchase and rental,6.00,0.00,6.00
Children and Young Peoples Services,Head of Childrens Social Care,085351,Framwellgate Moor CU,Supplies and Services,348037,Subsistence E348,08-Aug-2022,000008402941416,MCDONALDS,5812,Subsistence,12.08,0.00,12.08
Children and Young Peoples Services,Head of Childrens Social Care,085351,Framwellgate Moor CU,Supplies and Services,384237,Miscellaneous Expenses,08-Aug-2022,000008402941418,BLACKPOOL PLEASURE,7999,Recreational exps outings parties,195.00,0.00,195.00
Regeneration Economy and Growth,Culture Sport and Tourism,054233,Bishop Auckland Town Hall Library,Supplies and Services,324117,Provisions E324,08-Aug-2022,000008402941446,WM MORRISONS STORE,5411,Catering costs - provisions,8.00,0.00,8.00
Children and Young Peoples Services,Head of Childrens Social Care,085551,Short Break Services-Park Hse Sher,Supplies and Services,304259,Equipment and Materials,08-Aug-2022,000008402941472,VISITOR CENTRE,9399,Equipment-purchase and rental,15.90,0.00,15.90
Regeneration Economy and Growth,Planning & Housing,031576,B& B - Temp Accom,Supplies and Services,364320,Grants to Voluntary Organisations,08-Aug-2022,000008402941494,HOTEL EXPRESS LTD,7011,Accommodation assistance,38.00,0.00,38.00
Regeneration Economy and Growth,Corporate Property and Land,011296,Catering - Dunes,Supplies and Services,324117,Provisions E324,08-Aug-2022,000008403024956,BATLEYS PERTH,5300,Catering costs - provisions,190.92,31.82,159.10
Regeneration Economy and Growth,Corporate Property and Land,011296,Catering - Dunes,Supplies and Services,324117,Provisions E324,08-Aug-2022,000008403024956 - 1,BATLEYS PERTH,5300,Catering costs - provisions,98.66,,98.66
Regeneration Economy and Growth,Corporate Property and Land,030691,Catering - Durham Dales Centre,Supplies and Services,324117,Provisions E324,08-Aug-2022,000008403024960,BATLEYS PERTH,5300,Catering costs - provisions,132.66,22.11,110.55
Regeneration Economy and Growth,Corporate Property and Land,030691,Catering - Durham Dales Centre,Supplies and Services,324117,Provisions E324,08-Aug-2022,000008403024960 - 1,BATLEYS PERTH,5300,Catering costs - provisions,119.17,,119.17
Regeneration Economy and Growth,Corporate Property and Land,021235,Catering - Wharton Park,Supplies and Services,324117,Provisions E324,08-Aug-2022,000008403024964,BATLEYS PERTH,5300,Catering costs - provisions,118.68,19.78,98.90
Regeneration Economy and Growth,Corporate Property and Land,021235,Catering - Wharton Park,Supplies and Services,324117,Provisions E324,08-Aug-2022,000008403024964 - 1,BATLEYS PERTH,5300,Catering costs - provisions,15.81,,15.81
Regeneration Economy and Growth,Culture Sport and Tourism,054812,Gala Theatre - Catering etc,Supplies and Services,324117,Provisions E324,08-Aug-2022,000008403024970,BATLEYS PERTH,5300,Catering costs - provisions,144.81,0.00,144.81
Children and Young Peoples Services,Head of Childrens Social Care,085341,High Etherley Satelite Home,Supplies and Services,338099,Services,08-Aug-2022,000008407623204,FLAMINGOLAND.CO.UK,7033,Other services,943.00,0.00,943.00
Children and Young Peoples Services,Head of Childrens Social Care,085342,16 Hickstead Rise (previously 9 Cedar Ave),Supplies and Services,372009,Subscriptions E372,09-Aug-2022,000008399170572,NETFLIX.COM,4899,Subscriptions 372009,15.99,0.00,15.99
Children and Young Peoples Services,Head of Early Help Inclusion & Vulnerable Children.,085957,Secure Management,Supplies and Services,384302,Miscellaneous Expenses,09-Aug-2022,000008399170626,Microsoft Ultimate 1 M,5816,Activity expenses,10.99,0.00,10.99
Children and Young Peoples Services,Head of Early Help Inclusion & Vulnerable Children.,088107,Wheatley Hill & N. Aycliffe Family Centre,Supplies and Services,304403,Equipment and Materials,09-Aug-2022,000008399170706,AMZNBusiness 6Z2R52M85,5999,Other consumables,15.00,2.50,12.50
Regeneration Economy and Growth,Business Durham CL0850,030689,Inward Investment and Aftercare,Supplies and Services,304999,Equipment and Materials,09-Aug-2022,000008402940894,MAILCHIMP MISC,5968,Misc equipment tools and materials,97.62,0.00,97.62
Children and Young Peoples Services,Head of Childrens Social Care,085612,Families First Consett,Supplies and Services,364301,Grants to Voluntary Organisations,09-Aug-2022,000008402940906,VOUCHER EXPRESS,7399,Hardship,70.00,0.00,70.00
Children and Young Peoples Services,Head of Childrens Social Care,085341,High Etherley Satelite Home,Supplies and Services,324117,Provisions E324,09-Aug-2022,000008402940944,TESCO STORES 6329,5411,Catering costs - provisions,26.65,0.00,26.65
Neighbourhoods and Climate Change,Environmental Services,010383,C&G - South Street Cleansing,Supplies and Services,304221,Equipment and Materials,09-Aug-2022,000008402940982,CARRS BILLINGTON SPENN,5599,Direct materials,157.50,0.00,157.50
Regeneration Economy and Growth,Culture Sport and Tourism,054851,Community Arts,Supplies and Services,384302,Miscellaneous Expenses,09-Aug-2022,000008402940988,AMZNMktplace,5999,Activity expenses,71.96,12.00,59.96
Children and Young Peoples Services,Head of Childrens Social Care,085332,Middlestone Moor CU,Supplies and Services,324117,Provisions E324,09-Aug-2022,000008402941008,ASDA STORES,5411,Catering costs - provisions,75.22,0.00,75.22
Children and Young Peoples Services,Head of Childrens Social Care,085332,Middlestone Moor CU,Supplies and Services,324117,Provisions E324,09-Aug-2022,000008402941012,TESCO STORES 2371,5411,Catering costs - provisions,269.74,0.00,269.74
Children and Young Peoples Services,Head of Childrens Social Care,085342,16 Hickstead Rise (previously 9 Cedar Ave),Supplies and Services,324117,Provisions E324,09-Aug-2022,000008402941018,TESCO STORES 2916,5411,Catering costs - provisions,49.54,0.00,49.54
Children and Young Peoples Services,Head of Childrens Social Care,085332,Middlestone Moor CU,Supplies and Services,384237,Miscellaneous Expenses,09-Aug-2022,000008402941042,North Yorkshire Water,7999,Recreational exps outings parties,120.00,0.00,120.00
Children and Young Peoples Services,Head of Childrens Social Care,085511,Emergency Duty Team,Supplies and Services,352001,Conference Expenses,09-Aug-2022,000008402941058,Hotel at Booking.com,7011,Conferencesseminars fees etc,71.25,0.00,71.25
Children and Young Peoples Services,Head of Childrens Social Care,085347,Solo Home The Manse,Supplies and Services,304403,Equipment and Materials,09-Aug-2022,000008402941070,AMZNMktplace,5999,Other consumables,48.99,0.00,48.99
Children and Young Peoples Services,Head of Childrens Social Care,085347,Solo Home The Manse,Supplies and Services,304403,Equipment and Materials,09-Aug-2022,000008402941074,AMZNMktplace,5999,Other consumables,34.99,0.00,34.99
Children and Young Peoples Services,Head of Childrens Social Care,085331,New Lea Childrens Home,Supplies and Services,324117,Provisions E324,09-Aug-2022,000008402941088,ASDA SUPERSTORE,5411,Catering costs - provisions,129.09,0.00,129.09
Adult and Health Services,Head of Adults,055302,Durham Pathways,Supplies and Services,340001,Postages E340,09-Aug-2022,000008402941100,POST OFFICE COUNTER,9402,Postages,2.35,0.00,2.35
Regeneration Economy and Growth,Culture Sport and Tourism,054813,Gala Theatre - Technical,Supplies and Services,304259,Equipment and Materials,09-Aug-2022,000008402941106,AMZNMktplace,5999,Equipment-purchase and rental,12.84,2.14,10.70
Neighbourhoods and Climate Change,Environmental Services,010301,C&G - North Grounds Maintenance,Supplies and Services,304221,Equipment and Materials,09-Aug-2022,000008402941128,AZTEC CHEMICALS LTD,5169,Direct materials,304.66,50.78,253.88
Neighbourhoods and Climate Change,Environmental Services,010301,C&G - North Grounds Maintenance,Supplies and Services,304221,Equipment and Materials,09-Aug-2022,000008402941134,AZTEC CHEMICALS LTD,5169,Direct materials,402.48,67.08,335.40
Regeneration Economy and Growth,Economic Development Level C,030771,Durham Advance Flexible Fund,Supplies and Services,328041,Clothing uniforms and laundry E328,09-Aug-2022,000008402941140,NEXT DIRECTORY,5651,Clothing uniforms and laundry,69.50,0.00,69.50
Children and Young Peoples Services,Head of Early Help Inclusion & Vulnerable Children.,085956,Lumley,Transfer Payments,515002,Social Services Clients,09-Aug-2022,000008402941156,Etsy.com - LittleWishe,5699,Pocket money,8.00,0.00,8.00
Children and Young Peoples Services,Head of Early Help Inclusion & Vulnerable Children.,085954,Walworth,Supplies and Services,308011,Furniture,09-Aug-2022,000008402941160,AMZNMktplace,5999,Furniture repair and replacement,24.00,4.00,20.00
Children and Young Peoples Services,Head of Early Help Inclusion & Vulnerable Children.,085965,Barnard,Transfer Payments,515002,Social Services Clients,09-Aug-2022,000008402941164,AMZNMktplace,5999,Pocket money,14.76,2.46,12.30
Children and Young Peoples Services,Head of Early Help Inclusion & Vulnerable Children.,085954,Walworth,Supplies and Services,332047,Printing Stationery and Gen Off Exps,09-Aug-2022,000008402941168,AMZNMktplace,5999,Stationery,8.88,0.00,8.88
Children and Young Peoples Services,Head of Early Help Inclusion & Vulnerable Children.,085955,Auckland,Supplies and Services,384302,Miscellaneous Expenses,09-Aug-2022,000008402941170,CEX LTD,5065,Activity expenses,114.15,0.00,114.15
Children and Young Peoples Services,Head of Early Help Inclusion & Vulnerable Children.,085954,Walworth,Supplies and Services,384302,Miscellaneous Expenses,09-Aug-2022,000008402941174,AMZNMktplace,5999,Activity expenses,41.55,6.93,34.62
Children and Young Peoples Services,Head of Early Help Inclusion & Vulnerable Children.,085954,Walworth,Supplies and Services,308011,Furniture,09-Aug-2022,000008402941176,AMZNMktplace,5999,Furniture repair and replacement,22.58,3.77,18.81
Children and Young Peoples Services,Head of Early Help Inclusion & Vulnerable Children.,085957,Secure Management,Supplies and Services,332047,Printing Stationery and Gen Off Exps,09-Aug-2022,000008402941180,AMZNMktplace,5999,Stationery,7.99,1.33,6.66
Children and Young Peoples Services,Head of Early Help Inclusion & Vulnerable Children.,085956,Lumley,Transfer Payments,515002,Social Services Clients,09-Aug-2022,000008402941190,PRETTYLITTLETHING.COM,5691,Pocket money,-33.00,0.00,-33.00
Children and Young Peoples Services,Head of Early Help Inclusion & Vulnerable Children.,085956,Lumley,Transfer Payments,515002,Social Services Clients,09-Aug-2022,000008402941194,PRETTYLITTLETHING.COM,5691,Pocket money,-15.00,0.00,-15.00
Regeneration Economy and Growth,Culture Sport and Tourism,060131,County Records,Employees,040149,Recruitment Instruction and Training,09-Aug-2022,000008402941238,GROUP FOR ED IN MUSEUM,8398,Training-all costs,59.00,0.00,59.00
Regeneration Economy and Growth,Economic Development Level C,030771,Durham Advance Flexible Fund,Supplies and Services,348037,Subsistence E348,09-Aug-2022,000008402941240,iZ THE WITHAM HAL,8398,Subsistence,6.90,0.00,6.90
Regeneration Economy and Growth,Economic Development Level C,030771,Durham Advance Flexible Fund,Transport,235057,Public Transport,09-Aug-2022,000008402941244,3C_ NSL Durham WAP,7523,Staff travelling,2.50,0.42,2.08
Regeneration Economy and Growth,Corporate Property and Land,010932,CCS-Construction Consultancy Service (CCS),Supplies and Services,312009,Newspapers books and periodicals E312,09-Aug-2022,000008402941250,AMZNMKTPLACE AMAZON.CO,5999,Newspapers books and periodicals,108.93,0.00,108.93
Regeneration Economy and Growth,Corporate Property and Land,010932,CCS-Construction Consultancy Service (CCS),Supplies and Services,312009,Newspapers books and periodicals E312,09-Aug-2022,000008402941254,AMZNMKTPLACE AMAZON.CO,5999,Newspapers books and periodicals,33.79,0.00,33.79
Children and Young Peoples Services,Head of Early Help Inclusion & Vulnerable Children.,088109,Dean Bank and Tudhoe Family Centre,Supplies and Services,384302,Miscellaneous Expenses,09-Aug-2022,000008402941272,AMZNMKTPLACE AMAZON.CO,5999,Activity expenses,133.88,22.36,111.52
Children and Young Peoples Services,Head of Early Help Inclusion & Vulnerable Children.,088109,Dean Bank and Tudhoe Family Centre,Supplies and Services,384302,Miscellaneous Expenses,09-Aug-2022,000008402941274,AMZNMKTPLACE AMAZON.CO,5999,Activity expenses,133.00,0.00,133.00
Children and Young Peoples Services,Head of Childrens Social Care,085364,Children Looked After Team 1,Supplies and Services,364340,Grants to Voluntary Organisations,09-Aug-2022,000008402941276,WWW.ADVENTUREVALLEY.CO,7999,Contact expenses,46.35,0.00,46.35
Children and Young Peoples Services,Head of Early Help Inclusion & Vulnerable Children.,088109,Dean Bank and Tudhoe Family Centre,Supplies and Services,304259,Equipment and Materials,09-Aug-2022,000008402941280,FIRSTAID4LESS.CO.UK,5999,Equipment-purchase and rental,46.02,0.00,46.02
Children and Young Peoples Services,Head of Early Help Inclusion & Vulnerable Children.,088115,Young Parents Programme 088115,Supplies and Services,384302,Miscellaneous Expenses,09-Aug-2022,000008402941282,ASDA STORES,5411,Activity expenses,15.31,0.00,15.31
Neighbourhoods and Climate Change,Environmental Services,031228,North Pennines - Fellfoot Forward,Supplies and Services,324117,Provisions E324,09-Aug-2022,000008402941286,HALLBANKGATE HUB LIMIT,5411,Catering costs - provisions,17.37,0.00,17.37
Neighbourhoods and Climate Change,Environmental Services,031228,North Pennines - Fellfoot Forward,Supplies and Services,384999,Miscellaneous Expenses,09-Aug-2022,000008402941290,Hobbycraft,5970,Other expenses,11.50,0.00,11.50
Adult and Health Services,Head of Adults,055643,Hawthorn House LD Respite Unit,Supplies and Services,324117,Provisions E324,09-Aug-2022,000008402941306,MARKS&SPENCER PLC SACA,5411,Catering costs - provisions,1.70,0.00,1.70
Children and Young Peoples Services,Head of Education and Skills,071802,Louisa Cent Nursery,Supplies and Services,324117,Provisions E324,09-Aug-2022,000008402941310,ASDA SUPERSTORE,5411,Catering costs - provisions,12.00,0.00,12.00
Regeneration Economy and Growth,Economic Development Level C,030771,Durham Advance Flexible Fund,Employees,040149,Recruitment Instruction and Training,09-Aug-2022,000008402941316,SQ SHERBURN HILL HUB,8398,Training-all costs,5.50,0.00,5.50
Children and Young Peoples Services,Head of Early Help Inclusion & Vulnerable Children.,088115,Young Parents Programme 088115,Supplies and Services,384302,Miscellaneous Expenses,09-Aug-2022,000008402941358,SEVEN STORIES,5942,Activity expenses,6.00,0.00,6.00
Children and Young Peoples Services,Head of Early Help Inclusion & Vulnerable Children.,088115,Young Parents Programme 088115,Supplies and Services,384302,Miscellaneous Expenses,09-Aug-2022,000008402941362,SEVEN STORIES,5942,Activity expenses,2.00,0.00,2.00
Children and Young Peoples Services,Head of Early Help Inclusion & Vulnerable Children.,088115,Young Parents Programme 088115,Supplies and Services,384302,Miscellaneous Expenses,09-Aug-2022,000008402941364,SEVEN STORIES,5942,Activity expenses,6.00,0.00,6.00
Children and Young Peoples Services,Head of Early Help Inclusion & Vulnerable Children.,088103,Stanley & Moorside Family Centre,Supplies and Services,384302,Miscellaneous Expenses,09-Aug-2022,000008402941366,InfiniteAir,7996,Activity expenses,51.80,0.00,51.80
Resources BK0010,Digital Services,065335,School Services - Implementations,Supplies and Services,304639,Equipment and Materials,09-Aug-2022,000008402941382,LAPTOP-LCD-SCREEN,5732,Technicians-supplies,62.94,0.00,62.94
Children and Young Peoples Services,Head of Childrens Social Care,085347,Solo Home The Manse,Supplies and Services,348037,Subsistence E348,09-Aug-2022,000008402941392,FISH & CHIPS AT 149,5812,Subsistence,33.89,0.00,33.89
Children and Young Peoples Services,Head of Childrens Social Care,085347,Solo Home The Manse,Supplies and Services,348037,Subsistence E348,09-Aug-2022,000008402941396,Gelato Lusso,5814,Subsistence,3.95,0.00,3.95
Children and Young Peoples Services,Head of Childrens Social Care,085351,Framwellgate Moor CU,Supplies and Services,352001,Conference Expenses,09-Aug-2022,000008402941422,Hotel at Booking.com,7011,Conferencesseminars fees etc,300.00,0.00,300.00
Children and Young Peoples Services,Head of Childrens Social Care,085351,Framwellgate Moor CU,Supplies and Services,324117,Provisions E324,09-Aug-2022,000008402941424,ASDA GROCERIES ONLINE,5411,Catering costs - provisions,0.45,0.00,0.45
Children and Young Peoples Services,Head of Childrens Social Care,085351,Framwellgate Moor CU,Supplies and Services,324117,Provisions E324,09-Aug-2022,000008402941426,ASDA GROCERIES ONLINE,5411,Catering costs - provisions,201.18,0.00,201.18
Children and Young Peoples Services,Head of Early Help Inclusion & Vulnerable Children.,088107,Wheatley Hill & N. Aycliffe Family Centre,Supplies and Services,324117,Provisions E324,09-Aug-2022,000008402941440,ASDA GROCERIES ONLINE,5411,Catering costs - provisions,7.20,0.00,7.20
Children and Young Peoples Services,Head of Early Help Inclusion & Vulnerable Children.,088107,Wheatley Hill & N. Aycliffe Family Centre,Supplies and Services,324117,Provisions E324,09-Aug-2022,000008402941442,ASDA GROCERIES ONLINE,5411,Catering costs - provisions,79.73,0.00,79.73
Children and Young Peoples Services,Head of Early Help Inclusion & Vulnerable Children.,088107,Wheatley Hill & N. Aycliffe Family Centre,Supplies and Services,324117,Provisions E324,09-Aug-2022,000008402941444,ASDA GROCERIES ONLINE,5411,Catering costs - provisions,-1.00,0.00,-1.00
Regeneration Economy and Growth,Culture Sport and Tourism,054233,Bishop Auckland Town Hall Library,Supplies and Services,324117,Provisions E324,09-Aug-2022,000008402941448,ASDA STORES,5411,Catering costs - provisions,5.50,0.00,5.50
Children and Young Peoples Services,Head of Childrens Social Care,085334,West Rainton Satelite Home,Supplies and Services,348037,Subsistence E348,09-Aug-2022,000008402941450,Kaspa`s Desserts Darli,5812,Subsistence,16.30,0.00,16.30
Resources BK0010,Digital Services,065432,Web Development Group,Supplies and Services,342033,Computers and Communications,09-Aug-2022,000008402941452,SHUTTERSTOCK IRELAND L,7333,Computer hardware,90.00,0.00,90.00
Regeneration Economy and Growth,Communications Management,060270,Communications and Marketing,Supplies and Services,304403,Equipment and Materials,09-Aug-2022,000008402941454,BEE - BEEFREE.IO,5734,Other consumables,249.06,0.00,249.06
Neighbourhoods and Climate Change,Partnerships & Community Engagement Div.,060472,Humanitarian Support programme,Supplies and Services,304403,Equipment and Materials,09-Aug-2022,000008402941462,AMZNMktplace,5999,Other consumables,17.52,2.92,14.60
Neighbourhoods and Climate Change,Partnerships & Community Engagement Div.,060472,Humanitarian Support programme,Supplies and Services,304403,Equipment and Materials,09-Aug-2022,000008402941462 - 1,AMZNMktplace,5999,Other consumables,0.04,,0.04
Neighbourhoods and Climate Change,Partnerships & Community Engagement Div.,060472,Humanitarian Support programme,Supplies and Services,304403,Equipment and Materials,09-Aug-2022,000008402941464,AMZNMktplace,5999,Other consumables,49.55,8.27,41.28
Regeneration Economy and Growth,Planning & Housing,031634,LOCAL LETTINGS AGENCY,Premises,120037,Energy Costs,09-Aug-2022,000008402941468,SCOTTISHPOWER.COM,5983,Other fuels,142.24,0.00,142.24
Children and Young Peoples Services,Head of Childrens Social Care,085551,Short Break Services-Park Hse Sher,Supplies and Services,348037,Subsistence E348,09-Aug-2022,000008402941474,SQ SEA BANKS ICES,5814,Subsistence,14.70,0.00,14.70
Children and Young Peoples Services,Head of Childrens Social Care,085551,Short Break Services-Park Hse Sher,Transport,235057,Public Transport,09-Aug-2022,000008402941476,TT2 LTD,4784,Staff travelling,3.80,0.00,3.80
Children and Young Peoples Services,Head of Childrens Social Care,085551,Short Break Services-Park Hse Sher,Supplies and Services,384199,Miscellaneous Expenses,09-Aug-2022,000008402941478,BLUE REEF AQUARIUM,7998,Other hired and contracted services,45.25,0.00,45.25
Regeneration Economy and Growth,Planning & Housing,031576,B& B - Temp Accom,Supplies and Services,364320,Grants to Voluntary Organisations,09-Aug-2022,000008402941496,TRAVELODGE,3615,Accommodation assistance,76.48,0.00,76.48
Regeneration Economy and Growth,Planning & Housing,031576,B& B - Temp Accom,Supplies and Services,364320,Grants to Voluntary Organisations,09-Aug-2022,000008402941498,TRAVELODGE,3615,Accommodation assistance,88.72,0.00,88.72
Regeneration Economy and Growth,Culture Sport and Tourism,011263,Louisa Centre 011263,Supplies and Services,324117,Provisions E324,09-Aug-2022,000008403024968,JR HOLLAND FOODSERVICE,5499,Catering costs - provisions,56.09,0.00,56.09
Regeneration Economy and Growth,Culture Sport and Tourism,054812,Gala Theatre - Catering etc,Supplies and Services,324117,Provisions E324,09-Aug-2022,000008403024972,JR HOLLAND FOODSERVICE,5499,Catering costs - provisions,70.43,0.00,70.43
Neighbourhoods and Climate Change,Environmental Services,010367,C&G - South Grounds Maintenance,Supplies and Services,304403,Equipment and Materials,09-Aug-2022,000008407623232,MAXWELLS DIY,5231,Other consumables,21.50,3.58,17.92
Adult and Health Services,Head of Adults,055302,Durham Pathways,Supplies and Services,324117,Provisions E324,09-Aug-2022,000008407623334,CO-OP GROUP 010465,5411,Catering costs - provisions,2.50,0.00,2.50
Adult and Health Services,Head of Adults,055302,Durham Pathways,Supplies and Services,324117,Provisions E324,09-Aug-2022,000008407623338,SAINSBURY`S S/MKT,5411,Catering costs - provisions,15.44,0.00,15.44
Neighbourhoods and Climate Change,Environmental Services,010314,Nei.Prot - Bereavement Services,Supplies and Services,304259,Equipment and Materials,09-Aug-2022,000008407623374,DURHAM COUNTY COUNCIL,9399,Equipment-purchase and rental,33.00,0.00,33.00
Regeneration Economy and Growth,Culture Sport and Tourism,054399,Local Delivery-Libraries,Supplies and Services,304403,Equipment and Materials,09-Aug-2022,000008407623516,AMZNBUSINESS OY8ED19R5,5999,Other consumables,27.58,0.00,27.58
Regeneration Economy and Growth,Economic Development Level C,030771,Durham Advance Flexible Fund,Transport,235057,Public Transport,09-Aug-2022,000008407623526,ACT TRADING LTD,7523,Staff travelling,0.60,0.00,0.60
Adult and Health Services,Head of Adults,055643,Hawthorn House LD Respite Unit,Supplies and Services,324117,Provisions E324,09-Aug-2022,000008407623580,SAINSBURYS S/MKTS,5411,Catering costs - provisions,7.30,0.00,7.30
Children and Young Peoples Services,Head of Early Help Inclusion & Vulnerable Children.,088103,Stanley & Moorside Family Centre,Supplies and Services,364301,Grants to Voluntary Organisations,09-Aug-2022,000008407623698,AMZNMKTPLACE AMAZON.CO,5999,Hardship,22.99,3.83,19.16
Children and Young Peoples Services,Head of Early Help Inclusion & Vulnerable Children.,088103,Stanley & Moorside Family Centre,Supplies and Services,364301,Grants to Voluntary Organisations,09-Aug-2022,000008407623700,AMZNMKTPLACE AMAZON.CO,5999,Hardship,22.99,3.83,19.16
Neighbourhoods and Climate Change,Environmental Services,010301,C&G - North Grounds Maintenance,Supplies and Services,304221,Equipment and Materials,09-Aug-2022,000008407623754,SCREWFIX DIR LTD,5211,Direct materials,46.08,0.00,46.08
Regeneration Economy and Growth,Culture Sport and Tourism,054233,Bishop Auckland Town Hall Library,Supplies and Services,324117,Provisions E324,09-Aug-2022,000008407623786,WM MORRISONS STORE,5411,Catering costs - provisions,47.66,0.00,47.66
Children and Young Peoples Services,Head of Childrens Social Care,085551,Short Break Services-Park Hse Sher,Supplies and Services,324117,Provisions E324,09-Aug-2022,000008407623840,CRUSOES,5462,Catering costs - provisions,74.90,0.00,74.90
Children and Young Peoples Services,Head of Early Help Inclusion & Vulnerable Children.,088101,Bullion Lane & Brandon Family Centre,Supplies and Services,324117,Provisions E324,09-Aug-2022,000008407623860,ALDI,5411,Catering costs - provisions,38.64,6.44,32.20
Regeneration Economy and Growth,Planning & Housing,031576,B& B - Temp Accom,Supplies and Services,364320,Grants to Voluntary Organisations,09-Aug-2022,000008407623882,HOTEL EXPRESS LTD,7011,Accommodation assistance,133.00,0.00,133.00
Regeneration Economy and Growth,Planning & Housing,031576,B& B - Temp Accom,Supplies and Services,364320,Grants to Voluntary Organisations,09-Aug-2022,000008407623884,PREMIER INN,3811,Accommodation assistance,101.30,0.00,101.30
Regeneration Economy and Growth,Culture Sport and Tourism,054235,Bishop Auckland Town Hall Cafe,Supplies and Services,324117,Provisions E324,09-Aug-2022,000008407718636,BATLEYS PERTH,5300,Catering costs - provisions,574.26,95.71,478.55
Regeneration Economy and Growth,Culture Sport and Tourism,054235,Bishop Auckland Town Hall Cafe,Supplies and Services,324117,Provisions E324,09-Aug-2022,000008407718636 - 1,BATLEYS PERTH,5300,Catering costs - provisions,185.09,,185.09
Neighbourhoods and Climate Change,Environmental Services,011060,C&G - Hardwick Park Catering,Supplies and Services,324117,Provisions E324,09-Aug-2022,000008407718654,BATLEYS PERTH,5300,Catering costs - provisions,710.82,118.47,592.35
Neighbourhoods and Climate Change,Environmental Services,011060,C&G - Hardwick Park Catering,Supplies and Services,324117,Provisions E324,09-Aug-2022,000008407718654 - 1,BATLEYS PERTH,5300,Catering costs - provisions,285.92,,285.92
Neighbourhoods and Climate Change,Environmental Services,011060,C&G - Hardwick Park Catering,Supplies and Services,324117,Provisions E324,09-Aug-2022,000008407718662,BATLEYS PERTH,5300,Catering costs - provisions,70.80,11.80,59.00
Neighbourhoods and Climate Change,Environmental Services,011060,C&G - Hardwick Park Catering,Supplies and Services,324117,Provisions E324,09-Aug-2022,000008407718662 - 1,BATLEYS PERTH,5300,Catering costs - provisions,32.06,,32.06
Neighbourhoods and Climate Change,Environmental Services,011060,C&G - Hardwick Park Catering,Supplies and Services,324117,Provisions E324,09-Aug-2022,000008407718664,BATLEYS PERTH,5300,Catering costs - provisions,14.30,2.38,11.92
Regeneration Economy and Growth,Corporate Property and Land,021324,Catering - Meadowfield,Supplies and Services,324117,Provisions E324,09-Aug-2022,000008407718692,BATLEYS PERTH,5300,Catering costs - provisions,186.12,31.02,155.10
Regeneration Economy and Growth,Corporate Property and Land,021324,Catering - Meadowfield,Supplies and Services,324117,Provisions E324,09-Aug-2022,000008407718692 - 1,BATLEYS PERTH,5300,Catering costs - provisions,74.31,,74.31
Regeneration Economy and Growth,Economic Development Level C,030771,Durham Advance Flexible Fund,Supplies and Services,328041,Clothing uniforms and laundry E328,09-Aug-2022,000008412606974,FREEMANS,5310,Clothing uniforms and laundry,26.99,0.00,26.99
Children and Young Peoples Services,Head of Childrens Social Care,085551,Short Break Services-Park Hse Sher,Supplies and Services,324117,Provisions E324,09-Aug-2022,000010196468599,ICELAND FOODS,5411,Catering costs - provisions,112.50,0.00,112.50
Regeneration Economy and Growth,Business Durham CL0850,030689,Inward Investment and Aftercare,Supplies and Services,304999,Equipment and Materials,10-Aug-2022,000008402940902,MAILCHIMP MISC,5968,Misc equipment tools and materials,2.68,0.00,2.68
Regeneration Economy and Growth,Culture Sport and Tourism,054813,Gala Theatre - Technical,Supplies and Services,304259,Equipment and Materials,10-Aug-2022,000008402941110,SPROUTVIDEO LLC,7399,Equipment-purchase and rental,166.03,0.00,166.03
Regeneration Economy and Growth,Culture Sport and Tourism,054813,Gala Theatre - Technical,Supplies and Services,304259,Equipment and Materials,10-Aug-2022,000008402941114,SPROUTVIDEO LLC,7399,Equipment-purchase and rental,4.57,0.00,4.57
Children and Young Peoples Services,Head of Early Help Inclusion & Vulnerable Children.,085965,Barnard,Supplies and Services,308011,Furniture,10-Aug-2022,000008402941184,AMZNMktplace,5999,Furniture repair and replacement,16.99,2.83,14.16
Children and Young Peoples Services,Head of Early Help Inclusion & Vulnerable Children.,085965,Barnard,Supplies and Services,308011,Furniture,10-Aug-2022,000008402941188,AMZNMktplace,5999,Furniture repair and replacement,11.09,0.00,11.09
Resources BK0010,Digital Services,065432,Web Development Group,Supplies and Services,304403,Equipment and Materials,10-Aug-2022,000008402941456,BEE - BEEFREE.IO,5734,Other consumables,6.85,0.00,6.85
Regeneration Economy and Growth,Business Durham CL0850,030689,Inward Investment and Aftercare,Supplies and Services,342033,Computers and Communications,10-Aug-2022,000008407623092,BLS MONDAY.COM12017784,7372,Computer hardware,148.80,0.00,148.80
Children and Young Peoples Services,Head of Childrens Social Care,085341,High Etherley Satelite Home,Supplies and Services,324117,Provisions E324,10-Aug-2022,000008407623094,TESCO STORES 6329,5411,Catering costs - provisions,5.00,0.00,5.00
Children and Young Peoples Services,Head of Education and Skills,071801,Selby Cottage Childcare Centre,Supplies and Services,304403,Equipment and Materials,10-Aug-2022,000008407623100,AMZNMktplace,5999,Other consumables,14.99,2.50,12.49
Resources BK0010,Legal & Democratic Services,069326,Practice Management,Employees,040149,Recruitment Instruction and Training,10-Aug-2022,000008407623116,EB HEAR MY VOICE LOCA,7399,Training-all costs,180.00,0.00,180.00
Children and Young Peoples Services,Head of Education and Skills,075034,Youth Futures Foundation,Supplies and Services,364301,Grants to Voluntary Organisations,10-Aug-2022,000008407623132,AMZNMktplace,5999,Hardship,3.87,0.65,3.22
Children and Young Peoples Services,Head of Education and Skills,075034,Youth Futures Foundation,Supplies and Services,364301,Grants to Voluntary Organisations,10-Aug-2022,000008407623134,WWW.GONORTHEAST.CO.UK,4111,Hardship,16.00,0.00,16.00
Children and Young Peoples Services,Head of Education and Skills,075034,Youth Futures Foundation,Supplies and Services,364301,Grants to Voluntary Organisations,10-Aug-2022,000008407623138,WWW.GONORTHEAST.CO.UK,4111,Hardship,16.00,0.00,16.00
Children and Young Peoples Services,Head of Education and Skills,075024,Durham Directions,Supplies and Services,364301,Grants to Voluntary Organisations,10-Aug-2022,000008407623140,AMZNMktplace,5999,Hardship,3.30,0.55,2.75
Children and Young Peoples Services,Head of Education and Skills,075024,Durham Directions,Supplies and Services,364301,Grants to Voluntary Organisations,10-Aug-2022,000008407623142,AMZNMktplace,5999,Hardship,4.99,0.83,4.16
Children and Young Peoples Services,Head of Education and Skills,075024,Durham Directions,Supplies and Services,364301,Grants to Voluntary Organisations,10-Aug-2022,000008407623144,AMZNMktplace,5999,Hardship,8.40,1.40,7.00
Children and Young Peoples Services,Head of Education and Skills,075024,Durham Directions,Supplies and Services,364301,Grants to Voluntary Organisations,10-Aug-2022,000008407623144 - 1,AMZNMktplace,5999,Hardship,0.03,,0.03
Children and Young Peoples Services,Head of Education and Skills,075024,Durham Directions,Supplies and Services,364301,Grants to Voluntary Organisations,10-Aug-2022,000008407623146,AMZNMktplace,5999,Hardship,3.00,0.50,2.50
Children and Young Peoples Services,Head of Education and Skills,075024,Durham Directions,Supplies and Services,364301,Grants to Voluntary Organisations,10-Aug-2022,000008407623150,AMZNMktplace,5999,Hardship,2.60,0.43,2.17
Children and Young Peoples Services,Head of Education and Skills,075024,Durham Directions,Supplies and Services,364301,Grants to Voluntary Organisations,10-Aug-2022,000008407623152,AMZNMktplace,5999,Hardship,4.99,2.49,2.50
Children and Young Peoples Services,Head of Education and Skills,075024,Durham Directions,Supplies and Services,364301,Grants to Voluntary Organisations,10-Aug-2022,000008407623154,AMZNMktplace,5999,Hardship,9.98,2.49,7.49
Children and Young Peoples Services,Head of Education and Skills,075024,Durham Directions,Supplies and Services,364301,Grants to Voluntary Organisations,10-Aug-2022,000008407623158,AMZNMktplace,5999,Hardship,5.19,0.87,4.32
Children and Young Peoples Services,Head of Education and Skills,075034,Youth Futures Foundation,Supplies and Services,364301,Grants to Voluntary Organisations,10-Aug-2022,000008407623160,AMZNMktplace,5999,Hardship,5.16,0.00,5.16
Children and Young Peoples Services,Head of Education and Skills,078100,Curric and Professional Development 078100,Supplies and Services,304403,Equipment and Materials,10-Aug-2022,000008407623184,ADOBE PRODUCTS,5734,Other consumables,25.28,0.00,25.28
Children and Young Peoples Services,Head of Childrens Social Care,085334,West Rainton Satelite Home,Supplies and Services,324117,Provisions E324,10-Aug-2022,000008407623188,TESCO STORES 2371,5411,Catering costs - provisions,8.29,0.00,8.29
Adult and Health Services,Head of Adults,055302,Durham Pathways,Supplies and Services,304259,Equipment and Materials,10-Aug-2022,000008407623192,Amazon Music OC7G75BZ5,5735,Equipment-purchase and rental,14.99,0.00,14.99
Regeneration Economy and Growth,Planning & Housing,031500,Housing Solutions - Core,Supplies and Services,352001,Conference Expenses,10-Aug-2022,000008407623196,SHELTER TRADING LTD,5947,Conferencesseminars fees etc,68.25,0.00,68.25
Regeneration Economy and Growth,Planning & Housing,031500,Housing Solutions - Core,Supplies and Services,352001,Conference Expenses,10-Aug-2022,000008407623200,CANFORD AUDIO PLC,5065,Conferencesseminars fees etc,237.60,0.00,237.60
Neighbourhoods and Climate Change,Environmental Services,031249,North Pennines - Nature for Climate,Transport,235057,Public Transport,10-Aug-2022,000008407623218,Weardale Motor Service,4111,Staff travelling,68.55,0.00,68.55
Regeneration Economy and Growth,Economic Development Level C,030776,LINKCD Flexible Fund,Employees,040149,Recruitment Instruction and Training,10-Aug-2022,000008407623236,WWW.CSCS.UK.COM,8699,Training-all costs,36.00,6.00,30.00
Children and Young Peoples Services,Head of Childrens Social Care,085332,Middlestone Moor CU,Transport,235057,Public Transport,10-Aug-2022,000008407623240,ARRIVA DURHAM COUNTY L,4131,Staff travelling,15.20,0.00,15.20
Children and Young Peoples Services,Head of Childrens Social Care,085332,Middlestone Moor CU,Transport,235057,Public Transport,10-Aug-2022,000008407623244,LNE RAILWAY DAR STN,4112,Staff travelling,55.60,0.00,55.60
Children and Young Peoples Services,Head of Childrens Social Care,085332,Middlestone Moor CU,Transport,235057,Public Transport,10-Aug-2022,000008407623248,NORTHERN RAIL LTD-,4112,Staff travelling,11.00,0.00,11.00
Children and Young Peoples Services,Head of Childrens Social Care,085332,Middlestone Moor CU,Supplies and Services,312009,Newspapers books and periodicals E312,10-Aug-2022,000008407623250,WH SMITH,5994,Newspapers books and periodicals,4.18,0.00,4.18
Neighbourhoods and Climate Change,Environmental Services,010367,C&G - South Grounds Maintenance,Supplies and Services,304221,Equipment and Materials,10-Aug-2022,000008407623284,BTL TIMBER AND COUNTRY,5211,Direct materials,20.52,0.00,20.52
Children and Young Peoples Services,Head of Childrens Social Care,085511,Emergency Duty Team,Transport,235057,Public Transport,10-Aug-2022,000008407623292,STAGECOACH SERVICE,4131,Staff travelling,20.39,0.00,20.39
Adult and Health Services,Head of Adults,055302,Durham Pathways,Supplies and Services,304403,Equipment and Materials,10-Aug-2022,000008407623340,AMZNMKTPLACE AMAZON.CO,5999,Other consumables,16.18,2.70,13.48
Children and Young Peoples Services,Head of Education and Skills,071801,Selby Cottage Childcare Centre,Supplies and Services,324117,Provisions E324,10-Aug-2022,000008407623380,TESCO STORES 2278,5411,Catering costs - provisions,85.67,0.00,85.67
Neighbourhoods and Climate Change,Environmental Services,010301,C&G - North Grounds Maintenance,Supplies and Services,304999,Equipment and Materials,10-Aug-2022,000008407623396,BESCOL LIMITED,5251,Misc equipment tools and materials,15.00,0.00,15.00
Regeneration Economy and Growth,Economic Development Level C,030771,Durham Advance Flexible Fund,Supplies and Services,340001,Postages E340,10-Aug-2022,000008407623398,POST OFFICE COUNTER,9402,Postages,4.84,0.00,4.84
Regeneration Economy and Growth,Economic Development Level C,030771,Durham Advance Flexible Fund,Supplies and Services,348037,Subsistence E348,10-Aug-2022,000008407623402,CHESTER LE STREET,5814,Subsistence,2.25,0.00,2.25
Regeneration Economy and Growth,Economic Development Level C,030771,Durham Advance Flexible Fund,Supplies and Services,348037,Subsistence E348,10-Aug-2022,000008407623406,CHESTER LE STREET,5814,Subsistence,2.15,0.00,2.15
Regeneration Economy and Growth,Economic Development Level C,030771,Durham Advance Flexible Fund,Supplies and Services,348037,Subsistence E348,10-Aug-2022,000008407623410,Coffee Bank,5812,Subsistence,3.00,0.00,3.00
Children and Young Peoples Services,Head of Early Help Inclusion & Vulnerable Children.,085954,Walworth,Transfer Payments,515002,Social Services Clients,10-Aug-2022,000008407623416,Footasylum Limited,5651,Pocket money,104.97,17.50,87.47
Children and Young Peoples Services,Head of Early Help Inclusion & Vulnerable Children.,085956,Lumley,Transfer Payments,515002,Social Services Clients,10-Aug-2022,000008407623420,Revolution Beauty Limi,5977,Pocket money,32.19,0.00,32.19
Children and Young Peoples Services,Head of Early Help Inclusion & Vulnerable Children.,085956,Lumley,Transfer Payments,515002,Social Services Clients,10-Aug-2022,000008407623424,AMZNMKTPLACE AMAZON.CO,5999,Pocket money,9.99,0.00,9.99
Children and Young Peoples Services,Head of Early Help Inclusion & Vulnerable Children.,085965,Barnard,Transfer Payments,515002,Social Services Clients,10-Aug-2022,000008407623428,SPORTSDIRECT.COM,5655,Pocket money,29.99,0.00,29.99
Children and Young Peoples Services,Head of Early Help Inclusion & Vulnerable Children.,085965,Barnard,Transfer Payments,515002,Social Services Clients,10-Aug-2022,000008407623430,FLANNELS.COM,5691,Pocket money,88.99,14.83,74.16
Children and Young Peoples Services,Head of Early Help Inclusion & Vulnerable Children.,085954,Walworth,Transfer Payments,515002,Social Services Clients,10-Aug-2022,000008407623434,FLANNELS.COM,5691,Pocket money,71.99,12.00,59.99
Children and Young Peoples Services,Head of Early Help Inclusion & Vulnerable Children.,085957,Secure Management,Supplies and Services,384302,Miscellaneous Expenses,10-Aug-2022,000008407623436,Amazon MP3,5735,Activity expenses,0.98,0.00,0.98
Children and Young Peoples Services,Head of Early Help Inclusion & Vulnerable Children.,085957,Secure Management,Supplies and Services,384302,Miscellaneous Expenses,10-Aug-2022,000008407623438,Amazon MP3,5735,Activity expenses,0.98,0.00,0.98
Children and Young Peoples Services,Head of Early Help Inclusion & Vulnerable Children.,085957,Secure Management,Supplies and Services,384302,Miscellaneous Expenses,10-Aug-2022,000008407623440,Amazon MP3,5735,Activity expenses,0.98,0.00,0.98
Children and Young Peoples Services,Head of Early Help Inclusion & Vulnerable Children.,085957,Secure Management,Supplies and Services,384302,Miscellaneous Expenses,10-Aug-2022,000008407623444,Amazon MP3,5735,Activity expenses,0.98,0.00,0.98
Children and Young Peoples Services,Head of Early Help Inclusion & Vulnerable Children.,085957,Secure Management,Supplies and Services,384302,Miscellaneous Expenses,10-Aug-2022,000008407623446,Amazon MP3,5735,Activity expenses,7.69,0.00,7.69
Children and Young Peoples Services,Head of Early Help Inclusion & Vulnerable Children.,085957,Secure Management,Supplies and Services,384302,Miscellaneous Expenses,10-Aug-2022,000008407623450,Amazon MP3,5735,Activity expenses,0.98,0.00,0.98
Children and Young Peoples Services,Head of Early Help Inclusion & Vulnerable Children.,085957,Secure Management,Supplies and Services,384302,Miscellaneous Expenses,10-Aug-2022,000008407623454,Amazon MP3,5735,Activity expenses,0.98,0.00,0.98
Children and Young Peoples Services,Head of Early Help Inclusion & Vulnerable Children.,085957,Secure Management,Supplies and Services,384302,Miscellaneous Expenses,10-Aug-2022,000008407623458,Amazon MP3,5735,Activity expenses,11.99,0.00,11.99
Children and Young Peoples Services,Head of Early Help Inclusion & Vulnerable Children.,085957,Secure Management,Supplies and Services,384302,Miscellaneous Expenses,10-Aug-2022,000008407623460,Amazon MP3,5735,Activity expenses,0.98,0.00,0.98
Children and Young Peoples Services,Head of Early Help Inclusion & Vulnerable Children.,085956,Lumley,Transfer Payments,515002,Social Services Clients,10-Aug-2022,000008407623464,PRETTYLITTLETHING.COM,5691,Pocket money,27.75,0.00,27.75
Children and Young Peoples Services,Head of Early Help Inclusion & Vulnerable Children.,085956,Lumley,Transfer Payments,515002,Social Services Clients,10-Aug-2022,000008407623468,AMZNMKTPLACE AMAZON.CO,5999,Pocket money,13.99,2.33,11.66
Children and Young Peoples Services,Head of Early Help Inclusion & Vulnerable Children.,085962,Aycliffe Secure - Durham,Supplies and Services,324117,Provisions E324,10-Aug-2022,000008407623472,TESCO STORES 6329,5411,Catering costs - provisions,102.43,0.00,102.43
Children and Young Peoples Services,Head of Early Help Inclusion & Vulnerable Children.,085956,Lumley,Supplies and Services,384302,Miscellaneous Expenses,10-Aug-2022,000008407623474,CURRYS ONLINE,5732,Activity expenses,454.00,75.67,378.33
Children and Young Peoples Services,Head of Early Help Inclusion & Vulnerable Children.,085965,Barnard,Supplies and Services,384302,Miscellaneous Expenses,10-Aug-2022,000008407623482,Amazon.co.uk KB7YR7EN5,5969,Activity expenses,9.99,1.67,8.32
Children and Young Peoples Services,Head of Early Help Inclusion & Vulnerable Children.,085956,Lumley,Transfer Payments,515002,Social Services Clients,10-Aug-2022,000008407623488,Amazon.co.uk 2098X5AA5,5969,Pocket money,9.99,1.67,8.32
Children and Young Peoples Services,Head of Early Help Inclusion & Vulnerable Children.,085956,Lumley,Transfer Payments,515002,Social Services Clients,10-Aug-2022,000008407623490,SHEIN,5691,Pocket money,20.49,0.00,20.49
Children and Young Peoples Services,Head of Early Help Inclusion & Vulnerable Children.,085956,Lumley,Transfer Payments,515002,Social Services Clients,10-Aug-2022,000008407623492,SHEIN,5691,Pocket money,33.98,0.00,33.98
Children and Young Peoples Services,Head of Early Help Inclusion & Vulnerable Children.,085956,Lumley,Transfer Payments,515002,Social Services Clients,10-Aug-2022,000008407623496,SHEIN,5691,Pocket money,61.93,0.00,61.93
Children and Young Peoples Services,Head of Childrens Social Care,085334,West Rainton Satelite Home,Transport,235057,Public Transport,10-Aug-2022,000008407623506,AIRBNB HMYFSK8PX9,4722,Staff travelling,163.71,0.00,163.71
Children and Young Peoples Services,Head of Childrens Social Care,085364,Children Looked After Team 1,Supplies and Services,364340,Grants to Voluntary Organisations,10-Aug-2022,000008407623558,WWW.ADVENTUREVALLEY.CO,7999,Contact expenses,46.35,0.00,46.35
Children and Young Peoples Services,Head of Childrens Social Care,085365,Children Looked After Team 2,Supplies and Services,338045,Services,10-Aug-2022,000008407623562,HM PASSPORT OFFICE,9399,Legal expenses 338045,49.00,0.00,49.00
Children and Young Peoples Services,Head of Childrens Social Care,085365,Children Looked After Team 2,Supplies and Services,338045,Services,10-Aug-2022,000008407623564,HM PASSPORT OFFICE,9399,Legal expenses 338045,49.00,0.00,49.00
Children and Young Peoples Services,Head of Early Help Inclusion & Vulnerable Children.,088109,Dean Bank and Tudhoe Family Centre,Supplies and Services,384302,Miscellaneous Expenses,10-Aug-2022,000008407623566,ASDA STORES,5411,Activity expenses,76.90,0.00,76.90
Children and Young Peoples Services,Head of Early Help Inclusion & Vulnerable Children.,088109,Dean Bank and Tudhoe Family Centre,Supplies and Services,304259,Equipment and Materials,10-Aug-2022,000008407623570,AMZNMktplace,5999,Equipment-purchase and rental,44.99,7.50,37.49
Neighbourhoods and Climate Change,Environmental Services,019100,Fleet - Strategic Fleet,Supplies and Services,304259,Equipment and Materials,10-Aug-2022,000008407623572,JAUPT,9399,Equipment-purchase and rental,252.00,0.00,252.00
Children and Young Peoples Services,Head of Education and Skills,071802,Louisa Cent Nursery,Supplies and Services,304999,Equipment and Materials,10-Aug-2022,000008407623592,HOME BARGAINS,5251,Misc equipment tools and materials,13.04,0.00,13.04
Regeneration Economy and Growth,Economic Development Level C,030776,LINKCD Flexible Fund,Supplies and Services,324117,Provisions E324,10-Aug-2022,000008407623598,TESCO STORES 2371,5411,Catering costs - provisions,6.55,0.00,6.55
Regeneration Economy and Growth,Corporate Property and Land,010913,Bldg Serv - Construction General,Supplies and Services,304221,Equipment and Materials,10-Aug-2022,000008407623604,HSE ID-7468702,5942,Direct materials,499.80,83.30,416.50
Regeneration Economy and Growth,Corporate Property and Land,020073,Bldg Serv - R&M Div 73 - Gas Servicing,Supplies and Services,372009,Subscriptions E372,10-Aug-2022,000008407623608,CAPITA GAS,8699,Subscriptions 372009,31.80,5.30,26.50
Children and Young Peoples Services,Head of Childrens Social Care,085331,New Lea Childrens Home,Supplies and Services,384237,Miscellaneous Expenses,10-Aug-2022,000008407623624,SumUp Victorian Car,7999,Recreational exps outings parties,2.00,0.00,2.00
